Organisation Name,Organisation Code,Effective Date,Directorate  Where Expenditure Incurred,Supplier Name,Payment Date,Transaction Number,Gross Amount,Purpose of Spend,Merchant Category,Card Transaction
WALSALL COUNCIL,http://opendatacommunities.org/id/metropolitan-district-council/walsall,31/12/2020,RESOURCES & TRANSFORMATION,BLAKEMORE FOODSERVICE,01/10/2020,H59620201002BBWFJFKDD-1,-63.32,CATERING - SCHOOLS-FOOD & DRINK SUPPLIES,CATERERS,GPC
WALSALL COUNCIL,http://opendatacommunities.org/id/metropolitan-district-council/walsall,31/12/2020,CHILDRENS SERVICES,COMBINED COURT,01/10/2020,H59620201002BDTPYPADG-1,215.00,SAFEGUARDING & FAMILY SUPPORT-SECTION 1/17CHILD CARE ACT 198,FINES,GPC
WALSALL COUNCIL,http://opendatacommunities.org/id/metropolitan-district-council/walsall,31/12/2020,CHILDRENS SERVICES,AMZNMKTPLACE,01/10/2020,H59620201002BQSTEJAPT-1,12.05,VIRTUAL SCHOOL - CENTRAL PUPIL-OTHER EXPENSES,MISCELLANEOUS AND SPECIALTY RETAIL STORES,GPC
WALSALL COUNCIL,http://opendatacommunities.org/id/metropolitan-district-council/walsall,31/12/2020,ECONOMY & ENVIRONMENT,TOOLSTATION LTD,01/10/2020,H59620201002CLINAMRGO-1,17.64,INFRASTRUCTURE MAINTENANCE-MATERIALS,LUMBER & BUILDING MATERIALS STORES,GPC
WALSALL COUNCIL,http://opendatacommunities.org/id/metropolitan-district-council/walsall,31/12/2020,CHILDRENS SERVICES,TESCO STORES 6161,01/10/2020,H59620201002CNEJYQYOM-1,39.00,WALSALL CRISIS SUPPORT SCHEME-CRISIS SUPPORT PAYMENTS,GROCERY STORES AND SUPERMARKETS,GPC
WALSALL COUNCIL,http://opendatacommunities.org/id/metropolitan-district-council/walsall,31/12/2020,RESOURCES & TRANSFORMATION,JOHAL DAIRIES LTD,01/10/2020,H59620201002CQUPNUVHS-1,20.82,CATERING - SCHOOLS-FOOD & DRINK SUPPLIES,OTHER NONDURABLE GOODS,GPC
WALSALL COUNCIL,http://opendatacommunities.org/id/metropolitan-district-council/walsall,31/12/2020,RESOURCES & TRANSFORMATION,JOHAL DAIRIES LTD,01/10/2020,H59620201002CVAQSFVUX-1,21.12,CATERING - SCHOOLS-FOOD & DRINK SUPPLIES,OTHER NONDURABLE GOODS,GPC
WALSALL COUNCIL,http://opendatacommunities.org/id/metropolitan-district-council/walsall,31/12/2020,RESOURCES & TRANSFORMATION,JOHAL DAIRIES LTD,01/10/2020,H59620201002CZRSBFHWF-1,22.51,CATERING - SCHOOLS-FOOD & DRINK SUPPLIES,OTHER NONDURABLE GOODS,GPC
WALSALL COUNCIL,http://opendatacommunities.org/id/metropolitan-district-council/walsall,31/12/2020,RESOURCES & TRANSFORMATION,JOHAL DAIRIES LTD,01/10/2020,H59620201002DCYTTDZPW-1,40.48,CATERING - SCHOOLS-FOOD & DRINK SUPPLIES,OTHER NONDURABLE GOODS,GPC
WALSALL COUNCIL,http://opendatacommunities.org/id/metropolitan-district-council/walsall,31/12/2020,ECONOMY & ENVIRONMENT,WWW.TTS-GROUPS.CO.UK,01/10/2020,H59620201002DETXILPEN-1,37.79,LEATHER MUSEUM-PURCHASE OF FURNITURE & EQUIPM,"OFFICE, SCHOOL SUPPLY, AND STATIONERY STORES",GPC
WALSALL COUNCIL,http://opendatacommunities.org/id/metropolitan-district-council/walsall,31/12/2020,ECONOMY & ENVIRONMENT,AMAZON.CO.UK*A63FO5LH5,01/10/2020,H59620201002DNQFNCDJN-1,15.74,RESOURCE MANAGEMENT-PURCHASE OF FURNITURE & EQUIPM,OTHER DIRECT MARKETING-OTHER DIRECT MARKETERS,GPC
WALSALL COUNCIL,http://opendatacommunities.org/id/metropolitan-district-council/walsall,31/12/2020,RESOURCES & TRANSFORMATION,JOHAL DAIRIES LTD,01/10/2020,H59620201002EAWBJLIUV-1,16.92,CATERING - SCHOOLS-FOOD & DRINK SUPPLIES,OTHER NONDURABLE GOODS,GPC
WALSALL COUNCIL,http://opendatacommunities.org/id/metropolitan-district-council/walsall,31/12/2020,RESOURCES & TRANSFORMATION,JOHAL DAIRIES LTD,01/10/2020,H59620201002EBIPRIPYX-1,15.72,CATERING - SCHOOLS-FOOD & DRINK SUPPLIES,OTHER NONDURABLE GOODS,GPC
WALSALL COUNCIL,http://opendatacommunities.org/id/metropolitan-district-council/walsall,31/12/2020,RESOURCES & TRANSFORMATION,JOHAL DAIRIES LTD,01/10/2020,H59620201002EGTNSCUFG-1,28.62,CATERING - SCHOOLS-FOOD & DRINK SUPPLIES,OTHER NONDURABLE GOODS,GPC
WALSALL COUNCIL,http://opendatacommunities.org/id/metropolitan-district-council/walsall,31/12/2020,RESOURCES & TRANSFORMATION,BLAKEMORE FOODSERVICE,01/10/2020,H59620201002EWLLCFODK-1,96.00,CATERING - SCHOOLS-FOOD & DRINK SUPPLIES,CATERERS,GPC
WALSALL COUNCIL,http://opendatacommunities.org/id/metropolitan-district-council/walsall,31/12/2020,RESOURCES & TRANSFORMATION,BLAKEMORE FOODSERVICE,01/10/2020,H59620201002FDRJJTIPW-1,591.59,CATERING - SCHOOLS-FOOD & DRINK SUPPLIES,CATERERS,GPC
WALSALL COUNCIL,http://opendatacommunities.org/id/metropolitan-district-council/walsall,31/12/2020,RESOURCES & TRANSFORMATION,BLAKEMORE FOODSERVICE,01/10/2020,H59620201002FDRJJTIPW-2,27.14,CATERING - SCHOOLS-FOOD & DRINK SUPPLIES,CATERERS,GPC
WALSALL COUNCIL,http://opendatacommunities.org/id/metropolitan-district-council/walsall,31/12/2020,RESOURCES & TRANSFORMATION,BLAKEMORE FOODSERVICE,01/10/2020,H59620201002FJZTEJGHL-1,198.89,CATERING - SCHOOLS-FOOD & DRINK SUPPLIES,CATERERS,GPC
WALSALL COUNCIL,http://opendatacommunities.org/id/metropolitan-district-council/walsall,31/12/2020,CHILDRENS SERVICES,PAYPAL *IDCARDCENTR,01/10/2020,H59620201002FSYELIVCG-1,36.60,ELMWOOD SCHOOL-OPERATIONAL MAINTENANCE,ELECTRONIC SALES,GPC
WALSALL COUNCIL,http://opendatacommunities.org/id/metropolitan-district-council/walsall,31/12/2020,RESOURCES & TRANSFORMATION,JOHAL DAIRIES LTD,01/10/2020,H59620201002FVXMWXMOK-1,32.24,CATERING - SCHOOLS-FOOD & DRINK SUPPLIES,OTHER NONDURABLE GOODS,GPC
WALSALL COUNCIL,http://opendatacommunities.org/id/metropolitan-district-council/walsall,31/12/2020,CHILDRENS SERVICES,AMZNMKTPLACE AMAZON.CO.UK,01/10/2020,H59620201002FXNTOHWDN-1,44.99,WATLING STREET PRIMARY SCHOOL-MATERIALS,MISCELLANEOUS AND SPECIALTY RETAIL STORES,GPC
WALSALL COUNCIL,http://opendatacommunities.org/id/metropolitan-district-council/walsall,31/12/2020,ECONOMY & ENVIRONMENT,VESTA VODAFONE,01/10/2020,H59620201002FYBXFWVVY-1,42.31,POLLUTION DIVISION-LANDLINE PHONES,TELECOMMUNICATION SERVICES,GPC
WALSALL COUNCIL,http://opendatacommunities.org/id/metropolitan-district-council/walsall,31/12/2020,CHILDRENS SERVICES,AMZNMKTPLACE,01/10/2020,H59620201002GBBUVKSZX-1,37.39,P E DEPARTMENT-MATERIALS,MISCELLANEOUS AND SPECIALTY RETAIL STORES,GPC
WALSALL COUNCIL,http://opendatacommunities.org/id/metropolitan-district-council/walsall,31/12/2020,RESOURCES & TRANSFORMATION,JOHAL DAIRIES LTD,01/10/2020,H59620201002GDWTOCHBR-1,11.86,CATERING - SCHOOLS-FOOD & DRINK SUPPLIES,OTHER NONDURABLE GOODS,GPC
WALSALL COUNCIL,http://opendatacommunities.org/id/metropolitan-district-council/walsall,31/12/2020,CHILDRENS SERVICES,247 CARS WILLENHALL LTD,01/10/2020,H59620201002GJINSGJYP-1,26.80,SAFEGUARDING & FAMILY SUPPORT-SECTION 1/17CHILD CARE ACT 198,TAXI SERVICES,GPC
WALSALL COUNCIL,http://opendatacommunities.org/id/metropolitan-district-council/walsall,31/12/2020,RESOURCES & TRANSFORMATION,BLAKEMORE FOODSERVICE,01/10/2020,H59620201002GWLCXSCIK-1,367.60,CATERING - SCHOOLS-FOOD & DRINK SUPPLIES,CATERERS,GPC
WALSALL COUNCIL,http://opendatacommunities.org/id/metropolitan-district-council/walsall,31/12/2020,RESOURCES & TRANSFORMATION,BLAKEMORE FOODSERVICE,01/10/2020,H59620201002GWLCXSCIK-2,18.09,CATERING - SCHOOLS-FOOD & DRINK SUPPLIES,CATERERS,GPC
WALSALL COUNCIL,http://opendatacommunities.org/id/metropolitan-district-council/walsall,31/12/2020,RESOURCES & TRANSFORMATION,JOHAL DAIRIES LTD,01/10/2020,H59620201002HJEBNWWLM-1,-7.52,CATERING - SCHOOLS-FOOD & DRINK SUPPLIES,OTHER NONDURABLE GOODS,GPC
WALSALL COUNCIL,http://opendatacommunities.org/id/metropolitan-district-council/walsall,31/12/2020,RESOURCES & TRANSFORMATION,BLAKEMORE FOODSERVICE,01/10/2020,H59620201002HXJYYTPZV-1,-29.70,CATERING - SCHOOLS-FOOD & DRINK SUPPLIES,CATERERS,GPC
WALSALL COUNCIL,http://opendatacommunities.org/id/metropolitan-district-council/walsall,31/12/2020,RESOURCES & TRANSFORMATION,JOHAL DAIRIES LTD,01/10/2020,H59620201002IEATWZKTT-1,19.08,CATERING - SCHOOLS-FOOD & DRINK SUPPLIES,OTHER NONDURABLE GOODS,GPC
WALSALL COUNCIL,http://opendatacommunities.org/id/metropolitan-district-council/walsall,31/12/2020,CHILDRENS SERVICES,247 CARS WILLENHALL LTD,01/10/2020,H59620201002IQLRDAGEY-1,26.80,SAFEGUARDING & FAMILY SUPPORT-SECTION 1/17CHILD CARE ACT 198,TAXI SERVICES,GPC
WALSALL COUNCIL,http://opendatacommunities.org/id/metropolitan-district-council/walsall,31/12/2020,CHILDRENS SERVICES,WALSALL COUNCIL,01/10/2020,H59620201002IXXZQOLYF-1,-6.00,SAFEGUARDING & FAMILY SUPPORT-FEES & LICENCES,GOVERNMENT SERVICES,GPC
WALSALL COUNCIL,http://opendatacommunities.org/id/metropolitan-district-council/walsall,31/12/2020,RESOURCES & TRANSFORMATION,JOHAL DAIRIES LTD,01/10/2020,H59620201002JADUYJYQJ-1,18.28,CATERING - SCHOOLS-FOOD & DRINK SUPPLIES,OTHER NONDURABLE GOODS,GPC
WALSALL COUNCIL,http://opendatacommunities.org/id/metropolitan-district-council/walsall,31/12/2020,RESOURCES & TRANSFORMATION,JOHAL DAIRIES LTD,01/10/2020,H59620201002JBJYDLSBS-1,14.10,CATERING - SCHOOLS-FOOD & DRINK SUPPLIES,OTHER NONDURABLE GOODS,GPC
WALSALL COUNCIL,http://opendatacommunities.org/id/metropolitan-district-council/walsall,31/12/2020,CHILDRENS SERVICES,SPORTSDIRECT.COM,01/10/2020,H59620201002JCBXBVNIK-1,60.99,P E DEPARTMENT-MATERIALS,SPORTING GOODS STORES,GPC
WALSALL COUNCIL,http://opendatacommunities.org/id/metropolitan-district-council/walsall,31/12/2020,RESOURCES & TRANSFORMATION,JOHAL DAIRIES LTD,01/10/2020,H59620201002JKNVIHCIM-1,172.00,CATERING - SCHOOLS-FOOD & DRINK SUPPLIES,OTHER NONDURABLE GOODS,GPC
WALSALL COUNCIL,http://opendatacommunities.org/id/metropolitan-district-council/walsall,31/12/2020,ADULT SOCIAL CARE,WWW.BANNERUK.COM,01/10/2020,H59620201002JQJFJXMVV-1,17.44,PRINTING SERVICES-STATIONERY & GENERAL OFFICE SU,"STATIONERY, OFFICE SUPPLIES AND WRITING PAPER",GPC
WALSALL COUNCIL,http://opendatacommunities.org/id/metropolitan-district-council/walsall,31/12/2020,RESOURCES & TRANSFORMATION,NOBISCO LIMITED,01/10/2020,H59620201002KBNHEILTJ-1,6.38,CATERING - SCHOOLS-FOOD & DRINK SUPPLIES,OTHER INDUSTRIAL SUPPLIES,GPC
WALSALL COUNCIL,http://opendatacommunities.org/id/metropolitan-district-council/walsall,31/12/2020,RESOURCES & TRANSFORMATION,BLAKEMORE FOODSERVICE,01/10/2020,H59620201002KJPHHIJXM-1,14.32,CATERING - SCHOOLS-FOOD & DRINK SUPPLIES,CATERERS,GPC
WALSALL COUNCIL,http://opendatacommunities.org/id/metropolitan-district-council/walsall,31/12/2020,RESOURCES & TRANSFORMATION,JOHAL DAIRIES LTD,01/10/2020,H59620201002KZRVQZPYV-1,26.82,CATERING - SCHOOLS-FOOD & DRINK SUPPLIES,OTHER NONDURABLE GOODS,GPC
WALSALL COUNCIL,http://opendatacommunities.org/id/metropolitan-district-council/walsall,31/12/2020,RESOURCES & TRANSFORMATION,JOHAL DAIRIES LTD,01/10/2020,H59620201002LJQXFTELP-1,22.04,CATERING - SCHOOLS-FOOD & DRINK SUPPLIES,OTHER NONDURABLE GOODS,GPC
WALSALL COUNCIL,http://opendatacommunities.org/id/metropolitan-district-council/walsall,31/12/2020,RESOURCES & TRANSFORMATION,BLAKEMORE FOODSERVICE,01/10/2020,H59620201002MDLCCOIHT-1,42.71,CATERING - SCHOOLS-FOOD & DRINK SUPPLIES,CATERERS,GPC
WALSALL COUNCIL,http://opendatacommunities.org/id/metropolitan-district-council/walsall,31/12/2020,RESOURCES & TRANSFORMATION,JOHAL DAIRIES LTD,01/10/2020,H59620201002MZTDSXXEU-1,14.96,CATERING - SCHOOLS-FOOD & DRINK SUPPLIES,OTHER NONDURABLE GOODS,GPC
WALSALL COUNCIL,http://opendatacommunities.org/id/metropolitan-district-council/walsall,31/12/2020,RESOURCES & TRANSFORMATION,JOHAL DAIRIES LTD,01/10/2020,H59620201002NGWIHIYGL-1,61.40,CATERING - SCHOOLS-FOOD & DRINK SUPPLIES,OTHER NONDURABLE GOODS,GPC
WALSALL COUNCIL,http://opendatacommunities.org/id/metropolitan-district-council/walsall,31/12/2020,CHILDRENS SERVICES,WWW.BANNERUK.COM,01/10/2020,H59620201002NHRTDMDLE-1,33.46,SAFEGUARDING & FAMILY SUPPORT-STATIONERY & GENERAL OFFICE SU,"STATIONERY, OFFICE SUPPLIES AND WRITING PAPER",GPC
WALSALL COUNCIL,http://opendatacommunities.org/id/metropolitan-district-council/walsall,31/12/2020,RESOURCES & TRANSFORMATION,BLAKEMORE FOODSERVICE,01/10/2020,H59620201002NMDXGSVWS-1,744.91,CATERING - SCHOOLS-FOOD & DRINK SUPPLIES,CATERERS,GPC
WALSALL COUNCIL,http://opendatacommunities.org/id/metropolitan-district-council/walsall,31/12/2020,RESOURCES & TRANSFORMATION,BLAKEMORE FOODSERVICE,01/10/2020,H59620201002NMDXGSVWS-2,7.77,CATERING - SCHOOLS-FOOD & DRINK SUPPLIES,CATERERS,GPC
WALSALL COUNCIL,http://opendatacommunities.org/id/metropolitan-district-council/walsall,31/12/2020,ECONOMY & ENVIRONMENT,AMAZON.CO.UK*1Z7TY8H95 AM,01/10/2020,H59620201002OIRJPOWUF-1,94.99,WALSALL ARENA AND ARTS CENTRE-STATIONERY & GENERAL OFFICE SU,MISCELLANEOUS AND SPECIALTY RETAIL STORES,GPC
WALSALL COUNCIL,http://opendatacommunities.org/id/metropolitan-district-council/walsall,31/12/2020,ECONOMY & ENVIRONMENT,AMAZON.CO.UK*1Z7TY8H95 AM,01/10/2020,H59620201002OIRJPOWUF-2,4.99,WALSALL ARENA AND ARTS CENTRE-POSTAGES & COURIER SERVICES,MISCELLANEOUS AND SPECIALTY RETAIL STORES,GPC
WALSALL COUNCIL,http://opendatacommunities.org/id/metropolitan-district-council/walsall,31/12/2020,CHILDRENS SERVICES,SS + JR JOHAL 31968,01/10/2020,H59620201002OYDEMGSVT-1,20.50,WALSALL CRISIS SUPPORT SCHEME-CRISIS SUPPORT PAYMENTS,MISCELLANEOUS FOOD STORES & CONVENIENCE STORES,GPC
WALSALL COUNCIL,http://opendatacommunities.org/id/metropolitan-district-council/walsall,31/12/2020,ECONOMY & ENVIRONMENT,WWW.STA.CO.UK,01/10/2020,H59620201002OYHUWBQCJ-1,92.00,WALSALL GALA CENTRE-FEES & LICENCES,OTHER RECREATION SERVICES,GPC
WALSALL COUNCIL,http://opendatacommunities.org/id/metropolitan-district-council/walsall,31/12/2020,RESOURCES & TRANSFORMATION,BLAKEMORE FOODSERVICE,01/10/2020,H59620201002OZJLRKDWD-1,209.37,CATERING - SCHOOLS-FOOD & DRINK SUPPLIES,CATERERS,GPC
WALSALL COUNCIL,http://opendatacommunities.org/id/metropolitan-district-council/walsall,31/12/2020,RESOURCES & TRANSFORMATION,BLAKEMORE FOODSERVICE,01/10/2020,H59620201002OZJLRKDWD-2,45.24,CATERING - SCHOOLS-FOOD & DRINK SUPPLIES,CATERERS,GPC
WALSALL COUNCIL,http://opendatacommunities.org/id/metropolitan-district-council/walsall,31/12/2020,RESOURCES & TRANSFORMATION,JOHAL DAIRIES LTD,01/10/2020,H59620201002PFEDVUSCL-1,60.52,CATERING - SCHOOLS-FOOD & DRINK SUPPLIES,OTHER NONDURABLE GOODS,GPC
WALSALL COUNCIL,http://opendatacommunities.org/id/metropolitan-district-council/walsall,31/12/2020,CHILDRENS SERVICES,AMZNMKTPLACE,01/10/2020,H59620201002PHQXLKMBK-1,98.89,E19-MATERIALS,MISCELLANEOUS AND SPECIALTY RETAIL STORES,GPC
WALSALL COUNCIL,http://opendatacommunities.org/id/metropolitan-district-council/walsall,31/12/2020,RESOURCES & TRANSFORMATION,JOHAL DAIRIES LTD,01/10/2020,H59620201002PIZGBNNYQ-1,65.69,CATERING - SCHOOLS-FOOD & DRINK SUPPLIES,OTHER NONDURABLE GOODS,GPC
WALSALL COUNCIL,http://opendatacommunities.org/id/metropolitan-district-council/walsall,31/12/2020,RESOURCES & TRANSFORMATION,JOHAL DAIRIES LTD,01/10/2020,H59620201002PWYNXMYUV-1,7.44,CATERING - SCHOOLS-FOOD & DRINK SUPPLIES,OTHER NONDURABLE GOODS,GPC
WALSALL COUNCIL,http://opendatacommunities.org/id/metropolitan-district-council/walsall,31/12/2020,ECONOMY & ENVIRONMENT,AMZNMKTPLACE,01/10/2020,H59620201002PZIGFVEDC-1,24.90,LIBRARY OPERATIONS CENTRAL-STATIONERY & GENERAL OFFICE SU,MISCELLANEOUS AND SPECIALTY RETAIL STORES,GPC
WALSALL COUNCIL,http://opendatacommunities.org/id/metropolitan-district-council/walsall,31/12/2020,RESOURCES & TRANSFORMATION,JOHAL DAIRIES LTD,01/10/2020,H59620201002QFCGYNQVR-1,95.78,CATERING - SCHOOLS-FOOD & DRINK SUPPLIES,OTHER NONDURABLE GOODS,GPC
WALSALL COUNCIL,http://opendatacommunities.org/id/metropolitan-district-council/walsall,31/12/2020,CHILDRENS SERVICES,WWW.MUDDYFACES.CO.UK,01/10/2020,H59620201002QKXBQQYTS-1,5.15,E19-LIBRARY BOOKS,CHILDRENS AND INFANTS WEAR STORES,GPC
WALSALL COUNCIL,http://opendatacommunities.org/id/metropolitan-district-council/walsall,31/12/2020,CHILDRENS SERVICES,WWW.MUDDYFACES.CO.UK,01/10/2020,H59620201002QKXBQQYTS-2,29.97,E19-LIBRARY BOOKS,CHILDRENS AND INFANTS WEAR STORES,GPC
WALSALL COUNCIL,http://opendatacommunities.org/id/metropolitan-district-council/walsall,31/12/2020,RESOURCES & TRANSFORMATION,WWW.BANNERUK.COM,01/10/2020,H59620201002QLGTDRSTU-1,0.53,CENTRALISED STATIONARY-STATIONERY & GENERAL OFFICE SU,"STATIONERY, OFFICE SUPPLIES AND WRITING PAPER",GPC
WALSALL COUNCIL,http://opendatacommunities.org/id/metropolitan-district-council/walsall,31/12/2020,CHILDRENS SERVICES,AMAZON.CO.UK*K88XI9MK5,01/10/2020,H59620201002QTLLGMBOY-1,95.84,ENGLISH / LIBRARY-MATERIALS,OTHER DIRECT MARKETING-OTHER DIRECT MARKETERS,GPC
WALSALL COUNCIL,http://opendatacommunities.org/id/metropolitan-district-council/walsall,31/12/2020,CHILDRENS SERVICES,METRO WALSALL,01/10/2020,H59620201002QTTIFFFXN-1,266.00,BED & BREAKFAST PAYMENTS-OFFICERS SUBSISTENCE EXPENSES,"EATING PLACES, RESTAURANTS",GPC
WALSALL COUNCIL,http://opendatacommunities.org/id/metropolitan-district-council/walsall,31/12/2020,ECONOMY & ENVIRONMENT,TOOLSTATION LTD,01/10/2020,H59620201002QWLVQSJKR-1,20.25,INFRASTRUCTURE MAINTENANCE-MATERIALS,LUMBER & BUILDING MATERIALS STORES,GPC
WALSALL COUNCIL,http://opendatacommunities.org/id/metropolitan-district-council/walsall,31/12/2020,RESOURCES & TRANSFORMATION,JOHAL DAIRIES LTD,01/10/2020,H59620201002SCSLUWUNT-1,28.48,CATERING - SCHOOLS-FOOD & DRINK SUPPLIES,OTHER NONDURABLE GOODS,GPC
WALSALL COUNCIL,http://opendatacommunities.org/id/metropolitan-district-council/walsall,31/12/2020,CHILDRENS SERVICES,AMZNMKTPLACE,01/10/2020,H59620201002SFUQKMSDG-1,23.98,ACCOMMODATION SERVICES MANAGEM-CLEANING MATERIALS,MISCELLANEOUS AND SPECIALTY RETAIL STORES,GPC
WALSALL COUNCIL,http://opendatacommunities.org/id/metropolitan-district-council/walsall,31/12/2020,RESOURCES & TRANSFORMATION,JOHAL DAIRIES LTD,01/10/2020,H59620201002SIVLBFQKH-1,52.40,CATERING - SCHOOLS-FOOD & DRINK SUPPLIES,OTHER NONDURABLE GOODS,GPC
WALSALL COUNCIL,http://opendatacommunities.org/id/metropolitan-district-council/walsall,31/12/2020,RESOURCES & TRANSFORMATION,WWW.BANNERUK.COM,01/10/2020,H59620201002SKWTOBQES-1,31.42,LAW LIBRARY-STATIONERY & GENERAL OFFICE SU,"STATIONERY, OFFICE SUPPLIES AND WRITING PAPER",GPC
WALSALL COUNCIL,http://opendatacommunities.org/id/metropolitan-district-council/walsall,31/12/2020,RESOURCES & TRANSFORMATION,JOHAL DAIRIES LTD,01/10/2020,H59620201002SVNSXPKBZ-1,22.44,CATERING - SCHOOLS-FOOD & DRINK SUPPLIES,OTHER NONDURABLE GOODS,GPC
WALSALL COUNCIL,http://opendatacommunities.org/id/metropolitan-district-council/walsall,31/12/2020,RESOURCES & TRANSFORMATION,NOBISCO LIMITED,01/10/2020,H59620201002SXUOLXJXW-1,24.59,CATERING - SCHOOLS-FOOD & DRINK SUPPLIES,OTHER INDUSTRIAL SUPPLIES,GPC
WALSALL COUNCIL,http://opendatacommunities.org/id/metropolitan-district-council/walsall,31/12/2020,RESOURCES & TRANSFORMATION,BLAKEMORE FOODSERVICE,01/10/2020,H59620201002TGHTJKBEL-1,-14.94,CATERING - SCHOOLS-FOOD & DRINK SUPPLIES,CATERERS,GPC
WALSALL COUNCIL,http://opendatacommunities.org/id/metropolitan-district-council/walsall,31/12/2020,RESOURCES & TRANSFORMATION,JOHAL DAIRIES LTD,01/10/2020,H59620201002TLMHNVORO-1,47.00,CATERING - SCHOOLS-FOOD & DRINK SUPPLIES,OTHER NONDURABLE GOODS,GPC
WALSALL COUNCIL,http://opendatacommunities.org/id/metropolitan-district-council/walsall,31/12/2020,RESOURCES & TRANSFORMATION,BLAKEMORE FOODSERVICE,01/10/2020,H59620201002TXEEWDQQH-1,248.21,CATERING - SCHOOLS-FOOD & DRINK SUPPLIES,CATERERS,GPC
WALSALL COUNCIL,http://opendatacommunities.org/id/metropolitan-district-council/walsall,31/12/2020,RESOURCES & TRANSFORMATION,BLAKEMORE FOODSERVICE,01/10/2020,H59620201002TXEEWDQQH-2,36.19,CATERING - SCHOOLS-FOOD & DRINK SUPPLIES,CATERERS,GPC
WALSALL COUNCIL,http://opendatacommunities.org/id/metropolitan-district-council/walsall,31/12/2020,RESOURCES & TRANSFORMATION,BLAKEMORE FOODSERVICE,01/10/2020,H59620201002UANSWBGKI-1,186.87,CATERING - SCHOOLS-FOOD & DRINK SUPPLIES,CATERERS,GPC
WALSALL COUNCIL,http://opendatacommunities.org/id/metropolitan-district-council/walsall,31/12/2020,RESOURCES & TRANSFORMATION,JOHAL DAIRIES LTD,01/10/2020,H59620201002UJSXKZROY-1,37.60,CATERING - SCHOOLS-FOOD & DRINK SUPPLIES,OTHER NONDURABLE GOODS,GPC
WALSALL COUNCIL,http://opendatacommunities.org/id/metropolitan-district-council/walsall,31/12/2020,RESOURCES & TRANSFORMATION,JOHAL DAIRIES LTD,01/10/2020,H59620201002UJWFJGZIS-1,132.50,CATERING - SCHOOLS-FOOD & DRINK SUPPLIES,OTHER NONDURABLE GOODS,GPC
WALSALL COUNCIL,http://opendatacommunities.org/id/metropolitan-district-council/walsall,31/12/2020,RESOURCES & TRANSFORMATION,WWW.OPUSENERGY.COM,01/10/2020,H59620201002ULNLCGSTG-1,41.49,YEI IMPACT OVERHEADS-OTHER ENERGY COSTS,"UTILITIES - ELECTRIC, GAS, SANITARY & WATER",GPC
WALSALL COUNCIL,http://opendatacommunities.org/id/metropolitan-district-council/walsall,31/12/2020,RESOURCES & TRANSFORMATION,BLAKEMORE FOODSERVICE,01/10/2020,H59620201002UMJUQUFAQ-1,85.78,CATERING - SCHOOLS-FOOD & DRINK SUPPLIES,CATERERS,GPC
WALSALL COUNCIL,http://opendatacommunities.org/id/metropolitan-district-council/walsall,31/12/2020,RESOURCES & TRANSFORMATION,WWW.SCC.COM,01/10/2020,H59620201002USMDYUSEL-1,793.41,RECHARGEABLE EQUIPMENT-COMPUTER EQUIPMENT,"COMPUTERS, COMPUTER PERIPHERAL EQUIPMENT, SOFTWARE",GPC
WALSALL COUNCIL,http://opendatacommunities.org/id/metropolitan-district-council/walsall,31/12/2020,RESOURCES & TRANSFORMATION,BLAKEMORE FOODSERVICE,01/10/2020,H59620201002UXLVPCWHU-1,100.22,CATERING - SCHOOLS-FOOD & DRINK SUPPLIES,CATERERS,GPC
WALSALL COUNCIL,http://opendatacommunities.org/id/metropolitan-district-council/walsall,31/12/2020,RESOURCES & TRANSFORMATION,BLAKEMORE FOODSERVICE,01/10/2020,H59620201002UXLVPCWHU-2,84.21,CATERING - SCHOOLS-FOOD & DRINK SUPPLIES,CATERERS,GPC
WALSALL COUNCIL,http://opendatacommunities.org/id/metropolitan-district-council/walsall,31/12/2020,RESOURCES & TRANSFORMATION,BLAKEMORE FOODSERVICE,01/10/2020,H59620201002UYIQFTUCD-1,178.94,CATERING - SCHOOLS-FOOD & DRINK SUPPLIES,CATERERS,GPC
WALSALL COUNCIL,http://opendatacommunities.org/id/metropolitan-district-council/walsall,31/12/2020,RESOURCES & TRANSFORMATION,BLAKEMORE FOODSERVICE,01/10/2020,H59620201002UYIQFTUCD-2,127.30,CATERING - SCHOOLS-FOOD & DRINK SUPPLIES,CATERERS,GPC
WALSALL COUNCIL,http://opendatacommunities.org/id/metropolitan-district-council/walsall,31/12/2020,RESOURCES & TRANSFORMATION,BLAKEMORE FOODSERVICE,01/10/2020,H59620201002VKHBZYWXP-1,271.55,CATERING - SCHOOLS-FOOD & DRINK SUPPLIES,CATERERS,GPC
WALSALL COUNCIL,http://opendatacommunities.org/id/metropolitan-district-council/walsall,31/12/2020,RESOURCES & TRANSFORMATION,BLAKEMORE FOODSERVICE,01/10/2020,H59620201002VKHBZYWXP-2,18.09,CATERING - SCHOOLS-FOOD & DRINK SUPPLIES,CATERERS,GPC
WALSALL COUNCIL,http://opendatacommunities.org/id/metropolitan-district-council/walsall,31/12/2020,RESOURCES & TRANSFORMATION,JOHAL DAIRIES LTD,01/10/2020,H59620201002VWTBVFLZK-1,16.80,CATERING - SCHOOLS-FOOD & DRINK SUPPLIES,OTHER NONDURABLE GOODS,GPC
WALSALL COUNCIL,http://opendatacommunities.org/id/metropolitan-district-council/walsall,31/12/2020,RESOURCES & TRANSFORMATION,ARTHUR BRETT CATER,01/10/2020,H59620201002WDPVVGNDM-1,3.08,CATERING - SCHOOLS-FOOD & DRINK SUPPLIES,MISCELLANEOUS FOOD STORES & CONVENIENCE STORES,GPC
WALSALL COUNCIL,http://opendatacommunities.org/id/metropolitan-district-council/walsall,31/12/2020,CHILDRENS SERVICES,PAYPAL *EUROFFICELT,01/10/2020,H59620201002WRWKUVEMR-1,85.00,YEAR 5 / 6-MATERIALS,"OFFICE, SCHOOL SUPPLY, AND STATIONERY STORES",GPC
WALSALL COUNCIL,http://opendatacommunities.org/id/metropolitan-district-council/walsall,31/12/2020,CHILDRENS SERVICES,LIFE,01/10/2020,H59620201002XCCJRLMER-1,74.94,SAFEGUARDING & FAMILY SUPPORT-ACCOMMODATION AND RELATED COST,"ORGANIZATIONS, CHARITABLE AND SOCIAL SERVICE",GPC
WALSALL COUNCIL,http://opendatacommunities.org/id/metropolitan-district-council/walsall,31/12/2020,CHILDRENS SERVICES,ETSY.COM GETNATURALLYC,01/10/2020,H59620201002XNEVGFTXM-1,12.00,E19-LIBRARY BOOKS,MISCELLANEOUS ACCESSORY AND APPAREL STORES,GPC
WALSALL COUNCIL,http://opendatacommunities.org/id/metropolitan-district-council/walsall,31/12/2020,RESOURCES & TRANSFORMATION,JOHAL DAIRIES LTD,01/10/2020,H59620201002XPHCDJYFR-1,16.80,CATERING - SCHOOLS-FOOD & DRINK SUPPLIES,OTHER NONDURABLE GOODS,GPC
WALSALL COUNCIL,http://opendatacommunities.org/id/metropolitan-district-council/walsall,31/12/2020,CHILDRENS SERVICES,FACEBK CWHY3Y29Q2,01/10/2020,H59620201002XYLVEDMZI-1,20.00,FAMILY PLACEMENTS-PUBLICITY & ADVERTISING (NON S,ADVERTISING SERVICES,GPC
WALSALL COUNCIL,http://opendatacommunities.org/id/metropolitan-district-council/walsall,31/12/2020,RESOURCES & TRANSFORMATION,JOHAL DAIRIES LTD,01/10/2020,H59620201002YHSYQGLBN-1,28.48,CATERING - SCHOOLS-FOOD & DRINK SUPPLIES,OTHER NONDURABLE GOODS,GPC
WALSALL COUNCIL,http://opendatacommunities.org/id/metropolitan-district-council/walsall,31/12/2020,RESOURCES & TRANSFORMATION,NOBISCO LIMITED,01/10/2020,H59620201002YRXQMLSKY-1,73.20,CATERING - SCHOOLS-FOOD & DRINK SUPPLIES,OTHER INDUSTRIAL SUPPLIES,GPC
WALSALL COUNCIL,http://opendatacommunities.org/id/metropolitan-district-council/walsall,31/12/2020,RESOURCES & TRANSFORMATION,BLAKEMORE FOODSERVICE,01/10/2020,H59620201002YUWVJILQS-1,532.86,CATERING - SCHOOLS-FOOD & DRINK SUPPLIES,CATERERS,GPC
WALSALL COUNCIL,http://opendatacommunities.org/id/metropolitan-district-council/walsall,31/12/2020,RESOURCES & TRANSFORMATION,BLAKEMORE FOODSERVICE,01/10/2020,H59620201002YUWVJILQS-2,27.14,CATERING - SCHOOLS-FOOD & DRINK SUPPLIES,CATERERS,GPC
WALSALL COUNCIL,http://opendatacommunities.org/id/metropolitan-district-council/walsall,31/12/2020,ECONOMY & ENVIRONMENT,SAINSBURYS PETROL,01/10/2020,H59620201002ZNUQTHUOO-1,14.34,MUSIC HUB FOREST ARTS-FUEL FOR VEHICLES,SERVICE STATIONS,GPC
WALSALL COUNCIL,http://opendatacommunities.org/id/metropolitan-district-council/walsall,31/12/2020,RESOURCES & TRANSFORMATION,CHICKEN JOES LTD,02/10/2020,H59620201003AOQAXMRXM-1,74.26,CATERING - SCHOOLS-FOOD & DRINK SUPPLIES,CATERERS,GPC
WALSALL COUNCIL,http://opendatacommunities.org/id/metropolitan-district-council/walsall,31/12/2020,RESOURCES & TRANSFORMATION,CHICKEN JOES LTD,02/10/2020,H59620201003ASEGYZPPE-1,24.42,CATERING - SCHOOLS-FOOD & DRINK SUPPLIES,CATERERS,GPC
WALSALL COUNCIL,http://opendatacommunities.org/id/metropolitan-district-council/walsall,31/12/2020,CHILDRENS SERVICES,NATIONAL ED GROUP LTD,02/10/2020,H59620201003BCLNGUOUR-1,60.00,MEADOW VIEW JMI PRIMARY SCHOOL-EXTERNAL TRAINING,OTHER SCHOOLS AND EDUCATIONAL SERVICES,GPC
WALSALL COUNCIL,http://opendatacommunities.org/id/metropolitan-district-council/walsall,31/12/2020,CHILDRENS SERVICES,METRO WALSALL,02/10/2020,H59620201003BGDJWXBDT-1,266.00,BED & BREAKFAST PAYMENTS-HOTEL ACCOMMODATION-EMPLOYEES,"EATING PLACES, RESTAURANTS",GPC
WALSALL COUNCIL,http://opendatacommunities.org/id/metropolitan-district-council/walsall,31/12/2020,RESOURCES & TRANSFORMATION,CHICKEN JOES LTD,02/10/2020,H59620201003BWTCYVZXO-1,93.62,CATERING - SCHOOLS-FOOD & DRINK SUPPLIES,CATERERS,GPC
WALSALL COUNCIL,http://opendatacommunities.org/id/metropolitan-district-council/walsall,31/12/2020,CHILDRENS SERVICES,HOTEL ON BOOKING.COM,02/10/2020,H59620201003CRJWRIYXK-1,204.00,SAFEGUARDING & FAMILY SUPPORT-HOTEL ACCOMMODATION-EMPLOYEES,"HOTELS, MOTELS, RESORTS",GPC
WALSALL COUNCIL,http://opendatacommunities.org/id/metropolitan-district-council/walsall,31/12/2020,ECONOMY & ENVIRONMENT,AMZNMKTPLACE,02/10/2020,H59620201003CRUZEDDXJ-1,173.52,OAK PARK-STATIONERY & GENERAL OFFICE SU,MISCELLANEOUS AND SPECIALTY RETAIL STORES,GPC
WALSALL COUNCIL,http://opendatacommunities.org/id/metropolitan-district-council/walsall,31/12/2020,RESOURCES & TRANSFORMATION,CHICKEN JOES LTD,02/10/2020,H59620201003DJQSYIDXG-1,101.67,CATERING - SCHOOLS-FOOD & DRINK SUPPLIES,CATERERS,GPC
WALSALL COUNCIL,http://opendatacommunities.org/id/metropolitan-district-council/walsall,31/12/2020,RESOURCES & TRANSFORMATION,CHICKEN JOES LTD,02/10/2020,H59620201003DQBFYCUFO-1,43.91,CATERING - SCHOOLS-FOOD & DRINK SUPPLIES,CATERERS,GPC
WALSALL COUNCIL,http://opendatacommunities.org/id/metropolitan-district-council/walsall,31/12/2020,CHILDRENS SERVICES,POST OFFICE COUNTER,02/10/2020,H59620201003DWKCQOATF-1,11.62,LOOKED AFTER CHILDRENS SOCIAL -POSTAGES & COURIER SERVICES,POSTAL SERVICES - GOVERNMENT ONLY,GPC
WALSALL COUNCIL,http://opendatacommunities.org/id/metropolitan-district-council/walsall,31/12/2020,RESOURCES & TRANSFORMATION,CHICKEN JOES LTD,02/10/2020,H59620201003DWXBXFJGS-1,48.00,CATERING - SCHOOLS-FOOD & DRINK SUPPLIES,CATERERS,GPC
WALSALL COUNCIL,http://opendatacommunities.org/id/metropolitan-district-council/walsall,31/12/2020,CHILDRENS SERVICES,WALSALL COUNCIL,02/10/2020,H59620201003EFRCLVUFO-1,22.50,YOUNG PERSONS HOMELESS SERVICE-FEES & LICENCES,GOVERNMENT SERVICES,GPC
WALSALL COUNCIL,http://opendatacommunities.org/id/metropolitan-district-council/walsall,31/12/2020,CHILDRENS SERVICES,ALLPAY *WHG,02/10/2020,H59620201003FCMGKQJDW-1,80.04,WALSALL CRISIS SUPPORT SCHEME-CRISIS SUPPORT PAYMENTS,"ORGANIZATIONS, CHARITABLE AND SOCIAL SERVICE",GPC
WALSALL COUNCIL,http://opendatacommunities.org/id/metropolitan-district-council/walsall,31/12/2020,RESOURCES & TRANSFORMATION,NOBISCO LIMITED,02/10/2020,H59620201003FFYQLTTJW-1,61.99,CATERING - SCHOOLS-FOOD & DRINK SUPPLIES,OTHER INDUSTRIAL SUPPLIES,GPC
WALSALL COUNCIL,http://opendatacommunities.org/id/metropolitan-district-council/walsall,31/12/2020,CHILDRENS SERVICES,B&M 596 - EVESHAM,02/10/2020,H59620201003GALVCKSMT-1,67.98,TRANSITION AND LEAVING CARE PL-CARE LEAVERS MTCE PAYMENTS,MISCELLANEOUS GENERAL MERCHANDISE,GPC
WALSALL COUNCIL,http://opendatacommunities.org/id/metropolitan-district-council/walsall,31/12/2020,RESOURCES & TRANSFORMATION,CHICKEN JOES LTD,02/10/2020,H59620201003GOVDUXYVQ-1,40.05,CATERING - SCHOOLS-FOOD & DRINK SUPPLIES,CATERERS,GPC
WALSALL COUNCIL,http://opendatacommunities.org/id/metropolitan-district-council/walsall,31/12/2020,ECONOMY & ENVIRONMENT,AMZNMKTPLACE,02/10/2020,H59620201003GYMHQXCTI-1,5.99,LIBRARY OPERATIONS CENTRAL-STATIONERY & GENERAL OFFICE SU,MISCELLANEOUS AND SPECIALTY RETAIL STORES,GPC
WALSALL COUNCIL,http://opendatacommunities.org/id/metropolitan-district-council/walsall,31/12/2020,RESOURCES & TRANSFORMATION,CHICKEN JOES LTD,02/10/2020,H59620201003GZVVBDGWK-1,33.57,CATERING - SCHOOLS-FOOD & DRINK SUPPLIES,CATERERS,GPC
WALSALL COUNCIL,http://opendatacommunities.org/id/metropolitan-district-council/walsall,31/12/2020,CHILDRENS SERVICES,TESCO STORES 5014,02/10/2020,H59620201003HCERZAAZP-1,116.00,TRANSITION AND LEAVING CARE PL-CARE LEAVERS MTCE PAYMENTS,GROCERY STORES AND SUPERMARKETS,GPC
WALSALL COUNCIL,http://opendatacommunities.org/id/metropolitan-district-council/walsall,31/12/2020,RESOURCES & TRANSFORMATION,CHICKEN JOES LTD,02/10/2020,H59620201003HJXLYJUVQ-1,43.64,CATERING - SCHOOLS-FOOD & DRINK SUPPLIES,CATERERS,GPC
WALSALL COUNCIL,http://opendatacommunities.org/id/metropolitan-district-council/walsall,31/12/2020,RESOURCES & TRANSFORMATION,CHICKEN JOES LTD,02/10/2020,H59620201003IKTIRLQSJ-1,149.76,CATERING - SCHOOLS-FOOD & DRINK SUPPLIES,CATERERS,GPC
WALSALL COUNCIL,http://opendatacommunities.org/id/metropolitan-district-council/walsall,31/12/2020,ECONOMY & ENVIRONMENT,AMZNMKTPLACE,02/10/2020,H59620201003IOUINQUCO-1,2.40,LIBRARY OPERATIONS CENTRAL-STATIONERY & GENERAL OFFICE SU,MISCELLANEOUS AND SPECIALTY RETAIL STORES,GPC
WALSALL COUNCIL,http://opendatacommunities.org/id/metropolitan-district-council/walsall,31/12/2020,CHILDRENS SERVICES,TRAVELODGE GB0000,02/10/2020,H59620201003JTNHTOGDF-1,143.95,BED & BREAKFAST PAYMENTS-BED & BREAKFAST PAYMENTS,TRAVELODGE,GPC
WALSALL COUNCIL,http://opendatacommunities.org/id/metropolitan-district-council/walsall,31/12/2020,CHILDRENS SERVICES,TRAVELODGE GB0000,02/10/2020,H59620201003JTNHTOGDF-2,2.87,BED & BREAKFAST PAYMENTS-BED & BREAKFAST PAYMENTS,TRAVELODGE,GPC
WALSALL COUNCIL,http://opendatacommunities.org/id/metropolitan-district-council/walsall,31/12/2020,ECONOMY & ENVIRONMENT,DVSA,02/10/2020,H59620201003KVMGNPBDT-1,820.00,FLEET-VEHICLE TESTING STATION MATERI,GOVERNMENT SERVICES,GPC
WALSALL COUNCIL,http://opendatacommunities.org/id/metropolitan-district-council/walsall,31/12/2020,ECONOMY & ENVIRONMENT,CONSTELLATION LIGHTING LI,02/10/2020,H59620201003LKSIDNLWT-1,240.00,WALSALL GALA CENTRE-STATIONERY & GENERAL OFFICE SU,MISCELLANEOUS AND SPECIALTY RETAIL STORES,GPC
WALSALL COUNCIL,http://opendatacommunities.org/id/metropolitan-district-council/walsall,31/12/2020,RESOURCES & TRANSFORMATION,CHICKEN JOES LTD,02/10/2020,H59620201003LRMQRPUPN-1,90.12,CATERING - SCHOOLS-FOOD & DRINK SUPPLIES,CATERERS,GPC
WALSALL COUNCIL,http://opendatacommunities.org/id/metropolitan-district-council/walsall,31/12/2020,ECONOMY & ENVIRONMENT,J2 EFAX PLUS SERVICE,02/10/2020,H59620201003MDXHWGSXC-1,19.20,REGISTRAR-COMPUTER EQUIPMENT,DIRECT MARKETING CONTINUITY SUBSCRIPTION MERCHANTS,GPC
WALSALL COUNCIL,http://opendatacommunities.org/id/metropolitan-district-council/walsall,31/12/2020,ECONOMY & ENVIRONMENT,L & S ENGINEERS LTD,02/10/2020,H59620201003MLGYLVUAW-1,50.69,STREET CLEANSING-MATERIALS,HARDWARE STORES,GPC
WALSALL COUNCIL,http://opendatacommunities.org/id/metropolitan-district-council/walsall,31/12/2020,ECONOMY & ENVIRONMENT,WETRANSFER,02/10/2020,H59620201003MZNLJEELW-1,9.16,NAG - TEMPORARY EXHIBITIONS-POSTAGES & COURIER SERVICES,"COMPUTER PROGRAM, SYSTEM DESIGN",GPC
WALSALL COUNCIL,http://opendatacommunities.org/id/metropolitan-district-council/walsall,31/12/2020,CHILDRENS SERVICES,AMZNMKTPLACE,02/10/2020,H59620201003NJFKOOKMX-1,23.99,ACCOMMODATION SERVICES MANAGEM-PURCHASE OF FURNITURE & EQUIPM,MISCELLANEOUS AND SPECIALTY RETAIL STORES,GPC
WALSALL COUNCIL,http://opendatacommunities.org/id/metropolitan-district-council/walsall,31/12/2020,ECONOMY & ENVIRONMENT,FACEBK *XEHZ2W6RX2,02/10/2020,H59620201003OLFYFBCVV-1,11.01,DARLASTON LEISURE CENTRE-MATERIALS,ADVERTISING SERVICES,GPC
WALSALL COUNCIL,http://opendatacommunities.org/id/metropolitan-district-council/walsall,31/12/2020,ECONOMY & ENVIRONMENT,FACEBK *XEHZ2W6RX2,02/10/2020,H59620201003OLFYFBCVV-2,11.01,OAK PARK-MATERIALS,ADVERTISING SERVICES,GPC
WALSALL COUNCIL,http://opendatacommunities.org/id/metropolitan-district-council/walsall,31/12/2020,ECONOMY & ENVIRONMENT,FACEBK *XEHZ2W6RX2,02/10/2020,H59620201003OLFYFBCVV-3,11.01,BLOXWICH LEISURE CENTRE-MATERIALS,ADVERTISING SERVICES,GPC
WALSALL COUNCIL,http://opendatacommunities.org/id/metropolitan-district-council/walsall,31/12/2020,ECONOMY & ENVIRONMENT,FACEBK *XEHZ2W6RX2,02/10/2020,H59620201003OLFYFBCVV-4,10.99,WALSALL GALA CENTRE-MATERIALS,ADVERTISING SERVICES,GPC
WALSALL COUNCIL,http://opendatacommunities.org/id/metropolitan-district-council/walsall,31/12/2020,RESOURCES & TRANSFORMATION,CHICKEN JOES LTD,02/10/2020,H59620201003ORIDDAHDI-1,45.73,CATERING - SCHOOLS-FOOD & DRINK SUPPLIES,CATERERS,GPC
WALSALL COUNCIL,http://opendatacommunities.org/id/metropolitan-district-council/walsall,31/12/2020,RESOURCES & TRANSFORMATION,CHICKEN JOES LTD,02/10/2020,H59620201003PIPNMLSOO-1,113.34,CATERING - SCHOOLS-FOOD & DRINK SUPPLIES,CATERERS,GPC
WALSALL COUNCIL,http://opendatacommunities.org/id/metropolitan-district-council/walsall,31/12/2020,RESOURCES & TRANSFORMATION,CHICKEN JOES LTD,02/10/2020,H59620201003QDPJOMLYG-1,73.48,CATERING - SCHOOLS-FOOD & DRINK SUPPLIES,CATERERS,GPC
WALSALL COUNCIL,http://opendatacommunities.org/id/metropolitan-district-council/walsall,31/12/2020,CHILDRENS SERVICES,WALSALL COUNCIL,02/10/2020,H59620201003RTEHMOVUB-1,17.00,SAFEGUARDING & FAMILY SUPPORT-FEES & LICENCES,GOVERNMENT SERVICES,GPC
WALSALL COUNCIL,http://opendatacommunities.org/id/metropolitan-district-council/walsall,31/12/2020,RESOURCES & TRANSFORMATION,POST OFFICE COUNTER,02/10/2020,H59620201003RZBKZRWCC-1,1.19,ADMIN SUPPORT-POSTAGES & COURIER SERVICES,POSTAL SERVICES - GOVERNMENT ONLY,GPC
WALSALL COUNCIL,http://opendatacommunities.org/id/metropolitan-district-council/walsall,31/12/2020,RESOURCES & TRANSFORMATION,CHICKEN JOES LTD,02/10/2020,H59620201003SAKYRUYKF-1,32.23,CATERING - SCHOOLS-FOOD & DRINK SUPPLIES,CATERERS,GPC
WALSALL COUNCIL,http://opendatacommunities.org/id/metropolitan-district-council/walsall,31/12/2020,CHILDRENS SERVICES,ASDA SUPERSTORE,02/10/2020,H59620201003SGWTEGEGF-1,7.60,WALSALL WOOD PRIMARY SCHOOL-FOOD & DRINK SUPPLIES,GROCERY STORES AND SUPERMARKETS,GPC
WALSALL COUNCIL,http://opendatacommunities.org/id/metropolitan-district-council/walsall,31/12/2020,RESOURCES & TRANSFORMATION,NOBISCO LIMITED,02/10/2020,H59620201003SKBEVRZQG-1,15.56,CATERING - SCHOOLS-FOOD & DRINK SUPPLIES,OTHER INDUSTRIAL SUPPLIES,GPC
WALSALL COUNCIL,http://opendatacommunities.org/id/metropolitan-district-council/walsall,31/12/2020,CHILDRENS SERVICES,AMAZON.CO.UK*DR9MS53T5,02/10/2020,H59620201003SMIAELPIS-1,189.99,E19-LIBRARY BOOKS,OTHER DIRECT MARKETING-OTHER DIRECT MARKETERS,GPC
WALSALL COUNCIL,http://opendatacommunities.org/id/metropolitan-district-council/walsall,31/12/2020,CHILDRENS SERVICES,WWW.BANNERUK.COM,02/10/2020,H59620201003SNXOAVCCS-1,33.15,SAFEGUARDING & FAMILY SUPPORT-STATIONERY & GENERAL OFFICE SU,"STATIONERY, OFFICE SUPPLIES AND WRITING PAPER",GPC
WALSALL COUNCIL,http://opendatacommunities.org/id/metropolitan-district-council/walsall,31/12/2020,RESOURCES & TRANSFORMATION,CHICKEN JOES LTD,02/10/2020,H59620201003SWOSFOGTV-1,33.57,CATERING - SCHOOLS-FOOD & DRINK SUPPLIES,CATERERS,GPC
WALSALL COUNCIL,http://opendatacommunities.org/id/metropolitan-district-council/walsall,31/12/2020,CHILDRENS SERVICES,BRAMBLE,02/10/2020,H59620201003TDPBKJLXY-1,360.00,VIRTUAL SCHOOL - CENTRAL PUPIL-OTHER EXPENSES,COMPUTER SOFTWARE STORES,GPC
WALSALL COUNCIL,http://opendatacommunities.org/id/metropolitan-district-council/walsall,31/12/2020,CHILDRENS SERVICES,ARGOS LTD,02/10/2020,H59620201003TFELCFSTR-1,189.99,TRANSITION AND LEAVING CARE PL-CARE LEAVERS MTCE PAYMENTS,DISCOUNT STORES,GPC
WALSALL COUNCIL,http://opendatacommunities.org/id/metropolitan-district-council/walsall,31/12/2020,CHILDRENS SERVICES,ARGOS LTD,02/10/2020,H59620201003UBYIQSRGO-1,169.99,TRANSITION AND LEAVING CARE PL-CARE LEAVERS MTCE PAYMENTS,DISCOUNT STORES,GPC
WALSALL COUNCIL,http://opendatacommunities.org/id/metropolitan-district-council/walsall,31/12/2020,CHILDRENS SERVICES,AMZNMKTPLACE,02/10/2020,H59620201003UCWBWPAKD-1,31.62,ADMINISTRATIVE SUPPLIES-MATERIALS,MISCELLANEOUS AND SPECIALTY RETAIL STORES,GPC
WALSALL COUNCIL,http://opendatacommunities.org/id/metropolitan-district-council/walsall,31/12/2020,CHILDRENS SERVICES,PAYPAL *PRIMARYTEAC,02/10/2020,H59620201003UWUPTUDVP-1,96.00,YEAR 3 / 4-MATERIALS,OTHER SCHOOLS AND EDUCATIONAL SERVICES,GPC
WALSALL COUNCIL,http://opendatacommunities.org/id/metropolitan-district-council/walsall,31/12/2020,CHILDRENS SERVICES,123 REG LTD,02/10/2020,H59620201003VDWYKJKXI-1,11.99,CADMUS FEDERATION-MATERIALS,DIRECT MARKETING CONTINUITY SUBSCRIPTION MERCHANTS,GPC
WALSALL COUNCIL,http://opendatacommunities.org/id/metropolitan-district-council/walsall,31/12/2020,RESOURCES & TRANSFORMATION,CHICKEN JOES LTD,02/10/2020,H59620201003VKKIXWCRG-1,36.00,CATERING - SCHOOLS-FOOD & DRINK SUPPLIES,CATERERS,GPC
WALSALL COUNCIL,http://opendatacommunities.org/id/metropolitan-district-council/walsall,31/12/2020,CHILDRENS SERVICES,HTTP://WWW.FORWARDPRODUC,02/10/2020,H59620201003VLNJBFISR-1,95.88,ADMINISTRATIVE SUPPLIES-MATERIALS,"STATIONERY, OFFICE SUPPLIES AND WRITING PAPER",GPC
WALSALL COUNCIL,http://opendatacommunities.org/id/metropolitan-district-council/walsall,31/12/2020,RESOURCES & TRANSFORMATION,CHICKEN JOES LTD,02/10/2020,H59620201003VSYDKXIJF-1,44.39,CATERING - SCHOOLS-FOOD & DRINK SUPPLIES,CATERERS,GPC
WALSALL COUNCIL,http://opendatacommunities.org/id/metropolitan-district-council/walsall,31/12/2020,CHILDRENS SERVICES,METRO WALSALL,02/10/2020,H59620201003WBFHPOWAO-1,266.00,BED & BREAKFAST PAYMENTS-HOTEL ACCOMMODATION-EMPLOYEES,"EATING PLACES, RESTAURANTS",GPC
WALSALL COUNCIL,http://opendatacommunities.org/id/metropolitan-district-council/walsall,31/12/2020,RESOURCES & TRANSFORMATION,WWW.SCC.COM,02/10/2020,H59620201003WHRNXKHOT-1,214.57,RECHARGEABLE EQUIPMENT-COMPUTER EQUIPMENT,"COMPUTERS, COMPUTER PERIPHERAL EQUIPMENT, SOFTWARE",GPC
WALSALL COUNCIL,http://opendatacommunities.org/id/metropolitan-district-council/walsall,31/12/2020,CHILDRENS SERVICES,PARTRIDGE & PRINT,02/10/2020,H59620201003WTIQLHHJE-1,15.60,FAMILY PLACEMENTS-PUBLICITY & ADVERTISING (NON S,OTHER SCHOOLS AND EDUCATIONAL SERVICES,GPC
WALSALL COUNCIL,http://opendatacommunities.org/id/metropolitan-district-council/walsall,31/12/2020,CHILDRENS SERVICES,PARTRIDGE & PRINT,02/10/2020,H59620201003WTIQLHHJE-2,382.50,FAMILY PLACEMENTS-PUBLICITY & ADVERTISING (NON S,OTHER SCHOOLS AND EDUCATIONAL SERVICES,GPC
WALSALL COUNCIL,http://opendatacommunities.org/id/metropolitan-district-council/walsall,31/12/2020,RESOURCES & TRANSFORMATION,POST OFFICE COUNTER,02/10/2020,H59620201003XEAODYHRF-1,20.70,ADMIN SUPPORT-POSTAGES & COURIER SERVICES,POSTAL SERVICES - GOVERNMENT ONLY,GPC
WALSALL COUNCIL,http://opendatacommunities.org/id/metropolitan-district-council/walsall,31/12/2020,CHILDRENS SERVICES,WWW.SLINGSBY.COM,02/10/2020,H59620201003XKLGXCGVW-1,62.35,MEADOW VIEW JMI PRIMARY SCHOOL-OPERATIONAL MAINTENANCE,OTHER INDUSTRIAL SUPPLIES,GPC
WALSALL COUNCIL,http://opendatacommunities.org/id/metropolitan-district-council/walsall,31/12/2020,RESOURCES & TRANSFORMATION,VIRGIN MEDIA PYMTS,02/10/2020,H59620201003XRCNCJSJF-1,21.47,CHARGING & PAYMENTS-SUBSCRIPTIONS,TELECOMMUNICATION SERVICES,GPC
WALSALL COUNCIL,http://opendatacommunities.org/id/metropolitan-district-council/walsall,31/12/2020,CHILDRENS SERVICES,THE RANGE - EVESHA,02/10/2020,H59620201003XTRNGMDOF-1,345.39,TRANSITION AND LEAVING CARE PL-CARE LEAVERS MTCE PAYMENTS,DEPARTMENT STORES,GPC
WALSALL COUNCIL,http://opendatacommunities.org/id/metropolitan-district-council/walsall,31/12/2020,RESOURCES & TRANSFORMATION,CHICKEN JOES LTD,02/10/2020,H59620201003XWCICFWQU-1,67.14,CATERING - SCHOOLS-FOOD & DRINK SUPPLIES,CATERERS,GPC
WALSALL COUNCIL,http://opendatacommunities.org/id/metropolitan-district-council/walsall,31/12/2020,CHILDRENS SERVICES,AMZNMKTPLACE,02/10/2020,H59620201003YBKPFQMLU-1,71.82,VIRTUAL SCHOOL - CENTRAL PUPIL-OTHER EXPENSES,MISCELLANEOUS AND SPECIALTY RETAIL STORES,GPC
WALSALL COUNCIL,http://opendatacommunities.org/id/metropolitan-district-council/walsall,31/12/2020,CHILDRENS SERVICES,CARMS COUNTY COUNC,02/10/2020,H59620201003YCIKAOAFB-1,11.00,WALSALL CRISIS SUPPORT SCHEME-FEES & LICENCES,GOVERNMENT SERVICES,GPC
WALSALL COUNCIL,http://opendatacommunities.org/id/metropolitan-district-council/walsall,31/12/2020,RESOURCES & TRANSFORMATION,NOBISCO LIMITED,02/10/2020,H59620201003YJNTHBIEF-1,20.54,CATERING - SCHOOLS-FOOD & DRINK SUPPLIES,OTHER INDUSTRIAL SUPPLIES,GPC
WALSALL COUNCIL,http://opendatacommunities.org/id/metropolitan-district-council/walsall,31/12/2020,CHILDRENS SERVICES,SPEEDY FREIGHT,02/10/2020,H59620201003YNIDOEQNF-1,60.00,SAFEGUARDING & FAMILY SUPPORT-PROFESSIONAL FEES & SERVICES,MOTOR FREIGHT CARRIERS,GPC
WALSALL COUNCIL,http://opendatacommunities.org/id/metropolitan-district-council/walsall,31/12/2020,CHILDRENS SERVICES,ALLENSBY GROUP LTD,02/10/2020,H59620201003YOXUTAPIE-1,356.40,LAW-PURCHASE OF FURNITURE & EQUIPM,COMPUTER SOFTWARE STORES,GPC
WALSALL COUNCIL,http://opendatacommunities.org/id/metropolitan-district-council/walsall,31/12/2020,RESOURCES & TRANSFORMATION,CHICKEN JOES LTD,02/10/2020,H59620201003YYFBWPZHT-1,80.87,CATERING - SCHOOLS-FOOD & DRINK SUPPLIES,CATERERS,GPC
WALSALL COUNCIL,http://opendatacommunities.org/id/metropolitan-district-council/walsall,31/12/2020,ECONOMY & ENVIRONMENT,FOREIGN EXCHANGE FEE,02/10/2020,H59620201003ZKVUTJXBT-1,0.25,NAG - TEMPORARY EXHIBITIONS-POSTAGES & COURIER SERVICES,,GPC
WALSALL COUNCIL,http://opendatacommunities.org/id/metropolitan-district-council/walsall,31/12/2020,CHILDRENS SERVICES,THETRAINLINE.COM,05/10/2020,H59620201006BILBQSPKU-1,19.07,SAFEGUARDING & FAMILY SUPPORT-OFFICERS & STAFF PUBLIC TRANSP,PASSENGER RAILWAYS,GPC
WALSALL COUNCIL,http://opendatacommunities.org/id/metropolitan-district-council/walsall,31/12/2020,RESOURCES & TRANSFORMATION,WWW.SANDWELL.GOV.UK,05/10/2020,H59620201006BKJIVCNAR-1,11.00,RES-WALSALL WORKS-FEES & LICENCES,GOVERNMENT SERVICES,GPC
WALSALL COUNCIL,http://opendatacommunities.org/id/metropolitan-district-council/walsall,31/12/2020,CHILDRENS SERVICES,AMZNMKTPLACE,05/10/2020,H59620201006BPYIGWSPI-1,7.29,"43A HILTON ROAD, WILLENHALL-RESIDENTS PERSONAL EXPENSES-AL",MISCELLANEOUS AND SPECIALTY RETAIL STORES,GPC
WALSALL COUNCIL,http://opendatacommunities.org/id/metropolitan-district-council/walsall,31/12/2020,CHILDRENS SERVICES,ASDA SUPERSTORE,05/10/2020,H59620201006BTGNUTPPV-1,10.26,ELMWOOD SCHOOL-CATERING & REFRESHMENTS,GROCERY STORES AND SUPERMARKETS,GPC
WALSALL COUNCIL,http://opendatacommunities.org/id/metropolitan-district-council/walsall,31/12/2020,CHILDRENS SERVICES,AMZNMKTPLACE,05/10/2020,H59620201006BWUHMVWJW-1,8.20,"43A HILTON ROAD, WILLENHALL-RESIDENTS PERSONAL EXPENSES-AL",MISCELLANEOUS AND SPECIALTY RETAIL STORES,GPC
WALSALL COUNCIL,http://opendatacommunities.org/id/metropolitan-district-council/walsall,31/12/2020,ECONOMY & ENVIRONMENT,"EDX, INC.",05/10/2020,H59620201006DEBWVEGRM-1,288.20,INTEGRATED COMMUNITIES PROGRAM-EXTERNAL TRAINING,OTHER SCHOOLS AND EDUCATIONAL SERVICES,GPC
WALSALL COUNCIL,http://opendatacommunities.org/id/metropolitan-district-council/walsall,31/12/2020,RESOURCES & TRANSFORMATION,ARTHUR BRETT CATER,05/10/2020,H59620201006DMTPESTSP-1,15.94,CATERING - SCHOOLS-FOOD & DRINK SUPPLIES,MISCELLANEOUS FOOD STORES & CONVENIENCE STORES,GPC
WALSALL COUNCIL,http://opendatacommunities.org/id/metropolitan-district-council/walsall,31/12/2020,CHILDRENS SERVICES,BOOTS 2067,05/10/2020,H59620201006ELLISXCTV-1,3.00,WALSALL WOOD PRIMARY SCHOOL-MATERIALS,"DRUG STORES, PHARMACIES",GPC
WALSALL COUNCIL,http://opendatacommunities.org/id/metropolitan-district-council/walsall,31/12/2020,CHILDRENS SERVICES,AMZNMKTPLACE,05/10/2020,H59620201006EOSAYMYBI-1,19.98,WATLING STREET PRIMARY SCHOOL-MATERIALS,MISCELLANEOUS AND SPECIALTY RETAIL STORES,GPC
WALSALL COUNCIL,http://opendatacommunities.org/id/metropolitan-district-council/walsall,31/12/2020,CHILDRENS SERVICES,AMZNMKTPLACE,05/10/2020,H59620201006EZFRHIPGB-1,60.25,VIRTUAL SCHOOL - CENTRAL PUPIL-OTHER EXPENSES,MISCELLANEOUS AND SPECIALTY RETAIL STORES,GPC
WALSALL COUNCIL,http://opendatacommunities.org/id/metropolitan-district-council/walsall,31/12/2020,CHILDRENS SERVICES,AMAZON.CO.UK*TL7DR7LP5,05/10/2020,H59620201006FHYLREFVX-1,66.99,ADMINISTRATIVE SUPPLIES-MATERIALS,OTHER DIRECT MARKETING-OTHER DIRECT MARKETERS,GPC
WALSALL COUNCIL,http://opendatacommunities.org/id/metropolitan-district-council/walsall,31/12/2020,CHILDRENS SERVICES,247 CARS WILLENHALL LTD,05/10/2020,H59620201006FSIJBTZFS-1,49.40,SAFEGUARDING & FAMILY SUPPORT-TAXI FARES,TAXI SERVICES,GPC
WALSALL COUNCIL,http://opendatacommunities.org/id/metropolitan-district-council/walsall,31/12/2020,CHILDRENS SERVICES,AMZNMKTPLACE,05/10/2020,H59620201006FXSKJHSWF-1,14.99,"43A HILTON ROAD, WILLENHALL-RESIDENTS PERSONAL EXPENSES-AL",MISCELLANEOUS AND SPECIALTY RETAIL STORES,GPC
WALSALL COUNCIL,http://opendatacommunities.org/id/metropolitan-district-council/walsall,31/12/2020,ECONOMY & ENVIRONMENT,AMZNMKTPLACE,05/10/2020,H59620201006GJWJCKVEA-1,2.70,LIBRARY OPERATIONS CENTRAL-STATIONERY & GENERAL OFFICE SU,MISCELLANEOUS AND SPECIALTY RETAIL STORES,GPC
WALSALL COUNCIL,http://opendatacommunities.org/id/metropolitan-district-council/walsall,31/12/2020,CHILDRENS SERVICES,HTTP://WWW.HYDRO-X.CO.,05/10/2020,H59620201006GOHDGWKKC-1,121.74,MILLFIELD PRIMARY SCHOOL-MATERIALS,OTHER CHEMICALS AND ALLIED PRODUCTS,GPC
WALSALL COUNCIL,http://opendatacommunities.org/id/metropolitan-district-council/walsall,31/12/2020,CHILDRENS SERVICES,SUMUP *CROSSROADS BESP,05/10/2020,H59620201006GSLYEDUPU-1,35.94,FOOD TECHNOLOGY/HOSPITALITY-MATERIALS,GROCERY STORES AND SUPERMARKETS,GPC
WALSALL COUNCIL,http://opendatacommunities.org/id/metropolitan-district-council/walsall,31/12/2020,ECONOMY & ENVIRONMENT,AMZNMKTPLACE,05/10/2020,H59620201006GSQTJGLIW-1,37.99,DARLASTON LEISURE CENTRE-PURCHASE OF FURNITURE & EQUIPM,MISCELLANEOUS AND SPECIALTY RETAIL STORES,GPC
WALSALL COUNCIL,http://opendatacommunities.org/id/metropolitan-district-council/walsall,31/12/2020,ADULT SOCIAL CARE,AMZNMKTPLACE,05/10/2020,H59620201006GYDXAVXME-1,46.59,PRINTING SERVICES-PURCHASE OF FURNITURE & EQUIPM,MISCELLANEOUS AND SPECIALTY RETAIL STORES,GPC
WALSALL COUNCIL,http://opendatacommunities.org/id/metropolitan-district-council/walsall,31/12/2020,CHILDRENS SERVICES,FINDEL EDUCATION,05/10/2020,H59620201006HEOKOJHES-1,267.44,CURRICULUM STOCK-MATERIALS,OTHER DIRECT MARKETING-OTHER DIRECT MARKETERS,GPC
WALSALL COUNCIL,http://opendatacommunities.org/id/metropolitan-district-council/walsall,31/12/2020,RESOURCES & TRANSFORMATION,NOBISCO LIMITED,05/10/2020,H59620201006HJRQXOIUZ-1,-16.79,CATERING - SCHOOLS-FOOD & DRINK SUPPLIES,OTHER INDUSTRIAL SUPPLIES,GPC
WALSALL COUNCIL,http://opendatacommunities.org/id/metropolitan-district-council/walsall,31/12/2020,ADULT SOCIAL CARE,REMOVALS.CO.UK,05/10/2020,H59620201006HXSUKXGCX-1,99.22,SOUTH LOCALITY TEAM-TRANSPORTATION-PRIV CONTRACTOR,MOTOR FREIGHT CARRIERS,GPC
WALSALL COUNCIL,http://opendatacommunities.org/id/metropolitan-district-council/walsall,31/12/2020,RESOURCES & TRANSFORMATION,BESTWAY WALSALL,05/10/2020,H59620201006IMEVLZSTX-1,54.88,CATERING - SCHOOLS-FOOD & DRINK SUPPLIES,DAIRY PRODUCTS STORES,GPC
WALSALL COUNCIL,http://opendatacommunities.org/id/metropolitan-district-council/walsall,31/12/2020,RESOURCES & TRANSFORMATION,NOBISCO LIMITED,05/10/2020,H59620201006JCKVXFVEO-1,22.20,CATERING - SCHOOLS-FOOD & DRINK SUPPLIES,OTHER INDUSTRIAL SUPPLIES,GPC
WALSALL COUNCIL,http://opendatacommunities.org/id/metropolitan-district-council/walsall,31/12/2020,ECONOMY & ENVIRONMENT,WM MORRISONS STORE,05/10/2020,H59620201006JEWCBFHHT-1,6.00,LIBRARY OPERATIONS - MOBILE SE-STATIONERY & GENERAL OFFICE SU,GROCERY STORES AND SUPERMARKETS,GPC
WALSALL COUNCIL,http://opendatacommunities.org/id/metropolitan-district-council/walsall,31/12/2020,CHILDRENS SERVICES,REMOVALS.CO.UK,05/10/2020,H59620201006JJOZKCRPG-1,942.00,LOOKED AFTER CHILDRENS SOCIAL -TRANSPORTATION-PRIV CONTRACTOR,MOTOR FREIGHT CARRIERS,GPC
WALSALL COUNCIL,http://opendatacommunities.org/id/metropolitan-district-council/walsall,31/12/2020,CHILDRENS SERVICES,WM MORRISONS STORE,05/10/2020,H59620201006JYGDLWFCG-1,15.88,"43A HILTON ROAD, WILLENHALL-FOOD & DRINK SUPPLIES",GROCERY STORES AND SUPERMARKETS,GPC
WALSALL COUNCIL,http://opendatacommunities.org/id/metropolitan-district-council/walsall,31/12/2020,CHILDRENS SERVICES,WM MORRISONS STORE,05/10/2020,H59620201006JYGDLWFCG-2,90.14,"43A HILTON ROAD, WILLENHALL-FOOD & DRINK SUPPLIES",GROCERY STORES AND SUPERMARKETS,GPC
WALSALL COUNCIL,http://opendatacommunities.org/id/metropolitan-district-council/walsall,31/12/2020,RESOURCES & TRANSFORMATION,WP ENGINE,05/10/2020,H59620201006KAFBNRMXD-1,271.13,APPLICATIONS-COMPUTER EQUIPMENT,"COMPUTER PROGRAM, SYSTEM DESIGN",GPC
WALSALL COUNCIL,http://opendatacommunities.org/id/metropolitan-district-council/walsall,31/12/2020,CHILDRENS SERVICES,GEN REGISTER OFFICE,05/10/2020,H59620201006KDNCVCKZB-1,14.00,LOOKED AFTER CHILDRENS SOCIAL -FEES & LICENCES,GOVERNMENT SERVICES,GPC
WALSALL COUNCIL,http://opendatacommunities.org/id/metropolitan-district-council/walsall,31/12/2020,CHILDRENS SERVICES,WWW.THECONSORTIUM/WMS,05/10/2020,H59620201006KKXMDRTFQ-1,149.78,YEAR 3 / 4-MATERIALS,DIRECT MARKETING CONTINUITY SUBSCRIPTION MERCHANTS,GPC
WALSALL COUNCIL,http://opendatacommunities.org/id/metropolitan-district-council/walsall,31/12/2020,CHILDRENS SERVICES,WWW.THECONSORTIUM/WMS,05/10/2020,H59620201006KKXMDRTFQ-2,7.78,YEAR 3 / 4-MATERIALS,DIRECT MARKETING CONTINUITY SUBSCRIPTION MERCHANTS,GPC
WALSALL COUNCIL,http://opendatacommunities.org/id/metropolitan-district-council/walsall,31/12/2020,CHILDRENS SERVICES,SCHOOLGATEWA*BLUE COAT AC,05/10/2020,H59620201006KOLNUNFHU-1,8.25,REDRUTH ROAD-FOOD & DRINK SUPPLIES,"COLLEGES, UNIVERSITIES, PROFESSIONAL SCHOOLS",GPC
WALSALL COUNCIL,http://opendatacommunities.org/id/metropolitan-district-council/walsall,31/12/2020,CHILDRENS SERVICES,BROWNHILLS CARS,05/10/2020,H59620201006KTQLTMXOR-1,35.00,SAFEGUARDING & FAMILY SUPPORT-TAXI FARES,TAXI SERVICES,GPC
WALSALL COUNCIL,http://opendatacommunities.org/id/metropolitan-district-council/walsall,31/12/2020,CHILDRENS SERVICES,AMAZON.CO.UK*ZM6UB59O5,05/10/2020,H59620201006KZVELSQGU-1,4.45,MATHS-MATERIALS,OTHER DIRECT MARKETING-OTHER DIRECT MARKETERS,GPC
WALSALL COUNCIL,http://opendatacommunities.org/id/metropolitan-district-council/walsall,31/12/2020,CHILDRENS SERVICES,AMAZON.CO.UK*ZM6UB59O5,05/10/2020,H59620201006KZVELSQGU-2,5.45,ENGLISH / LIBRARY-MATERIALS,OTHER DIRECT MARKETING-OTHER DIRECT MARKETERS,GPC
WALSALL COUNCIL,http://opendatacommunities.org/id/metropolitan-district-council/walsall,31/12/2020,CHILDRENS SERVICES,AMAZON.CO.UK*ZM6UB59O5,05/10/2020,H59620201006KZVELSQGU-3,14.88,GEOGRAPHY-MATERIALS,OTHER DIRECT MARKETING-OTHER DIRECT MARKETERS,GPC
WALSALL COUNCIL,http://opendatacommunities.org/id/metropolitan-district-council/walsall,31/12/2020,CHILDRENS SERVICES,AMAZON.CO.UK*ZM6UB59O5,05/10/2020,H59620201006KZVELSQGU-4,16.59,HISTORY-MATERIALS,OTHER DIRECT MARKETING-OTHER DIRECT MARKETERS,GPC
WALSALL COUNCIL,http://opendatacommunities.org/id/metropolitan-district-council/walsall,31/12/2020,RESOURCES & TRANSFORMATION,ARTHUR BRETT CATER,05/10/2020,H59620201006LBUESBJXN-1,31.50,CATERING - SCHOOLS-FOOD & DRINK SUPPLIES,MISCELLANEOUS FOOD STORES & CONVENIENCE STORES,GPC
WALSALL COUNCIL,http://opendatacommunities.org/id/metropolitan-district-council/walsall,31/12/2020,RESOURCES & TRANSFORMATION,NOBISCO LIMITED,05/10/2020,H59620201006LJOSWSQVE-1,220.08,CATERING - SCHOOLS-FOOD & DRINK SUPPLIES,OTHER INDUSTRIAL SUPPLIES,GPC
WALSALL COUNCIL,http://opendatacommunities.org/id/metropolitan-district-council/walsall,31/12/2020,CHILDRENS SERVICES,ELEGANCE CARPETS FLOORI,05/10/2020,H59620201006LPWHQVGKS-1,195.00,TRANSITION AND LEAVING CARE PL-CARE LEAVERS MTCE PAYMENTS,FLOOR COVERING STORES,GPC
WALSALL COUNCIL,http://opendatacommunities.org/id/metropolitan-district-council/walsall,31/12/2020,RESOURCES & TRANSFORMATION,WM MORRISONS STORE,05/10/2020,H59620201006LTSCADNKL-1,19.70,CATERING - MANAGEMENT-FOOD & DRINK SUPPLIES,GROCERY STORES AND SUPERMARKETS,GPC
WALSALL COUNCIL,http://opendatacommunities.org/id/metropolitan-district-council/walsall,31/12/2020,CHILDRENS SERVICES,TESCO STORE 2920,05/10/2020,H59620201006LUTNEDJAQ-1,0.73,SAFEGUARDING & FAMILY SUPPORT-SECTION 1/17CHILD CARE ACT 198,GROCERY STORES AND SUPERMARKETS,GPC
WALSALL COUNCIL,http://opendatacommunities.org/id/metropolitan-district-council/walsall,31/12/2020,CHILDRENS SERVICES,TESCO STORE 2920,05/10/2020,H59620201006LUTNEDJAQ-2,41.96,SAFEGUARDING & FAMILY SUPPORT-SECTION 1/17CHILD CARE ACT 198,GROCERY STORES AND SUPERMARKETS,GPC
WALSALL COUNCIL,http://opendatacommunities.org/id/metropolitan-district-council/walsall,31/12/2020,ECONOMY & ENVIRONMENT,AMZNMKTPLACE,05/10/2020,H59620201006LVXMXZAEG-1,14.97,AREA PARTNERSHIPS-STATIONERY & GENERAL OFFICE SU,MISCELLANEOUS AND SPECIALTY RETAIL STORES,GPC
WALSALL COUNCIL,http://opendatacommunities.org/id/metropolitan-district-council/walsall,31/12/2020,RESOURCES & TRANSFORMATION,NOBISCO LIMITED,05/10/2020,H59620201006NNLNSSCVU-1,82.03,CATERING - SCHOOLS-FOOD & DRINK SUPPLIES,OTHER INDUSTRIAL SUPPLIES,GPC
WALSALL COUNCIL,http://opendatacommunities.org/id/metropolitan-district-council/walsall,31/12/2020,ECONOMY & ENVIRONMENT,FOREIGN EXCHANGE FEE,05/10/2020,H59620201006NQNJWSXMU-1,7.93,INTEGRATED COMMUNITIES PROGRAM-EXTERNAL TRAINING,,GPC
WALSALL COUNCIL,http://opendatacommunities.org/id/metropolitan-district-council/walsall,31/12/2020,ECONOMY & ENVIRONMENT,ARCO LIMITED (SAP),05/10/2020,H59620201006NSKBUJCVC-1,65.33,PERMIT SCHEME-MATERIALS,OTHER INDUSTRIAL SUPPLIES,GPC
WALSALL COUNCIL,http://opendatacommunities.org/id/metropolitan-district-council/walsall,31/12/2020,CHILDRENS SERVICES,STARBUCKS,05/10/2020,H59620201006NUJDTJZLP-1,4.35,ADOLESCENT SERVICE-FOOD & DRINK SUPPLIES,QUICK PAYMENT SERVICE-FAST-FOOD RESTAURANTS,GPC
WALSALL COUNCIL,http://opendatacommunities.org/id/metropolitan-district-council/walsall,31/12/2020,CHILDRENS SERVICES,AMZNMKTPLACE,05/10/2020,H59620201006OHBLGKGHL-1,191.90,VIRTUAL SCHOOL - CENTRAL PUPIL-OTHER EXPENSES,MISCELLANEOUS AND SPECIALTY RETAIL STORES,GPC
WALSALL COUNCIL,http://opendatacommunities.org/id/metropolitan-district-council/walsall,31/12/2020,CHILDRENS SERVICES,AMZNMKTPLACE,05/10/2020,H59620201006OHBLGKGHL-2,168.70,VIRTUAL SCHOOL - CENTRAL PUPIL-OTHER EXPENSES,MISCELLANEOUS AND SPECIALTY RETAIL STORES,GPC
WALSALL COUNCIL,http://opendatacommunities.org/id/metropolitan-district-council/walsall,31/12/2020,CHILDRENS SERVICES,GOOGLE *GSUITE_CADMUSS,05/10/2020,H59620201006OXPLSRTAB-1,8.28,CADMUS FEDERATION-MATERIALS,DIRECT MARKETING CONTINUITY SUBSCRIPTION MERCHANTS,GPC
WALSALL COUNCIL,http://opendatacommunities.org/id/metropolitan-district-council/walsall,31/12/2020,CHILDRENS SERVICES,WWW.PARENTMAIL.CO.,05/10/2020,H59620201006PSYXRLUWD-1,12.50,REDRUTH ROAD-FOOD & DRINK SUPPLIES,OTHER SCHOOLS AND EDUCATIONAL SERVICES,GPC
WALSALL COUNCIL,http://opendatacommunities.org/id/metropolitan-district-council/walsall,31/12/2020,ADULT SOCIAL CARE,REMOVALS.CO.UK,05/10/2020,H59620201006QKNRRBRPB-1,172.80,HOLLYBANK-REPAIR & MAINTENANCE OF FURNIT,MOTOR FREIGHT CARRIERS,GPC
WALSALL COUNCIL,http://opendatacommunities.org/id/metropolitan-district-council/walsall,31/12/2020,RESOURCES & TRANSFORMATION,DRI*CISCO WEBEX,05/10/2020,H59620201006QYKNKHQCH-1,15.00,DATA CENTRES-COMPUTER EQUIPMENT,COMPUTER SOFTWARE STORES,GPC
WALSALL COUNCIL,http://opendatacommunities.org/id/metropolitan-district-council/walsall,31/12/2020,RESOURCES & TRANSFORMATION,ARTHUR BRETT CATER,05/10/2020,H59620201006QZFCLDJWY-1,91.20,CATERING - SCHOOLS-FOOD & DRINK SUPPLIES,MISCELLANEOUS FOOD STORES & CONVENIENCE STORES,GPC
WALSALL COUNCIL,http://opendatacommunities.org/id/metropolitan-district-council/walsall,31/12/2020,CHILDRENS SERVICES,AMZNMKTPLACE,05/10/2020,H59620201006RBMKZOOQG-1,11.10,E19-MATERIALS,MISCELLANEOUS AND SPECIALTY RETAIL STORES,GPC
WALSALL COUNCIL,http://opendatacommunities.org/id/metropolitan-district-council/walsall,31/12/2020,CHILDRENS SERVICES,WWW.BANNERUK.COM,05/10/2020,H59620201006RHITWIOQB-1,218.11,SAFEGUARDING & FAMILY SUPPORT-STATIONERY & GENERAL OFFICE SU,"STATIONERY, OFFICE SUPPLIES AND WRITING PAPER",GPC
WALSALL COUNCIL,http://opendatacommunities.org/id/metropolitan-district-council/walsall,31/12/2020,CHILDRENS SERVICES,AMZNMKTPLACE,05/10/2020,H59620201006RHMQKJFSI-1,10.48,BUTTS PRIMARY SCHOOL-OPERATIONAL MAINTENANCE,MISCELLANEOUS AND SPECIALTY RETAIL STORES,GPC
WALSALL COUNCIL,http://opendatacommunities.org/id/metropolitan-district-council/walsall,31/12/2020,CHILDRENS SERVICES,AMZNMKTPLACE,05/10/2020,H59620201006SGRHTWEAP-1,97.99,E19-MATERIALS,MISCELLANEOUS AND SPECIALTY RETAIL STORES,GPC
WALSALL COUNCIL,http://opendatacommunities.org/id/metropolitan-district-council/walsall,31/12/2020,CHILDRENS SERVICES,REMOVALS.CO.UK,05/10/2020,H59620201006SPQPLQXQR-1,215.66,FAMILY SUPPORT-TRANSPORTATION-PRIV CONTRACTOR,MOTOR FREIGHT CARRIERS,GPC
WALSALL COUNCIL,http://opendatacommunities.org/id/metropolitan-district-council/walsall,31/12/2020,RESOURCES & TRANSFORMATION,TESCO STORES 2214,05/10/2020,H59620201006SUBXNDQLP-1,5.00,CATERING - MANAGEMENT-FOOD & DRINK SUPPLIES,GROCERY STORES AND SUPERMARKETS,GPC
WALSALL COUNCIL,http://opendatacommunities.org/id/metropolitan-district-council/walsall,31/12/2020,CHILDRENS SERVICES,AMZNMKTPLACE,05/10/2020,H59620201006TGPJLKLVA-1,4.44,"43A HILTON ROAD, WILLENHALL-RESIDENTS PERSONAL EXPENSES-AL",MISCELLANEOUS AND SPECIALTY RETAIL STORES,GPC
WALSALL COUNCIL,http://opendatacommunities.org/id/metropolitan-district-council/walsall,31/12/2020,RESOURCES & TRANSFORMATION,ARTHUR BRETT CATER,05/10/2020,H59620201006TKODUNFIZ-1,43.70,CATERING - SCHOOLS-FOOD & DRINK SUPPLIES,MISCELLANEOUS FOOD STORES & CONVENIENCE STORES,GPC
WALSALL COUNCIL,http://opendatacommunities.org/id/metropolitan-district-council/walsall,31/12/2020,ECONOMY & ENVIRONMENT,MACHINE MART LTD,05/10/2020,H59620201006UZKXDOQCF-1,33.59,INFRASTRUCTURE MAINTENANCE-MATERIALS,HOUSEHOLD APPLIANCE STORES,GPC
WALSALL COUNCIL,http://opendatacommunities.org/id/metropolitan-district-council/walsall,31/12/2020,CHILDRENS SERVICES,HOME BARGAINS,05/10/2020,H59620201006VLSWFNYGR-1,5.90,WALSALL WOOD PRIMARY SCHOOL-CLEANING MATERIALS,HARDWARE STORES,GPC
WALSALL COUNCIL,http://opendatacommunities.org/id/metropolitan-district-council/walsall,31/12/2020,RESOURCES & TRANSFORMATION,NOBISCO LIMITED,05/10/2020,H59620201006WDGQLEQEG-1,-40.80,CATERING - SCHOOLS-FOOD & DRINK SUPPLIES,OTHER INDUSTRIAL SUPPLIES,GPC
WALSALL COUNCIL,http://opendatacommunities.org/id/metropolitan-district-council/walsall,31/12/2020,RESOURCES & TRANSFORMATION,FOREIGN EXCHANGE FEE,05/10/2020,H59620201006WMRSZNNGQ-1,7.46,APPLICATIONS-COMPUTER EQUIPMENT,,GPC
WALSALL COUNCIL,http://opendatacommunities.org/id/metropolitan-district-council/walsall,31/12/2020,CHILDRENS SERVICES,ALDI 42 772,05/10/2020,H59620201006WPWCDGMQJ-1,2.07,REDRUTH ROAD-FOOD & DRINK SUPPLIES,GROCERY STORES AND SUPERMARKETS,GPC
WALSALL COUNCIL,http://opendatacommunities.org/id/metropolitan-district-council/walsall,31/12/2020,CHILDRENS SERVICES,ALDI 42 772,05/10/2020,H59620201006WPWCDGMQJ-2,38.34,REDRUTH ROAD-FOOD & DRINK SUPPLIES,GROCERY STORES AND SUPERMARKETS,GPC
WALSALL COUNCIL,http://opendatacommunities.org/id/metropolitan-district-council/walsall,31/12/2020,ECONOMY & ENVIRONMENT,WWW.TROPICANAFITNESS.C,05/10/2020,H59620201006WXMIYYIND-1,272.78,OAK PARK-FOOD & DRINK SUPPLIES,MISCELLANEOUS FOOD STORES & CONVENIENCE STORES,GPC
WALSALL COUNCIL,http://opendatacommunities.org/id/metropolitan-district-council/walsall,31/12/2020,CHILDRENS SERVICES,3C_*CP PLUS - CROWN WHAR,05/10/2020,H59620201006XRMXCDKTC-1,1.50,ADOLESCENT SERVICE-OTHER TRAVEL ALLOWANCES,AUTOMOBILE PARKING LOTS AND GARAGES,GPC
WALSALL COUNCIL,http://opendatacommunities.org/id/metropolitan-district-council/walsall,31/12/2020,CHILDRENS SERVICES,ALDI 42 772,05/10/2020,H59620201006XWSBZJGBG-1,4.07,REDRUTH ROAD-CLEANING MATERIALS,GROCERY STORES AND SUPERMARKETS,GPC
WALSALL COUNCIL,http://opendatacommunities.org/id/metropolitan-district-council/walsall,31/12/2020,ECONOMY & ENVIRONMENT,AMZNMKTPLACE,05/10/2020,H59620201006YEWZJRQTI-1,36.99,LIBRARY OPERATIONS CENTRAL-STATIONERY & GENERAL OFFICE SU,MISCELLANEOUS AND SPECIALTY RETAIL STORES,GPC
WALSALL COUNCIL,http://opendatacommunities.org/id/metropolitan-district-council/walsall,31/12/2020,ECONOMY & ENVIRONMENT,AMZNMKTPLACE,05/10/2020,H59620201006YFCYMUJBQ-1,926.24,REGISTRAR-STATIONERY & GENERAL OFFICE SU,MISCELLANEOUS AND SPECIALTY RETAIL STORES,GPC
WALSALL COUNCIL,http://opendatacommunities.org/id/metropolitan-district-council/walsall,31/12/2020,RESOURCES & TRANSFORMATION,ARTHUR BRETT CATER,05/10/2020,H59620201006YOHEKWDYY-1,49.72,CATERING - SCHOOLS-FOOD & DRINK SUPPLIES,MISCELLANEOUS FOOD STORES & CONVENIENCE STORES,GPC
WALSALL COUNCIL,http://opendatacommunities.org/id/metropolitan-district-council/walsall,31/12/2020,ECONOMY & ENVIRONMENT,POST OFFICE COUNTER,05/10/2020,H59620201006YRDXHZZPV-1,7.80,FIT4WORK PROGRAMME-POSTAGES & COURIER SERVICES,POSTAL SERVICES - GOVERNMENT ONLY,GPC
WALSALL COUNCIL,http://opendatacommunities.org/id/metropolitan-district-council/walsall,31/12/2020,CHILDRENS SERVICES,AMZNMKTPLACE AMAZON.CO.UK,05/10/2020,H59620201006YRHKHCPTU-1,30.80,E19-MATERIALS,MISCELLANEOUS AND SPECIALTY RETAIL STORES,GPC
WALSALL COUNCIL,http://opendatacommunities.org/id/metropolitan-district-council/walsall,31/12/2020,RESOURCES & TRANSFORMATION,REMOVALS.CO.UK,05/10/2020,H59620201006YZINVMNLU-1,124.02,CATERING - MANAGEMENT-TRANSPORTATION-PRIV CONTRACTOR,MOTOR FREIGHT CARRIERS,GPC
WALSALL COUNCIL,http://opendatacommunities.org/id/metropolitan-district-council/walsall,31/12/2020,ADULT SOCIAL CARE,AMZNMKTPLACE AMAZON.CO.UK,05/10/2020,H59620201006ZLSOKTUGK-1,47.99,PRINTING SERVICES-PURCHASE OF FURNITURE & EQUIPM,MISCELLANEOUS AND SPECIALTY RETAIL STORES,GPC
WALSALL COUNCIL,http://opendatacommunities.org/id/metropolitan-district-council/walsall,31/12/2020,CHILDRENS SERVICES,WWW.RYMAN.CO.UK,06/10/2020,H59620201007BQHXBJUVJ-1,28.94,E19-MATERIALS,"OFFICE, SCHOOL SUPPLY, AND STATIONERY STORES",GPC
WALSALL COUNCIL,http://opendatacommunities.org/id/metropolitan-district-council/walsall,31/12/2020,RESOURCES & TRANSFORMATION,THETRAINLINE.COM,06/10/2020,H59620201007CALHCIUXT-1,23.95,CORE SKILLS-OFFICERS & STAFF PUBLIC TRANSP,PASSENGER RAILWAYS,GPC
WALSALL COUNCIL,http://opendatacommunities.org/id/metropolitan-district-council/walsall,31/12/2020,RESOURCES & TRANSFORMATION,BLAKEMORE FOODSERVICE,06/10/2020,H59620201007CMNQNKZER-1,497.53,CATERING - SCHOOLS-FOOD & DRINK SUPPLIES,CATERERS,GPC
WALSALL COUNCIL,http://opendatacommunities.org/id/metropolitan-district-council/walsall,31/12/2020,RESOURCES & TRANSFORMATION,NOBISCO LIMITED,06/10/2020,H59620201007CPMOTKGJJ-1,76.40,CATERING - SCHOOLS-FOOD & DRINK SUPPLIES,OTHER INDUSTRIAL SUPPLIES,GPC
WALSALL COUNCIL,http://opendatacommunities.org/id/metropolitan-district-council/walsall,31/12/2020,CHILDRENS SERVICES,DVLA DRIVER ONLINE,06/10/2020,H59620201007CRKSGYYSR-1,34.00,YOUNG PERSONS HOMELESS SERVICE-FEES & LICENCES,GOVERNMENT SERVICES,GPC
WALSALL COUNCIL,http://opendatacommunities.org/id/metropolitan-district-council/walsall,31/12/2020,RESOURCES & TRANSFORMATION,BLAKEMORE FOODSERVICE,06/10/2020,H59620201007CSCWBIFIU-1,300.26,CATERING - SCHOOLS-FOOD & DRINK SUPPLIES,CATERERS,GPC
WALSALL COUNCIL,http://opendatacommunities.org/id/metropolitan-district-council/walsall,31/12/2020,CHILDRENS SERVICES,ARGOS LTD,06/10/2020,H59620201007CVGQFHWNR-1,82.95,SAFEGUARDING & FAMILY SUPPORT-SECTION 1/17CHILD CARE ACT 198,DISCOUNT STORES,GPC
WALSALL COUNCIL,http://opendatacommunities.org/id/metropolitan-district-council/walsall,31/12/2020,CHILDRENS SERVICES,W M MORRISONS.COM,06/10/2020,H59620201007DBIMOQNBW-1,30.24,PELSALL VILLAGE SCHOOL-FOOD & DRINK SUPPLIES,GROCERY STORES AND SUPERMARKETS,GPC
WALSALL COUNCIL,http://opendatacommunities.org/id/metropolitan-district-council/walsall,31/12/2020,CHILDRENS SERVICES,W M MORRISONS.COM,06/10/2020,H59620201007DBIMOQNBW-2,56.98,PELSALL VILLAGE SCHOOL-FOOD & DRINK SUPPLIES,GROCERY STORES AND SUPERMARKETS,GPC
WALSALL COUNCIL,http://opendatacommunities.org/id/metropolitan-district-council/walsall,31/12/2020,CHILDRENS SERVICES,HOTEL ON BOOKING.COM,06/10/2020,H59620201007DBIXWYUBS-1,66.24,SAFEGUARDING & FAMILY SUPPORT-SECTION 1/17CHILD CARE ACT 198,"HOTELS, MOTELS, RESORTS",GPC
WALSALL COUNCIL,http://opendatacommunities.org/id/metropolitan-district-council/walsall,31/12/2020,RESOURCES & TRANSFORMATION,BLAKEMORE FOODSERVICE,06/10/2020,H59620201007DJMHGLBIB-1,-46.65,CATERING - SCHOOLS-FOOD & DRINK SUPPLIES,CATERERS,GPC
WALSALL COUNCIL,http://opendatacommunities.org/id/metropolitan-district-council/walsall,31/12/2020,RESOURCES & TRANSFORMATION,BLAKEMORE FOODSERVICE,06/10/2020,H59620201007DWKMXEZBX-1,4.70,CATERING - SCHOOLS-FOOD & DRINK SUPPLIES,CATERERS,GPC
WALSALL COUNCIL,http://opendatacommunities.org/id/metropolitan-district-council/walsall,31/12/2020,RESOURCES & TRANSFORMATION,BLAKEMORE FOODSERVICE,06/10/2020,H59620201007EEGWXNYFE-1,396.94,CATERING - SCHOOLS-FOOD & DRINK SUPPLIES,CATERERS,GPC
WALSALL COUNCIL,http://opendatacommunities.org/id/metropolitan-district-council/walsall,31/12/2020,RESOURCES & TRANSFORMATION,BLAKEMORE FOODSERVICE,06/10/2020,H59620201007EEGWXNYFE-2,24.36,CATERING - SCHOOLS-FOOD & DRINK SUPPLIES,CATERERS,GPC
WALSALL COUNCIL,http://opendatacommunities.org/id/metropolitan-district-council/walsall,31/12/2020,CHILDRENS SERVICES,WWW.BANNERUK.COM,06/10/2020,H59620201007EFGUXRPMD-1,113.45,TRANSITION AND LEAVING CARE PL-STATIONERY & GENERAL OFFICE SU,"STATIONERY, OFFICE SUPPLIES AND WRITING PAPER",GPC
WALSALL COUNCIL,http://opendatacommunities.org/id/metropolitan-district-council/walsall,31/12/2020,CHILDRENS SERVICES,WALSALL COUNCIL,06/10/2020,H59620201007EHTWJWVDQ-1,3.00,REDRUTH ROAD-RESIDENTS PERSONAL EXPENSES-AL,GOVERNMENT SERVICES,GPC
WALSALL COUNCIL,http://opendatacommunities.org/id/metropolitan-district-council/walsall,31/12/2020,CHILDRENS SERVICES,AMAZON.CO.UK*9M8WD2CX5 AM,06/10/2020,H59620201007EMJOEVTMT-1,100.00,PASTROL (REWARDS & PRIZES)-MATERIALS,MISCELLANEOUS AND SPECIALTY RETAIL STORES,GPC
WALSALL COUNCIL,http://opendatacommunities.org/id/metropolitan-district-council/walsall,31/12/2020,RESOURCES & TRANSFORMATION,BLAKEMORE FOODSERVICE,06/10/2020,H59620201007FFANQCIJN-1,566.26,CATERING - SCHOOLS-FOOD & DRINK SUPPLIES,CATERERS,GPC
WALSALL COUNCIL,http://opendatacommunities.org/id/metropolitan-district-council/walsall,31/12/2020,RESOURCES & TRANSFORMATION,BLAKEMORE FOODSERVICE,06/10/2020,H59620201007FFANQCIJN-2,75.21,CATERING - SCHOOLS-FOOD & DRINK SUPPLIES,CATERERS,GPC
WALSALL COUNCIL,http://opendatacommunities.org/id/metropolitan-district-council/walsall,31/12/2020,CHILDRENS SERVICES,ALBADAR CASH & CARRY,06/10/2020,H59620201007FURESDPUD-1,6.76,REDRUTH ROAD-FOOD & DRINK SUPPLIES,GROCERY STORES AND SUPERMARKETS,GPC
WALSALL COUNCIL,http://opendatacommunities.org/id/metropolitan-district-council/walsall,31/12/2020,CHILDRENS SERVICES,AMZNMKTPLACE,06/10/2020,H59620201007FXCVITMWV-1,19.58,ADMINISTRATIVE SUPPLIES-MATERIALS,MISCELLANEOUS AND SPECIALTY RETAIL STORES,GPC
WALSALL COUNCIL,http://opendatacommunities.org/id/metropolitan-district-council/walsall,31/12/2020,CHILDRENS SERVICES,AMZNMKTPLACE AMAZON.CO.UK,06/10/2020,H59620201007FZHMKZBSF-1,258.00,SPECIAL FACILITIES-MATERIALS,MISCELLANEOUS AND SPECIALTY RETAIL STORES,GPC
WALSALL COUNCIL,http://opendatacommunities.org/id/metropolitan-district-council/walsall,31/12/2020,RESOURCES & TRANSFORMATION,BLAKEMORE FOODSERVICE,06/10/2020,H59620201007GGEUQFOHF-1,392.94,CATERING - SCHOOLS-FOOD & DRINK SUPPLIES,CATERERS,GPC
WALSALL COUNCIL,http://opendatacommunities.org/id/metropolitan-district-council/walsall,31/12/2020,RESOURCES & TRANSFORMATION,BLAKEMORE FOODSERVICE,06/10/2020,H59620201007GGEUQFOHF-2,58.70,CATERING - SCHOOLS-FOOD & DRINK SUPPLIES,CATERERS,GPC
WALSALL COUNCIL,http://opendatacommunities.org/id/metropolitan-district-council/walsall,31/12/2020,RESOURCES & TRANSFORMATION,BLAKEMORE FOODSERVICE,06/10/2020,H59620201007GRMSEKRHF-1,9.05,CATERING - SCHOOLS-FOOD & DRINK SUPPLIES,CATERERS,GPC
WALSALL COUNCIL,http://opendatacommunities.org/id/metropolitan-district-council/walsall,31/12/2020,ECONOMY & ENVIRONMENT,AMAZON.CO.UK*9M8OP3IA5 AM,06/10/2020,H59620201007GTEASSJKD-1,14.00,CEMETERIES CENTRAL ADMINISTRAT-STATIONERY & GENERAL OFFICE SU,MISCELLANEOUS AND SPECIALTY RETAIL STORES,GPC
WALSALL COUNCIL,http://opendatacommunities.org/id/metropolitan-district-council/walsall,31/12/2020,RESOURCES & TRANSFORMATION,BESTWAY WALSALL,06/10/2020,H59620201007HNLNFUAYR-1,118.14,CATERING - SCHOOLS-FOOD & DRINK SUPPLIES,DAIRY PRODUCTS STORES,GPC
WALSALL COUNCIL,http://opendatacommunities.org/id/metropolitan-district-council/walsall,31/12/2020,CHILDRENS SERVICES,TRAINLINE,06/10/2020,H59620201007HSEGYYRLY-1,19.68,SAFEGUARDING & FAMILY SUPPORT-OFFICERS & STAFF PUBLIC TRANSP,PASSENGER RAILWAYS,GPC
WALSALL COUNCIL,http://opendatacommunities.org/id/metropolitan-district-council/walsall,31/12/2020,RESOURCES & TRANSFORMATION,BLAKEMORE FOODSERVICE,06/10/2020,H59620201007HSKJBPIUS-1,345.60,CATERING - SCHOOLS-FOOD & DRINK SUPPLIES,CATERERS,GPC
WALSALL COUNCIL,http://opendatacommunities.org/id/metropolitan-district-council/walsall,31/12/2020,RESOURCES & TRANSFORMATION,BLAKEMORE FOODSERVICE,06/10/2020,H59620201007HSKJBPIUS-2,18.09,CATERING - SCHOOLS-FOOD & DRINK SUPPLIES,CATERERS,GPC
WALSALL COUNCIL,http://opendatacommunities.org/id/metropolitan-district-council/walsall,31/12/2020,ECONOMY & ENVIRONMENT,MIDLANDNEWS.COM,06/10/2020,H59620201007HWHBUCXLO-1,82.80,DEVELOPMENT MANAGEMENT-SUBSCRIPTIONS,NEWS DEALERS AND NEWSSTANDS,GPC
WALSALL COUNCIL,http://opendatacommunities.org/id/metropolitan-district-council/walsall,31/12/2020,CHILDRENS SERVICES,AMZNMKTPLACE,06/10/2020,H59620201007IQEKWUBMT-1,11.48,BUTTS PRIMARY SCHOOL-OPERATIONAL MAINTENANCE,MISCELLANEOUS AND SPECIALTY RETAIL STORES,GPC
WALSALL COUNCIL,http://opendatacommunities.org/id/metropolitan-district-council/walsall,31/12/2020,CHILDRENS SERVICES,AMZNMKTPLACE,06/10/2020,H59620201007IVYTXHMKV-1,26.45,E19-MATERIALS,MISCELLANEOUS AND SPECIALTY RETAIL STORES,GPC
WALSALL COUNCIL,http://opendatacommunities.org/id/metropolitan-district-council/walsall,31/12/2020,RESOURCES & TRANSFORMATION,BLAKEMORE FOODSERVICE,06/10/2020,H59620201007JGJFAQERS-1,-4.20,CATERING - SCHOOLS-FOOD & DRINK SUPPLIES,CATERERS,GPC
WALSALL COUNCIL,http://opendatacommunities.org/id/metropolitan-district-council/walsall,31/12/2020,CHILDRENS SERVICES,HM PASSPORT OFFICE,06/10/2020,H59620201007JGJWZJYWM-1,85.00,LOOKED AFTER CHILDRENS SOCIAL -FEES & LICENCES,GOVERNMENT SERVICES,GPC
WALSALL COUNCIL,http://opendatacommunities.org/id/metropolitan-district-council/walsall,31/12/2020,ECONOMY & ENVIRONMENT,BIRMINGHAM (CCF),06/10/2020,H59620201007JHHDQLYOE-1,26.09,DEPOT-MATERIALS,LUMBER & BUILDING MATERIALS STORES,GPC
WALSALL COUNCIL,http://opendatacommunities.org/id/metropolitan-district-council/walsall,31/12/2020,RESOURCES & TRANSFORMATION,BLAKEMORE FOODSERVICE,06/10/2020,H59620201007JHZSKIRLY-1,-9.48,CATERING - SCHOOLS-FOOD & DRINK SUPPLIES,CATERERS,GPC
WALSALL COUNCIL,http://opendatacommunities.org/id/metropolitan-district-council/walsall,31/12/2020,CHILDRENS SERVICES,AMZNMKTPLACE,06/10/2020,H59620201007JOKRCTTTB-1,131.94,ADMINISTRATIVE SUPPLIES-MATERIALS,MISCELLANEOUS AND SPECIALTY RETAIL STORES,GPC
WALSALL COUNCIL,http://opendatacommunities.org/id/metropolitan-district-council/walsall,31/12/2020,RESOURCES & TRANSFORMATION,BLAKEMORE FOODSERVICE,06/10/2020,H59620201007JXPUJLSCY-1,479.24,CATERING - SCHOOLS-FOOD & DRINK SUPPLIES,CATERERS,GPC
WALSALL COUNCIL,http://opendatacommunities.org/id/metropolitan-district-council/walsall,31/12/2020,RESOURCES & TRANSFORMATION,BLAKEMORE FOODSERVICE,06/10/2020,H59620201007KLYKOSOBR-1,260.47,CATERING - SCHOOLS-FOOD & DRINK SUPPLIES,CATERERS,GPC
WALSALL COUNCIL,http://opendatacommunities.org/id/metropolitan-district-council/walsall,31/12/2020,RESOURCES & TRANSFORMATION,BLAKEMORE FOODSERVICE,06/10/2020,H59620201007KLYKOSOBR-2,48.91,CATERING - SCHOOLS-FOOD & DRINK SUPPLIES,CATERERS,GPC
WALSALL COUNCIL,http://opendatacommunities.org/id/metropolitan-district-council/walsall,31/12/2020,CHILDRENS SERVICES,ASDA GROCERIES ONLINE,06/10/2020,H59620201007KUHVTQRSN-1,-4.20,BREAKFAST CLUB-MATERIALS,GROCERY STORES AND SUPERMARKETS,GPC
WALSALL COUNCIL,http://opendatacommunities.org/id/metropolitan-district-council/walsall,31/12/2020,RESOURCES & TRANSFORMATION,BLAKEMORE FOODSERVICE,06/10/2020,H59620201007LCEFXCGLN-1,281.06,CATERING - SCHOOLS-FOOD & DRINK SUPPLIES,CATERERS,GPC
WALSALL COUNCIL,http://opendatacommunities.org/id/metropolitan-district-council/walsall,31/12/2020,RESOURCES & TRANSFORMATION,BLAKEMORE FOODSERVICE,06/10/2020,H59620201007LCEFXCGLN-2,18.10,CATERING - SCHOOLS-FOOD & DRINK SUPPLIES,CATERERS,GPC
WALSALL COUNCIL,http://opendatacommunities.org/id/metropolitan-district-council/walsall,31/12/2020,ADULT SOCIAL CARE,WWW.BANNERUK.COM,06/10/2020,H59620201007LGBEWHHVI-1,112.10,GOSCOTE-STATIONERY & GENERAL OFFICE SU,"STATIONERY, OFFICE SUPPLIES AND WRITING PAPER",GPC
WALSALL COUNCIL,http://opendatacommunities.org/id/metropolitan-district-council/walsall,31/12/2020,ECONOMY & ENVIRONMENT,AMZNMKTPLACE,06/10/2020,H59620201007LOVSZHXGD-1,12.98,BLOXWICH LEISURE CENTRE-STATIONERY & GENERAL OFFICE SU,MISCELLANEOUS AND SPECIALTY RETAIL STORES,GPC
WALSALL COUNCIL,http://opendatacommunities.org/id/metropolitan-district-council/walsall,31/12/2020,RESOURCES & TRANSFORMATION,BLAKEMORE FOODSERVICE,06/10/2020,H59620201007LVVOIIBPG-1,261.95,CATERING - SCHOOLS-FOOD & DRINK SUPPLIES,CATERERS,GPC
WALSALL COUNCIL,http://opendatacommunities.org/id/metropolitan-district-council/walsall,31/12/2020,RESOURCES & TRANSFORMATION,BLAKEMORE FOODSERVICE,06/10/2020,H59620201007LVVOIIBPG-2,9.04,CATERING - SCHOOLS-FOOD & DRINK SUPPLIES,CATERERS,GPC
WALSALL COUNCIL,http://opendatacommunities.org/id/metropolitan-district-council/walsall,31/12/2020,CHILDRENS SERVICES,ASDA GROCERIES ONLINE,06/10/2020,H59620201007LYWFIWXKG-1,3.36,FOOD TECHNOLOGY-MATERIALS,GROCERY STORES AND SUPERMARKETS,GPC
WALSALL COUNCIL,http://opendatacommunities.org/id/metropolitan-district-council/walsall,31/12/2020,CHILDRENS SERVICES,ASDA GROCERIES ONLINE,06/10/2020,H59620201007LYWFIWXKG-2,35.91,FOOD TECHNOLOGY-MATERIALS,GROCERY STORES AND SUPERMARKETS,GPC
WALSALL COUNCIL,http://opendatacommunities.org/id/metropolitan-district-council/walsall,31/12/2020,CHILDRENS SERVICES,ASDA GROCERIES ONLINE,06/10/2020,H59620201007LYWFIWXKG-3,7.64,FOOD TECHNOLOGY-MATERIALS,GROCERY STORES AND SUPERMARKETS,GPC
WALSALL COUNCIL,http://opendatacommunities.org/id/metropolitan-district-council/walsall,31/12/2020,RESOURCES & TRANSFORMATION,BLAKEMORE FOODSERVICE,06/10/2020,H59620201007MRRXAHAKC-1,275.23,CATERING - SCHOOLS-FOOD & DRINK SUPPLIES,CATERERS,GPC
WALSALL COUNCIL,http://opendatacommunities.org/id/metropolitan-district-council/walsall,31/12/2020,RESOURCES & TRANSFORMATION,BLAKEMORE FOODSERVICE,06/10/2020,H59620201007MRRXAHAKC-2,25.40,CATERING - SCHOOLS-FOOD & DRINK SUPPLIES,CATERERS,GPC
WALSALL COUNCIL,http://opendatacommunities.org/id/metropolitan-district-council/walsall,31/12/2020,RESOURCES & TRANSFORMATION,BLAKEMORE FOODSERVICE,06/10/2020,H59620201007MYBDSPCFP-1,11.86,CATERING - SCHOOLS-FOOD & DRINK SUPPLIES,CATERERS,GPC
WALSALL COUNCIL,http://opendatacommunities.org/id/metropolitan-district-council/walsall,31/12/2020,CHILDRENS SERVICES,NISA LOCAL,06/10/2020,H59620201007NBFJVRQUY-1,6.77,REDRUTH ROAD-FOOD & DRINK SUPPLIES,MISCELLANEOUS FOOD STORES & CONVENIENCE STORES,GPC
WALSALL COUNCIL,http://opendatacommunities.org/id/metropolitan-district-council/walsall,31/12/2020,CHILDRENS SERVICES,AMZNMKTPLACE,06/10/2020,H59620201007NHWAGWPPW-1,14.23,"43A HILTON ROAD, WILLENHALL-RESIDENTS PERSONAL EXPENSES-AL",MISCELLANEOUS AND SPECIALTY RETAIL STORES,GPC
WALSALL COUNCIL,http://opendatacommunities.org/id/metropolitan-district-council/walsall,31/12/2020,CHILDRENS SERVICES,AMZNMKTPLACE,06/10/2020,H59620201007NHWAGWPPW-2,8.19,"43A HILTON ROAD, WILLENHALL-RESIDENTS PERSONAL EXPENSES-AL",MISCELLANEOUS AND SPECIALTY RETAIL STORES,GPC
WALSALL COUNCIL,http://opendatacommunities.org/id/metropolitan-district-council/walsall,31/12/2020,RESOURCES & TRANSFORMATION,BLAKEMORE FOODSERVICE,06/10/2020,H59620201007NSLIGKFWY-1,11.86,CATERING - SCHOOLS-FOOD & DRINK SUPPLIES,CATERERS,GPC
WALSALL COUNCIL,http://opendatacommunities.org/id/metropolitan-district-council/walsall,31/12/2020,CHILDRENS SERVICES,WALSALL COUNCIL,06/10/2020,H59620201007OEETTMWTV-1,39.00,GENERAL MANAGEMENT SUPPORT (IN-FEES & LICENCES,GOVERNMENT SERVICES,GPC
WALSALL COUNCIL,http://opendatacommunities.org/id/metropolitan-district-council/walsall,31/12/2020,RESOURCES & TRANSFORMATION,BLAKEMORE FOODSERVICE,06/10/2020,H59620201007PCMGWBXXT-1,29.70,CATERING - SCHOOLS-FOOD & DRINK SUPPLIES,CATERERS,GPC
WALSALL COUNCIL,http://opendatacommunities.org/id/metropolitan-district-council/walsall,31/12/2020,CHILDRENS SERVICES,ASDA GROCERIES ONLINE,06/10/2020,H59620201007QAYMDCBUL-1,79.40,BREAKFAST CLUB-MATERIALS,GROCERY STORES AND SUPERMARKETS,GPC
WALSALL COUNCIL,http://opendatacommunities.org/id/metropolitan-district-council/walsall,31/12/2020,CHILDRENS SERVICES,MCDONALDS,06/10/2020,H59620201007QELKHRXEU-1,4.14,ADOLESCENT SERVICE-OFFICERS SUBSISTENCE EXPENSES,QUICK PAYMENT SERVICE-FAST-FOOD RESTAURANTS,GPC
WALSALL COUNCIL,http://opendatacommunities.org/id/metropolitan-district-council/walsall,31/12/2020,CHILDRENS SERVICES,MCDONALDS,06/10/2020,H59620201007QELKHRXEU-2,0.64,ADOLESCENT SERVICE-OFFICERS SUBSISTENCE EXPENSES,QUICK PAYMENT SERVICE-FAST-FOOD RESTAURANTS,GPC
WALSALL COUNCIL,http://opendatacommunities.org/id/metropolitan-district-council/walsall,31/12/2020,CHILDRENS SERVICES,CLASSROOMSECRET,06/10/2020,H59620201007QOEAHRSMY-1,49.50,ENGLISH-MATERIALS,OTHER SCHOOLS AND EDUCATIONAL SERVICES,GPC
WALSALL COUNCIL,http://opendatacommunities.org/id/metropolitan-district-council/walsall,31/12/2020,CHILDRENS SERVICES,TRAVEL WEST MIDLAN,06/10/2020,H59620201007QOXTLLLOR-1,108.00,REDRUTH ROAD-RESIDENTS PERSONAL EXPENSES-AL,BUS LINES,GPC
WALSALL COUNCIL,http://opendatacommunities.org/id/metropolitan-district-council/walsall,31/12/2020,RESOURCES & TRANSFORMATION,NOBISCO LIMITED,06/10/2020,H59620201007QVWNYLRRO-1,51.36,CATERING - SCHOOLS-FOOD & DRINK SUPPLIES,OTHER INDUSTRIAL SUPPLIES,GPC
WALSALL COUNCIL,http://opendatacommunities.org/id/metropolitan-district-council/walsall,31/12/2020,CHILDRENS SERVICES,AMZNMKTPLACE,06/10/2020,H59620201007QZCBJXDGT-1,15.94,"43A HILTON ROAD, WILLENHALL-RESIDENTS PERSONAL EXPENSES-AL",MISCELLANEOUS AND SPECIALTY RETAIL STORES,GPC
WALSALL COUNCIL,http://opendatacommunities.org/id/metropolitan-district-council/walsall,31/12/2020,CHILDRENS SERVICES,AMZNMKTPLACE,06/10/2020,H59620201007QZCBJXDGT-2,8.49,"43A HILTON ROAD, WILLENHALL-RESIDENTS PERSONAL EXPENSES-AL",MISCELLANEOUS AND SPECIALTY RETAIL STORES,GPC
WALSALL COUNCIL,http://opendatacommunities.org/id/metropolitan-district-council/walsall,31/12/2020,CHILDRENS SERVICES,AAA CARS WALSALL LTD,06/10/2020,H59620201007RHZYTWYAM-1,35.00,SAFEGUARDING & FAMILY SUPPORT-TAXI FARES,TAXI SERVICES,GPC
WALSALL COUNCIL,http://opendatacommunities.org/id/metropolitan-district-council/walsall,31/12/2020,CHILDRENS SERVICES,WALSALL COUNCIL,06/10/2020,H59620201007RQTCYXEML-1,12.78,ST FRANCIS OF ASSISI CATHOLIC -POLICE CHECKS,GOVERNMENT SERVICES,GPC
WALSALL COUNCIL,http://opendatacommunities.org/id/metropolitan-district-council/walsall,31/12/2020,RESOURCES & TRANSFORMATION,BLAKEMORE FOODSERVICE,06/10/2020,H59620201007RVCNKGPKB-1,14.32,CATERING - SCHOOLS-FOOD & DRINK SUPPLIES,CATERERS,GPC
WALSALL COUNCIL,http://opendatacommunities.org/id/metropolitan-district-council/walsall,31/12/2020,CHILDRENS SERVICES,W M MORRISONS.COM,06/10/2020,H59620201007SEUQQVYCE-1,3.84,SEN - RD&SH-MATERIALS,GROCERY STORES AND SUPERMARKETS,GPC
WALSALL COUNCIL,http://opendatacommunities.org/id/metropolitan-district-council/walsall,31/12/2020,CHILDRENS SERVICES,W M MORRISONS.COM,06/10/2020,H59620201007SEUQQVYCE-2,7.60,NURTURE GROUP-MATERIALS,GROCERY STORES AND SUPERMARKETS,GPC
WALSALL COUNCIL,http://opendatacommunities.org/id/metropolitan-district-council/walsall,31/12/2020,CHILDRENS SERVICES,W M MORRISONS.COM,06/10/2020,H59620201007SEUQQVYCE-3,24.60,COMMUNITY FOCUSED EXTENDED SCH-FOOD & DRINK SUPPLIES,GROCERY STORES AND SUPERMARKETS,GPC
WALSALL COUNCIL,http://opendatacommunities.org/id/metropolitan-district-council/walsall,31/12/2020,CHILDRENS SERVICES,W M MORRISONS.COM,06/10/2020,H59620201007SEUQQVYCE-4,32.54,COMMUNITY FOCUSED EXTENDED SCH-FOOD & DRINK SUPPLIES,GROCERY STORES AND SUPERMARKETS,GPC
WALSALL COUNCIL,http://opendatacommunities.org/id/metropolitan-district-council/walsall,31/12/2020,RESOURCES & TRANSFORMATION,WM MORRISONS STORE,06/10/2020,H59620201007SHYPZKFTX-1,3.00,CATERING - MANAGEMENT-FOOD & DRINK SUPPLIES,GROCERY STORES AND SUPERMARKETS,GPC
WALSALL COUNCIL,http://opendatacommunities.org/id/metropolitan-district-council/walsall,31/12/2020,CHILDRENS SERVICES,AMZNMKTPLACE,06/10/2020,H59620201007SORWEHJTS-1,19.58,ADMINISTRATIVE SUPPLIES-MATERIALS,MISCELLANEOUS AND SPECIALTY RETAIL STORES,GPC
WALSALL COUNCIL,http://opendatacommunities.org/id/metropolitan-district-council/walsall,31/12/2020,CHILDRENS SERVICES,JYSK.CO.UK INTERNET GBP,06/10/2020,H59620201007TFNRGUULM-1,62.98,ADMINISTRATIVE SUPPLIES-PURCHASE OF FURNITURE & EQUIPM,"EQUIPMENT, FURNITURE, AND HOME FURNISHINGS STORES ",GPC
WALSALL COUNCIL,http://opendatacommunities.org/id/metropolitan-district-council/walsall,31/12/2020,CHILDRENS SERVICES,TESCO STORES 6161,06/10/2020,H59620201007TFNRPWDQV-1,4.00,FOOD TECHNOLOGY/HOSPITALITY-MATERIALS,GROCERY STORES AND SUPERMARKETS,GPC
WALSALL COUNCIL,http://opendatacommunities.org/id/metropolitan-district-council/walsall,31/12/2020,CHILDRENS SERVICES,TESCO STORES 6161,06/10/2020,H59620201007TFNRPWDQV-2,39.21,FOOD TECHNOLOGY/HOSPITALITY-MATERIALS,GROCERY STORES AND SUPERMARKETS,GPC
WALSALL COUNCIL,http://opendatacommunities.org/id/metropolitan-district-council/walsall,31/12/2020,CHILDRENS SERVICES,AMAZON.CO.UK*HS2LS1JU5,06/10/2020,H59620201007TQIRXONJK-1,17.42,E19-LIBRARY BOOKS,OTHER DIRECT MARKETING-OTHER DIRECT MARKETERS,GPC
WALSALL COUNCIL,http://opendatacommunities.org/id/metropolitan-district-council/walsall,31/12/2020,CHILDRENS SERVICES,ALDI 42 772,06/10/2020,H59620201007TQWUWINTG-1,11.05,REDRUTH ROAD-FOOD & DRINK SUPPLIES,GROCERY STORES AND SUPERMARKETS,GPC
WALSALL COUNCIL,http://opendatacommunities.org/id/metropolitan-district-council/walsall,31/12/2020,CHILDRENS SERVICES,ALDI 42 772,06/10/2020,H59620201007TQWUWINTG-2,71.41,REDRUTH ROAD-FOOD & DRINK SUPPLIES,GROCERY STORES AND SUPERMARKETS,GPC
WALSALL COUNCIL,http://opendatacommunities.org/id/metropolitan-district-council/walsall,31/12/2020,CHILDRENS SERVICES,AMZNMKTPLACE,06/10/2020,H59620201007UOBWUELGL-1,19.58,ADMINISTRATIVE SUPPLIES-MATERIALS,MISCELLANEOUS AND SPECIALTY RETAIL STORES,GPC
WALSALL COUNCIL,http://opendatacommunities.org/id/metropolitan-district-council/walsall,31/12/2020,RESOURCES & TRANSFORMATION,BLAKEMORE FOODSERVICE,06/10/2020,H59620201007USVIEBTCT-1,37.16,CATERING - SCHOOLS-FOOD & DRINK SUPPLIES,CATERERS,GPC
WALSALL COUNCIL,http://opendatacommunities.org/id/metropolitan-district-council/walsall,31/12/2020,CHILDRENS SERVICES,AMZNMKTPLACE,06/10/2020,H59620201007UTJZSQTEI-1,5.49,"43A HILTON ROAD, WILLENHALL-STATIONERY & GENERAL OFFICE SU",MISCELLANEOUS AND SPECIALTY RETAIL STORES,GPC
WALSALL COUNCIL,http://opendatacommunities.org/id/metropolitan-district-council/walsall,31/12/2020,CHILDRENS SERVICES,ASDA GROCERIES ONLINE,06/10/2020,H59620201007VLVTFDLTC-1,-7.64,FOOD TECHNOLOGY-MATERIALS,GROCERY STORES AND SUPERMARKETS,GPC
WALSALL COUNCIL,http://opendatacommunities.org/id/metropolitan-district-council/walsall,31/12/2020,CHILDRENS SERVICES,AMZNMKTPLACE AMAZON.CO.UK,06/10/2020,H59620201007VQQYYEBWV-1,4.78,WATLING STREET PRIMARY SCHOOL-OPERATIONAL MAINTENANCE,MISCELLANEOUS AND SPECIALTY RETAIL STORES,GPC
WALSALL COUNCIL,http://opendatacommunities.org/id/metropolitan-district-council/walsall,31/12/2020,ECONOMY & ENVIRONMENT,AMZNMKTPLACE,06/10/2020,H59620201007VRTMKWPVS-1,18.89,DARLASTON LEISURE CENTRE-MATERIALS,MISCELLANEOUS AND SPECIALTY RETAIL STORES,GPC
WALSALL COUNCIL,http://opendatacommunities.org/id/metropolitan-district-council/walsall,31/12/2020,ECONOMY & ENVIRONMENT,AMZNMKTPLACE,06/10/2020,H59620201007VRTMKWPVS-2,18.89,WALSALL GALA CENTRE-MATERIALS,MISCELLANEOUS AND SPECIALTY RETAIL STORES,GPC
WALSALL COUNCIL,http://opendatacommunities.org/id/metropolitan-district-council/walsall,31/12/2020,ECONOMY & ENVIRONMENT,AMZNMKTPLACE,06/10/2020,H59620201007VRTMKWPVS-3,28.89,OAK PARK-MATERIALS,MISCELLANEOUS AND SPECIALTY RETAIL STORES,GPC
WALSALL COUNCIL,http://opendatacommunities.org/id/metropolitan-district-council/walsall,31/12/2020,ECONOMY & ENVIRONMENT,AMZNMKTPLACE,06/10/2020,H59620201007VRTMKWPVS-4,28.89,BLOXWICH LEISURE CENTRE-MATERIALS,MISCELLANEOUS AND SPECIALTY RETAIL STORES,GPC
WALSALL COUNCIL,http://opendatacommunities.org/id/metropolitan-district-council/walsall,31/12/2020,CHILDRENS SERVICES,WALSALL COUNCIL,06/10/2020,H59620201007VWMGDVVQG-1,17.00,SAFEGUARDING & FAMILY SUPPORT-FEES & LICENCES,GOVERNMENT SERVICES,GPC
WALSALL COUNCIL,http://opendatacommunities.org/id/metropolitan-district-council/walsall,31/12/2020,CHILDRENS SERVICES,AMZNMKTPLACE,06/10/2020,H59620201007WBKXLNQLO-1,19.58,ADMINISTRATIVE SUPPLIES-MATERIALS,MISCELLANEOUS AND SPECIALTY RETAIL STORES,GPC
WALSALL COUNCIL,http://opendatacommunities.org/id/metropolitan-district-council/walsall,31/12/2020,ECONOMY & ENVIRONMENT,B & Q 1276,06/10/2020,H59620201007WGHAJPMFK-1,30.00,DARLASTON LEISURE CENTRE-PURCHASE OF FURNITURE & EQUIPM,HOME SUPPLY WAREHOUSE STORES,GPC
WALSALL COUNCIL,http://opendatacommunities.org/id/metropolitan-district-council/walsall,31/12/2020,CHILDRENS SERVICES,PAYPAL *VIRUSTATIC,06/10/2020,H59620201007WHCLUVPID-1,104.20,SPECIAL FACILITIES-MATERIALS,"MEN'S, WOMEN'S, AND CHILDREN'S UNIFORMS",GPC
WALSALL COUNCIL,http://opendatacommunities.org/id/metropolitan-district-council/walsall,31/12/2020,CHILDRENS SERVICES,AMZNMKTPLACE,06/10/2020,H59620201007WUABGVXCC-1,19.58,ADMINISTRATIVE SUPPLIES-MATERIALS,MISCELLANEOUS AND SPECIALTY RETAIL STORES,GPC
WALSALL COUNCIL,http://opendatacommunities.org/id/metropolitan-district-council/walsall,31/12/2020,CHILDRENS SERVICES,SS + JR JOHAL 31968,06/10/2020,H59620201007WURIOXHHI-1,20.50,WALSALL CRISIS SUPPORT SCHEME-FOOD & DRINK SUPPLIES,MISCELLANEOUS FOOD STORES & CONVENIENCE STORES,GPC
WALSALL COUNCIL,http://opendatacommunities.org/id/metropolitan-district-council/walsall,31/12/2020,CHILDRENS SERVICES,G & B KENDALLS & SONS,06/10/2020,H59620201007WYHMHDJNE-1,70.70,MARY ELLIOTT SCHOOL-FOOD & DRINK SUPPLIES,MISCELLANEOUS FOOD STORES & CONVENIENCE STORES,GPC
WALSALL COUNCIL,http://opendatacommunities.org/id/metropolitan-district-council/walsall,31/12/2020,CHILDRENS SERVICES,WALSALL COUNCIL,06/10/2020,H59620201007XGYDCPNRS-1,17.00,SAFEGUARDING & FAMILY SUPPORT-SECTION 1/17CHILD CARE ACT 198,GOVERNMENT SERVICES,GPC
WALSALL COUNCIL,http://opendatacommunities.org/id/metropolitan-district-council/walsall,31/12/2020,CHILDRENS SERVICES,HERON FOODS LTD,06/10/2020,H59620201007XNMDPFLPG-1,1.58,ADOLESCENT SERVICE-FOOD & DRINK SUPPLIES,MISCELLANEOUS FOOD STORES & CONVENIENCE STORES,GPC
WALSALL COUNCIL,http://opendatacommunities.org/id/metropolitan-district-council/walsall,31/12/2020,RESOURCES & TRANSFORMATION,BLAKEMORE FOODSERVICE,06/10/2020,H59620201007XRPABIJEV-1,300.10,CATERING - SCHOOLS-FOOD & DRINK SUPPLIES,CATERERS,GPC
WALSALL COUNCIL,http://opendatacommunities.org/id/metropolitan-district-council/walsall,31/12/2020,RESOURCES & TRANSFORMATION,BLAKEMORE FOODSERVICE,06/10/2020,H59620201007XRPABIJEV-2,27.14,CATERING - SCHOOLS-FOOD & DRINK SUPPLIES,CATERERS,GPC
WALSALL COUNCIL,http://opendatacommunities.org/id/metropolitan-district-council/walsall,31/12/2020,CHILDRENS SERVICES,WILKO RETAIL LIMITED,06/10/2020,H59620201007XSLQXLEMB-1,23.60,REDRUTH ROAD-OPERATIONAL MAINTENANCE,MISCELLANEOUS GENERAL MERCHANDISE,GPC
WALSALL COUNCIL,http://opendatacommunities.org/id/metropolitan-district-council/walsall,31/12/2020,CHILDRENS SERVICES,PAYPAL *EB WEBINAR EXP,06/10/2020,H59620201007XSNCYHZEE-1,20.00,ST JOHNS C.E. PRIMARY SCHOOL-EXTERNAL TRAINING,"THEATRICAL PRODUCERS, TIC",GPC
WALSALL COUNCIL,http://opendatacommunities.org/id/metropolitan-district-council/walsall,31/12/2020,RESOURCES & TRANSFORMATION,BLAKEMORE FOODSERVICE,06/10/2020,H59620201007XUOEAPVHS-1,17.79,CATERING - SCHOOLS-FOOD & DRINK SUPPLIES,CATERERS,GPC
WALSALL COUNCIL,http://opendatacommunities.org/id/metropolitan-district-council/walsall,31/12/2020,RESOURCES & TRANSFORMATION,ARTHUR BRETT CATER,06/10/2020,H59620201007YDWQOJEFG-1,-3.08,CATERING - SCHOOLS-FOOD & DRINK SUPPLIES,MISCELLANEOUS FOOD STORES & CONVENIENCE STORES,GPC
WALSALL COUNCIL,http://opendatacommunities.org/id/metropolitan-district-council/walsall,31/12/2020,CHILDRENS SERVICES,EB *TRAIN THE TRAINER,06/10/2020,H59620201007ZFBEGDCBY-1,29.76,EDUCATIONAL PSYCHOLOGISTS-EXTERNAL TRAINING,OTHER BUSINESS SERVICES,GPC
WALSALL COUNCIL,http://opendatacommunities.org/id/metropolitan-district-council/walsall,31/12/2020,RESOURCES & TRANSFORMATION,BLAKEMORE FOODSERVICE,06/10/2020,H59620201007ZOHQCXPEI-1,453.95,CATERING - SCHOOLS-FOOD & DRINK SUPPLIES,CATERERS,GPC
WALSALL COUNCIL,http://opendatacommunities.org/id/metropolitan-district-council/walsall,31/12/2020,RESOURCES & TRANSFORMATION,BLAKEMORE FOODSERVICE,06/10/2020,H59620201007ZOHQCXPEI-2,18.09,CATERING - SCHOOLS-FOOD & DRINK SUPPLIES,CATERERS,GPC
WALSALL COUNCIL,http://opendatacommunities.org/id/metropolitan-district-council/walsall,31/12/2020,CHILDRENS SERVICES,AMZNMKTPLACE,06/10/2020,H59620201007ZRVEQSHOQ-1,18.48,"43A HILTON ROAD, WILLENHALL-RESIDENTS PERSONAL EXPENSES-AL",MISCELLANEOUS AND SPECIALTY RETAIL STORES,GPC
WALSALL COUNCIL,http://opendatacommunities.org/id/metropolitan-district-council/walsall,31/12/2020,CHILDRENS SERVICES,WWW.BANNERUK.COM,07/10/2020,H59620201008CCQXSLPCD-1,55.20,FAMILY PLACEMENTS-STATIONERY & GENERAL OFFICE SU,"STATIONERY, OFFICE SUPPLIES AND WRITING PAPER",GPC
WALSALL COUNCIL,http://opendatacommunities.org/id/metropolitan-district-council/walsall,31/12/2020,RESOURCES & TRANSFORMATION,123 REG LTD,07/10/2020,H59620201008CJPXOTOEF-1,19.19,APPLICATIONS-COMPUTER EQUIPMENT,DIRECT MARKETING CONTINUITY SUBSCRIPTION MERCHANTS,GPC
WALSALL COUNCIL,http://opendatacommunities.org/id/metropolitan-district-council/walsall,31/12/2020,RESOURCES & TRANSFORMATION,ARTHUR BRETT CATER,07/10/2020,H59620201008CPSYAIPDX-1,25.42,CATERING - SCHOOLS-FOOD & DRINK SUPPLIES,MISCELLANEOUS FOOD STORES & CONVENIENCE STORES,GPC
WALSALL COUNCIL,http://opendatacommunities.org/id/metropolitan-district-council/walsall,31/12/2020,ECONOMY & ENVIRONMENT,SCREWFIX DIRECT,07/10/2020,H59620201008CTOKFUMQE-1,18.99,LEATHER MUSEUM-MATERIALS,LUMBER & BUILDING MATERIALS STORES,GPC
WALSALL COUNCIL,http://opendatacommunities.org/id/metropolitan-district-council/walsall,31/12/2020,RESOURCES & TRANSFORMATION,ARTHUR BRETT CATER,07/10/2020,H59620201008CVYQTVDQR-1,19.73,CATERING - SCHOOLS-FOOD & DRINK SUPPLIES,MISCELLANEOUS FOOD STORES & CONVENIENCE STORES,GPC
WALSALL COUNCIL,http://opendatacommunities.org/id/metropolitan-district-council/walsall,31/12/2020,CHILDRENS SERVICES,247 CARS WILLENHALL LTD,07/10/2020,H59620201008DFRCAVLVU-1,7.30,SAFEGUARDING & FAMILY SUPPORT-TAXI FARES,TAXI SERVICES,GPC
WALSALL COUNCIL,http://opendatacommunities.org/id/metropolitan-district-council/walsall,31/12/2020,RESOURCES & TRANSFORMATION,ARTHUR BRETT CATER,07/10/2020,H59620201008DSJRUTVIH-1,41.34,CATERING - SCHOOLS-FOOD & DRINK SUPPLIES,MISCELLANEOUS FOOD STORES & CONVENIENCE STORES,GPC
WALSALL COUNCIL,http://opendatacommunities.org/id/metropolitan-district-council/walsall,31/12/2020,RESOURCES & TRANSFORMATION,ARTHUR BRETT CATER,07/10/2020,H59620201008DTIWNCNEF-1,90.82,CATERING - SCHOOLS-FOOD & DRINK SUPPLIES,MISCELLANEOUS FOOD STORES & CONVENIENCE STORES,GPC
WALSALL COUNCIL,http://opendatacommunities.org/id/metropolitan-district-council/walsall,31/12/2020,RESOURCES & TRANSFORMATION,ARTHUR BRETT CATER,07/10/2020,H59620201008EEHHXEIEW-1,8.10,CATERING - SCHOOLS-FOOD & DRINK SUPPLIES,MISCELLANEOUS FOOD STORES & CONVENIENCE STORES,GPC
WALSALL COUNCIL,http://opendatacommunities.org/id/metropolitan-district-council/walsall,31/12/2020,CHILDRENS SERVICES,POST OFFICE COUNTER,07/10/2020,H59620201008EKDZABMSS-1,195.00,SAFEGUARDING & FAMILY SUPPORT-POSTAGES & COURIER SERVICES,POSTAL SERVICES - GOVERNMENT ONLY,GPC
WALSALL COUNCIL,http://opendatacommunities.org/id/metropolitan-district-council/walsall,31/12/2020,CHILDRENS SERVICES,AMZNMKTPLACE,07/10/2020,H59620201008EOOWDPYGO-1,131.94,CHILD PROTECTION & REVIEW SERV-STATIONERY & GENERAL OFFICE SU,MISCELLANEOUS AND SPECIALTY RETAIL STORES,GPC
WALSALL COUNCIL,http://opendatacommunities.org/id/metropolitan-district-council/walsall,31/12/2020,RESOURCES & TRANSFORMATION,ARTHUR BRETT CATER,07/10/2020,H59620201008EVENQUFHY-1,44.80,CATERING - SCHOOLS-FOOD & DRINK SUPPLIES,MISCELLANEOUS FOOD STORES & CONVENIENCE STORES,GPC
WALSALL COUNCIL,http://opendatacommunities.org/id/metropolitan-district-council/walsall,31/12/2020,ECONOMY & ENVIRONMENT,WWW.STA.CO.UK,07/10/2020,H59620201008FIVQPCMFU-1,62.71,DARLASTON LEISURE CENTRE-MATERIALS,OTHER RECREATION SERVICES,GPC
WALSALL COUNCIL,http://opendatacommunities.org/id/metropolitan-district-council/walsall,31/12/2020,CHILDRENS SERVICES,HM PASSPORT OFFICE,07/10/2020,H59620201008FJBFSACPB-1,85.00,LOOKED AFTER CHILDRENS SOCIAL -FEES & LICENCES,GOVERNMENT SERVICES,GPC
WALSALL COUNCIL,http://opendatacommunities.org/id/metropolitan-district-council/walsall,31/12/2020,CHILDRENS SERVICES,247 CARS WILLENHALL LTD,07/10/2020,H59620201008FUFCYFKAI-1,6.20,SAFEGUARDING & FAMILY SUPPORT-TAXI FARES,TAXI SERVICES,GPC
WALSALL COUNCIL,http://opendatacommunities.org/id/metropolitan-district-council/walsall,31/12/2020,CHILDRENS SERVICES,PARK INN BY RADISSON,07/10/2020,H59620201008FVVKEYMLD-1,195.00,SAFEGUARDING & FAMILY SUPPORT-SECTION 1/17CHILD CARE ACT 198,"HOTELS, MOTELS, RESORTS",GPC
WALSALL COUNCIL,http://opendatacommunities.org/id/metropolitan-district-council/walsall,31/12/2020,CHILDRENS SERVICES,AMZNMKTPLACE,07/10/2020,H59620201008GDPYMBZIN-1,15.50,ADMINISTRATIVE SUPPLIES-STATIONERY & GENERAL OFFICE SU,MISCELLANEOUS AND SPECIALTY RETAIL STORES,GPC
WALSALL COUNCIL,http://opendatacommunities.org/id/metropolitan-district-council/walsall,31/12/2020,RESOURCES & TRANSFORMATION,ARTHUR BRETT CATER,07/10/2020,H59620201008GJMFSPZAV-1,42.85,CATERING - SCHOOLS-FOOD & DRINK SUPPLIES,MISCELLANEOUS FOOD STORES & CONVENIENCE STORES,GPC
WALSALL COUNCIL,http://opendatacommunities.org/id/metropolitan-district-council/walsall,31/12/2020,CHILDRENS SERVICES,ASDA SUPERSTORE,07/10/2020,H59620201008GQPUNUBMI-1,8.00,REDRUTH ROAD-CLEANING MATERIALS,GROCERY STORES AND SUPERMARKETS,GPC
WALSALL COUNCIL,http://opendatacommunities.org/id/metropolitan-district-council/walsall,31/12/2020,RESOURCES & TRANSFORMATION,ARTHUR BRETT CATER,07/10/2020,H59620201008GULXFWGTJ-1,56.86,CATERING - SCHOOLS-FOOD & DRINK SUPPLIES,MISCELLANEOUS FOOD STORES & CONVENIENCE STORES,GPC
WALSALL COUNCIL,http://opendatacommunities.org/id/metropolitan-district-council/walsall,31/12/2020,CHILDRENS SERVICES,247 CARS WILLENHALL LTD,07/10/2020,H59620201008GZGLZKZNV-1,5.50,ADOLESCENT SERVICE-TAXI FARES,TAXI SERVICES,GPC
WALSALL COUNCIL,http://opendatacommunities.org/id/metropolitan-district-council/walsall,31/12/2020,CHILDRENS SERVICES,POST OFFICE COUNTER,07/10/2020,H59620201008HQKKCVIFD-1,39.00,ACCOMMODATION SERVICES MANAGEM-STATIONERY & GENERAL OFFICE SU,POSTAL SERVICES - GOVERNMENT ONLY,GPC
WALSALL COUNCIL,http://opendatacommunities.org/id/metropolitan-district-council/walsall,31/12/2020,CHILDRENS SERVICES,ARGOS LTD,07/10/2020,H59620201008HWWWOSAYK-1,35.00,CONTACT SESSIONAL STAFF-SECTION 34 (CONTACT),DISCOUNT STORES,GPC
WALSALL COUNCIL,http://opendatacommunities.org/id/metropolitan-district-council/walsall,31/12/2020,RESOURCES & TRANSFORMATION,NOBISCO LIMITED,07/10/2020,H59620201008ICHWWHTWJ-1,121.82,CATERING - SCHOOLS-PURCHASE OF FURNITURE & EQUIPM,OTHER INDUSTRIAL SUPPLIES,GPC
WALSALL COUNCIL,http://opendatacommunities.org/id/metropolitan-district-council/walsall,31/12/2020,CHILDRENS SERVICES,BT BILL PAYMENT 2,07/10/2020,H59620201008IGNZNTKIU-1,99.41,ADMINISTRATIVE SUPPLIES-MATERIALS,TELECOMMUNICATION EQUIPMENT & SALES,GPC
WALSALL COUNCIL,http://opendatacommunities.org/id/metropolitan-district-council/walsall,31/12/2020,RESOURCES & TRANSFORMATION,ARTHUR BRETT CATER,07/10/2020,H59620201008INHIEDGTY-1,54.80,CATERING - SCHOOLS-FOOD & DRINK SUPPLIES,MISCELLANEOUS FOOD STORES & CONVENIENCE STORES,GPC
WALSALL COUNCIL,http://opendatacommunities.org/id/metropolitan-district-council/walsall,31/12/2020,RESOURCES & TRANSFORMATION,ARTHUR BRETT CATER,07/10/2020,H59620201008JJYLYIGUB-1,10.50,CATERING - SCHOOLS-FOOD & DRINK SUPPLIES,MISCELLANEOUS FOOD STORES & CONVENIENCE STORES,GPC
WALSALL COUNCIL,http://opendatacommunities.org/id/metropolitan-district-council/walsall,31/12/2020,CHILDRENS SERVICES,247 CARS WILLENHALL LTD,07/10/2020,H59620201008JMCEYSHRR-1,23.00,SAFEGUARDING & FAMILY SUPPORT-TAXI FARES,TAXI SERVICES,GPC
WALSALL COUNCIL,http://opendatacommunities.org/id/metropolitan-district-council/walsall,31/12/2020,CHILDRENS SERVICES,SMBC REVENUES - IN,07/10/2020,H59620201008JVUCUGXTL-1,11.00,SAFEGUARDING & FAMILY SUPPORT-SECTION 1/17CHILD CARE ACT 198,"CONSULTING, MANAGEMENT, AND PR SERVICES",GPC
WALSALL COUNCIL,http://opendatacommunities.org/id/metropolitan-district-council/walsall,31/12/2020,RESOURCES & TRANSFORMATION,ARTHUR BRETT CATER,07/10/2020,H59620201008KOPGNGDCV-1,2.20,CATERING - SCHOOLS-FOOD & DRINK SUPPLIES,MISCELLANEOUS FOOD STORES & CONVENIENCE STORES,GPC
WALSALL COUNCIL,http://opendatacommunities.org/id/metropolitan-district-council/walsall,31/12/2020,RESOURCES & TRANSFORMATION,ARTHUR BRETT CATER,07/10/2020,H59620201008KUNHTHGVT-1,13.63,CATERING - SCHOOLS-FOOD & DRINK SUPPLIES,MISCELLANEOUS FOOD STORES & CONVENIENCE STORES,GPC
WALSALL COUNCIL,http://opendatacommunities.org/id/metropolitan-district-council/walsall,31/12/2020,RESOURCES & TRANSFORMATION,ARTHUR BRETT CATER,07/10/2020,H59620201008LATKKRSOB-1,79.01,CATERING - SCHOOLS-FOOD & DRINK SUPPLIES,MISCELLANEOUS FOOD STORES & CONVENIENCE STORES,GPC
WALSALL COUNCIL,http://opendatacommunities.org/id/metropolitan-district-council/walsall,31/12/2020,RESOURCES & TRANSFORMATION,ARTHUR BRETT CATER,07/10/2020,H59620201008LDZUFBUCV-1,19.62,CATERING - SCHOOLS-FOOD & DRINK SUPPLIES,MISCELLANEOUS FOOD STORES & CONVENIENCE STORES,GPC
WALSALL COUNCIL,http://opendatacommunities.org/id/metropolitan-district-council/walsall,31/12/2020,RESOURCES & TRANSFORMATION,ARTHUR BRETT CATER,07/10/2020,H59620201008LIJTTDJYR-1,29.50,CATERING - SCHOOLS-FOOD & DRINK SUPPLIES,MISCELLANEOUS FOOD STORES & CONVENIENCE STORES,GPC
WALSALL COUNCIL,http://opendatacommunities.org/id/metropolitan-district-council/walsall,31/12/2020,RESOURCES & TRANSFORMATION,NOBISCO LIMITED,07/10/2020,H59620201008LLVGYPWLB-1,56.98,CATERING - SCHOOLS-FOOD & DRINK SUPPLIES,OTHER INDUSTRIAL SUPPLIES,GPC
WALSALL COUNCIL,http://opendatacommunities.org/id/metropolitan-district-council/walsall,31/12/2020,RESOURCES & TRANSFORMATION,NOBISCO LIMITED,07/10/2020,H59620201008LTJEJWEJL-1,15.60,CATERING - SCHOOLS-FOOD & DRINK SUPPLIES,OTHER INDUSTRIAL SUPPLIES,GPC
WALSALL COUNCIL,http://opendatacommunities.org/id/metropolitan-district-council/walsall,31/12/2020,CHILDRENS SERVICES,METRO WALSALL,07/10/2020,H59620201008LTJYHHHOD-1,266.00,BED & BREAKFAST PAYMENTS-OFFICERS SUBSISTENCE EXPENSES,"EATING PLACES, RESTAURANTS",GPC
WALSALL COUNCIL,http://opendatacommunities.org/id/metropolitan-district-council/walsall,31/12/2020,CHILDRENS SERVICES,B & Q 1276,07/10/2020,H59620201008LUWRSHMJV-1,13.24,REDRUTH ROAD-OPERATIONAL MAINTENANCE,HOME SUPPLY WAREHOUSE STORES,GPC
WALSALL COUNCIL,http://opendatacommunities.org/id/metropolitan-district-council/walsall,31/12/2020,RESOURCES & TRANSFORMATION,NOBISCO LIMITED,07/10/2020,H59620201008LWATWHQPT-1,203.23,CATERING - SCHOOLS-FOOD & DRINK SUPPLIES,OTHER INDUSTRIAL SUPPLIES,GPC
WALSALL COUNCIL,http://opendatacommunities.org/id/metropolitan-district-council/walsall,31/12/2020,CHILDRENS SERVICES,247 CARS WILLENHALL LTD,07/10/2020,H59620201008LXPVONQFR-1,53.60,SAFEGUARDING & FAMILY SUPPORT-TAXI FARES,TAXI SERVICES,GPC
WALSALL COUNCIL,http://opendatacommunities.org/id/metropolitan-district-council/walsall,31/12/2020,CHILDRENS SERVICES,NCS TRUST,07/10/2020,H59620201008MCXUEVOPY-1,-50.00,"43A HILTON ROAD, WILLENHALL-RESIDENTS PERSONAL EXPENSES-AL","ASSOCIATIONS-CIVIC, SOCIAL, AND FRATERNAL",GPC
WALSALL COUNCIL,http://opendatacommunities.org/id/metropolitan-district-council/walsall,31/12/2020,CHILDRENS SERVICES,AMZNMKTPLACE,07/10/2020,H59620201008MGVWYZHNQ-1,12.59,ST JOHNS C.E. PRIMARY SCHOOL-OPERATIONAL MAINTENANCE,MISCELLANEOUS AND SPECIALTY RETAIL STORES,GPC
WALSALL COUNCIL,http://opendatacommunities.org/id/metropolitan-district-council/walsall,31/12/2020,RESOURCES & TRANSFORMATION,NOBISCO LIMITED,07/10/2020,H59620201008MIBBHWUYA-1,71.06,CATERING - SCHOOLS-FOOD & DRINK SUPPLIES,OTHER INDUSTRIAL SUPPLIES,GPC
WALSALL COUNCIL,http://opendatacommunities.org/id/metropolitan-district-council/walsall,31/12/2020,CHILDRENS SERVICES,FRAUD CB HIMLEY COUNTRY H,07/10/2020,H59620201008MLFBHSTWQ-1,-125.00,BED & BREAKFAST PAYMENTS-ACCOMMODATION AND RELATED COST,"HOTELS, MOTELS, RESORTS",GPC
WALSALL COUNCIL,http://opendatacommunities.org/id/metropolitan-district-council/walsall,31/12/2020,RESOURCES & TRANSFORMATION,POST OFFICE COUNTER,07/10/2020,H59620201008NCVNIAWTK-1,11.00,LAW LIBRARY-STATIONERY & GENERAL OFFICE SU,POSTAL SERVICES - GOVERNMENT ONLY,GPC
WALSALL COUNCIL,http://opendatacommunities.org/id/metropolitan-district-council/walsall,31/12/2020,CHILDRENS SERVICES,SMBC REVENUES - IN,07/10/2020,H59620201008NGHHKTMRV-1,11.00,SAFEGUARDING & FAMILY SUPPORT-SECTION 1/17CHILD CARE ACT 198,"CONSULTING, MANAGEMENT, AND PR SERVICES",GPC
WALSALL COUNCIL,http://opendatacommunities.org/id/metropolitan-district-council/walsall,31/12/2020,RESOURCES & TRANSFORMATION,ARTHUR BRETT CATER,07/10/2020,H59620201008NSBVCPCQV-1,98.54,CATERING - SCHOOLS-FOOD & DRINK SUPPLIES,MISCELLANEOUS FOOD STORES & CONVENIENCE STORES,GPC
WALSALL COUNCIL,http://opendatacommunities.org/id/metropolitan-district-council/walsall,31/12/2020,CHILDRENS SERVICES,AMAZON.CO.UK*3K3Z751Y5,07/10/2020,H59620201008NUAMVJBYI-1,26.25,ADMINISTRATIVE SUPPLIES-MATERIALS,OTHER DIRECT MARKETING-OTHER DIRECT MARKETERS,GPC
WALSALL COUNCIL,http://opendatacommunities.org/id/metropolitan-district-council/walsall,31/12/2020,RESOURCES & TRANSFORMATION,ARTHUR BRETT CATER,07/10/2020,H59620201008NVNOKKHLJ-1,12.13,CATERING - SCHOOLS-FOOD & DRINK SUPPLIES,MISCELLANEOUS FOOD STORES & CONVENIENCE STORES,GPC
WALSALL COUNCIL,http://opendatacommunities.org/id/metropolitan-district-council/walsall,31/12/2020,RESOURCES & TRANSFORMATION,ARTHUR BRETT CATER,07/10/2020,H59620201008OAJBBYWNJ-1,67.75,CATERING - SCHOOLS-FOOD & DRINK SUPPLIES,MISCELLANEOUS FOOD STORES & CONVENIENCE STORES,GPC
WALSALL COUNCIL,http://opendatacommunities.org/id/metropolitan-district-council/walsall,31/12/2020,CHILDRENS SERVICES,POST OFFICE COUNTER,07/10/2020,H59620201008OBHMZDTJJ-1,24.32,ADMIN-POSTAGES & COURIER SERVICES,POSTAL SERVICES - GOVERNMENT ONLY,GPC
WALSALL COUNCIL,http://opendatacommunities.org/id/metropolitan-district-council/walsall,31/12/2020,CHILDRENS SERVICES,HM PASSPORT OFFICE,07/10/2020,H59620201008OFVNXDUIM-1,58.50,LOOKED AFTER CHILDRENS SOCIAL -FEES & LICENCES,GOVERNMENT SERVICES,GPC
WALSALL COUNCIL,http://opendatacommunities.org/id/metropolitan-district-council/walsall,31/12/2020,RESOURCES & TRANSFORMATION,ARTHUR BRETT CATER,07/10/2020,H59620201008OGDISIAUN-1,32.93,CATERING - SCHOOLS-FOOD & DRINK SUPPLIES,MISCELLANEOUS FOOD STORES & CONVENIENCE STORES,GPC
WALSALL COUNCIL,http://opendatacommunities.org/id/metropolitan-district-council/walsall,31/12/2020,CHILDRENS SERVICES,CITY OF WOLVERHAMPTON,07/10/2020,H59620201008OIPKGKYZP-1,16.00,LOOKED AFTER CHILDRENS SOCIAL -FEES & LICENCES,GOVERNMENT SERVICES,GPC
WALSALL COUNCIL,http://opendatacommunities.org/id/metropolitan-district-council/walsall,31/12/2020,CHILDRENS SERVICES,THE BLOXWISH SHOWM,07/10/2020,H59620201008OLGBLZGYL-1,17.18,ADOLESCENT SERVICE-OFFICERS SUBSISTENCE EXPENSES,"EATING PLACES, RESTAURANTS",GPC
WALSALL COUNCIL,http://opendatacommunities.org/id/metropolitan-district-council/walsall,31/12/2020,CHILDRENS SERVICES,B&M 419 - HS REEDSWOOD,07/10/2020,H59620201008OMWBWGSHT-1,20.43,ADOLESCENT SERVICE-MATERIALS,MISCELLANEOUS GENERAL MERCHANDISE,GPC
WALSALL COUNCIL,http://opendatacommunities.org/id/metropolitan-district-council/walsall,31/12/2020,RESOURCES & TRANSFORMATION,ARTHUR BRETT CATER,07/10/2020,H59620201008ONUWEXTBU-1,29.36,CATERING - SCHOOLS-FOOD & DRINK SUPPLIES,MISCELLANEOUS FOOD STORES & CONVENIENCE STORES,GPC
WALSALL COUNCIL,http://opendatacommunities.org/id/metropolitan-district-council/walsall,31/12/2020,RESOURCES & TRANSFORMATION,ARTHUR BRETT CATER,07/10/2020,H59620201008PIIFHUCKL-1,85.82,CATERING - SCHOOLS-FOOD & DRINK SUPPLIES,MISCELLANEOUS FOOD STORES & CONVENIENCE STORES,GPC
WALSALL COUNCIL,http://opendatacommunities.org/id/metropolitan-district-council/walsall,31/12/2020,RESOURCES & TRANSFORMATION,NOBISCO LIMITED,07/10/2020,H59620201008QBTCIQPLW-1,22.28,CATERING - SCHOOLS-FOOD & DRINK SUPPLIES,OTHER INDUSTRIAL SUPPLIES,GPC
WALSALL COUNCIL,http://opendatacommunities.org/id/metropolitan-district-council/walsall,31/12/2020,CHILDRENS SERVICES,247 CARS WILLENHALL LTD,07/10/2020,H59620201008QDYVRCPDJ-1,25.30,SAFEGUARDING & FAMILY SUPPORT-TAXI FARES,TAXI SERVICES,GPC
WALSALL COUNCIL,http://opendatacommunities.org/id/metropolitan-district-council/walsall,31/12/2020,RESOURCES & TRANSFORMATION,ARTHUR BRETT CATER,07/10/2020,H59620201008QJTGEAUXX-1,39.65,CATERING - SCHOOLS-FOOD & DRINK SUPPLIES,MISCELLANEOUS FOOD STORES & CONVENIENCE STORES,GPC
WALSALL COUNCIL,http://opendatacommunities.org/id/metropolitan-district-council/walsall,31/12/2020,CHILDRENS SERVICES,AAA CARS WALSALL LTD,07/10/2020,H59620201008RNNXSDOTO-1,35.00,SAFEGUARDING & FAMILY SUPPORT-TAXI FARES,TAXI SERVICES,GPC
WALSALL COUNCIL,http://opendatacommunities.org/id/metropolitan-district-council/walsall,31/12/2020,CHILDRENS SERVICES,TRAINLINE,07/10/2020,H59620201008RPTUFIJFL-1,40.78,SAFEGUARDING & FAMILY SUPPORT-OFFICERS & STAFF PUBLIC TRANSP,PASSENGER RAILWAYS,GPC
WALSALL COUNCIL,http://opendatacommunities.org/id/metropolitan-district-council/walsall,31/12/2020,RESOURCES & TRANSFORMATION,ARTHUR BRETT CATER,07/10/2020,H59620201008RQERISCKI-1,59.92,CATERING - SCHOOLS-FOOD & DRINK SUPPLIES,MISCELLANEOUS FOOD STORES & CONVENIENCE STORES,GPC
WALSALL COUNCIL,http://opendatacommunities.org/id/metropolitan-district-council/walsall,31/12/2020,RESOURCES & TRANSFORMATION,NOBISCO LIMITED,07/10/2020,H59620201008RYLPXKDJN-1,81.48,CATERING - SCHOOLS-FOOD & DRINK SUPPLIES,OTHER INDUSTRIAL SUPPLIES,GPC
WALSALL COUNCIL,http://opendatacommunities.org/id/metropolitan-district-council/walsall,31/12/2020,RESOURCES & TRANSFORMATION,ARTHUR BRETT CATER,07/10/2020,H59620201008SBQSOESRB-1,22.72,CATERING - SCHOOLS-FOOD & DRINK SUPPLIES,MISCELLANEOUS FOOD STORES & CONVENIENCE STORES,GPC
WALSALL COUNCIL,http://opendatacommunities.org/id/metropolitan-district-council/walsall,31/12/2020,RESOURCES & TRANSFORMATION,ARTHUR BRETT CATER,07/10/2020,H59620201008SKULKQHEP-1,42.79,CATERING - SCHOOLS-FOOD & DRINK SUPPLIES,MISCELLANEOUS FOOD STORES & CONVENIENCE STORES,GPC
WALSALL COUNCIL,http://opendatacommunities.org/id/metropolitan-district-council/walsall,31/12/2020,RESOURCES & TRANSFORMATION,ARTHUR BRETT CATER,07/10/2020,H59620201008SVJEWQXSK-1,55.68,CATERING - SCHOOLS-FOOD & DRINK SUPPLIES,MISCELLANEOUS FOOD STORES & CONVENIENCE STORES,GPC
WALSALL COUNCIL,http://opendatacommunities.org/id/metropolitan-district-council/walsall,31/12/2020,CHILDRENS SERVICES,AMAZON.CO.UK*Q561D7385,07/10/2020,H59620201008TNFFBMGJO-1,40.58,VIRTUAL SCHOOL - CENTRAL PUPIL-OTHER EXPENSES,OTHER DIRECT MARKETING-OTHER DIRECT MARKETERS,GPC
WALSALL COUNCIL,http://opendatacommunities.org/id/metropolitan-district-council/walsall,31/12/2020,RESOURCES & TRANSFORMATION,ARTHUR BRETT CATER,07/10/2020,H59620201008TPRMQPZHQ-1,36.99,CATERING - SCHOOLS-FOOD & DRINK SUPPLIES,MISCELLANEOUS FOOD STORES & CONVENIENCE STORES,GPC
WALSALL COUNCIL,http://opendatacommunities.org/id/metropolitan-district-council/walsall,31/12/2020,RESOURCES & TRANSFORMATION,ARTHUR BRETT CATER,07/10/2020,H59620201008UMLCGDKVQ-1,20.67,CATERING - SCHOOLS-FOOD & DRINK SUPPLIES,MISCELLANEOUS FOOD STORES & CONVENIENCE STORES,GPC
WALSALL COUNCIL,http://opendatacommunities.org/id/metropolitan-district-council/walsall,31/12/2020,RESOURCES & TRANSFORMATION,ARTHUR BRETT CATER,07/10/2020,H59620201008UTURBRUPH-1,35.30,CATERING - SCHOOLS-FOOD & DRINK SUPPLIES,MISCELLANEOUS FOOD STORES & CONVENIENCE STORES,GPC
WALSALL COUNCIL,http://opendatacommunities.org/id/metropolitan-district-council/walsall,31/12/2020,CHILDRENS SERVICES,HOTEL ON BOOKING.COM,07/10/2020,H59620201008VCIVCCQIP-1,99.45,BED & BREAKFAST PAYMENTS-BED & BREAKFAST PAYMENTS,"HOTELS, MOTELS, RESORTS",GPC
WALSALL COUNCIL,http://opendatacommunities.org/id/metropolitan-district-council/walsall,31/12/2020,RESOURCES & TRANSFORMATION,ARTHUR BRETT CATER,07/10/2020,H59620201008VGVGQKKDR-1,74.45,CATERING - SCHOOLS-FOOD & DRINK SUPPLIES,MISCELLANEOUS FOOD STORES & CONVENIENCE STORES,GPC
WALSALL COUNCIL,http://opendatacommunities.org/id/metropolitan-district-council/walsall,31/12/2020,CHILDRENS SERVICES,AMZNMKTPLACE,07/10/2020,H59620201008VLNEQULLU-1,8.79,ICT LEARNING RESOURCES-PURCHASE OF FURNITURE & EQUIPM,MISCELLANEOUS AND SPECIALTY RETAIL STORES,GPC
WALSALL COUNCIL,http://opendatacommunities.org/id/metropolitan-district-council/walsall,31/12/2020,CHILDRENS SERVICES,PARK INN BY RADISSON,07/10/2020,H59620201008VOGSGTSAK-1,118.00,SAFEGUARDING & FAMILY SUPPORT-SECTION 1/17CHILD CARE ACT 198,"HOTELS, MOTELS, RESORTS",GPC
WALSALL COUNCIL,http://opendatacommunities.org/id/metropolitan-district-council/walsall,31/12/2020,CHILDRENS SERVICES,PARK INN BY RADISSON,07/10/2020,H59620201008VOGSGTSAK-2,9.20,SAFEGUARDING & FAMILY SUPPORT-SECTION 1/17CHILD CARE ACT 198,"HOTELS, MOTELS, RESORTS",GPC
WALSALL COUNCIL,http://opendatacommunities.org/id/metropolitan-district-council/walsall,31/12/2020,CHILDRENS SERVICES,247 CARS WILLENHALL LTD,07/10/2020,H59620201008VPHWYKPNS-1,5.50,ADOLESCENT SERVICE-TAXI FARES,TAXI SERVICES,GPC
WALSALL COUNCIL,http://opendatacommunities.org/id/metropolitan-district-council/walsall,31/12/2020,RESOURCES & TRANSFORMATION,AMZNMKTPLACE,07/10/2020,H59620201008VWTKBSBDD-1,17.12,CENTRALISED STATIONARY-STATIONERY & GENERAL OFFICE SU,MISCELLANEOUS AND SPECIALTY RETAIL STORES,GPC
WALSALL COUNCIL,http://opendatacommunities.org/id/metropolitan-district-council/walsall,31/12/2020,CHILDRENS SERVICES,GOOGLE *YOUTUBEPREMIUM,07/10/2020,H59620201008WEIDOHVKK-1,11.99,CADMUS FEDERATION-MATERIALS,DIGITAL GOODS - APPLICATIONS (EXCLUDES GAMES),GPC
WALSALL COUNCIL,http://opendatacommunities.org/id/metropolitan-district-council/walsall,31/12/2020,RESOURCES & TRANSFORMATION,ARTHUR BRETT CATER,07/10/2020,H59620201008WIBDVDSXW-1,10.50,CATERING - SCHOOLS-FOOD & DRINK SUPPLIES,MISCELLANEOUS FOOD STORES & CONVENIENCE STORES,GPC
WALSALL COUNCIL,http://opendatacommunities.org/id/metropolitan-district-council/walsall,31/12/2020,RESOURCES & TRANSFORMATION,WM MORRISONS STORE,07/10/2020,H59620201008WLYRZAAZW-1,20.34,CATERING - MANAGEMENT-FOOD & DRINK SUPPLIES,GROCERY STORES AND SUPERMARKETS,GPC
WALSALL COUNCIL,http://opendatacommunities.org/id/metropolitan-district-council/walsall,31/12/2020,RESOURCES & TRANSFORMATION,ARTHUR BRETT CATER,07/10/2020,H59620201008YECAMOWNG-1,32.04,CATERING - SCHOOLS-FOOD & DRINK SUPPLIES,MISCELLANEOUS FOOD STORES & CONVENIENCE STORES,GPC
WALSALL COUNCIL,http://opendatacommunities.org/id/metropolitan-district-council/walsall,31/12/2020,CHILDRENS SERVICES,DVLA DRIVER ONLINE,07/10/2020,H59620201008YHOOQVVAD-1,34.00,SUPPORT UNDER SECT 23 OF THE C-SUPPORT UNDER SECTION 23 OF TH,GOVERNMENT SERVICES,GPC
WALSALL COUNCIL,http://opendatacommunities.org/id/metropolitan-district-council/walsall,31/12/2020,RESOURCES & TRANSFORMATION,ARTHUR BRETT CATER,07/10/2020,H59620201008YKHCFPMJW-1,34.43,CATERING - SCHOOLS-FOOD & DRINK SUPPLIES,MISCELLANEOUS FOOD STORES & CONVENIENCE STORES,GPC
WALSALL COUNCIL,http://opendatacommunities.org/id/metropolitan-district-council/walsall,31/12/2020,RESOURCES & TRANSFORMATION,ARTHUR BRETT CATER,07/10/2020,H59620201008YKLBAOOWA-1,43.18,CATERING - SCHOOLS-FOOD & DRINK SUPPLIES,MISCELLANEOUS FOOD STORES & CONVENIENCE STORES,GPC
WALSALL COUNCIL,http://opendatacommunities.org/id/metropolitan-district-council/walsall,31/12/2020,CHILDRENS SERVICES,ASDA SUPERSTORE,07/10/2020,H59620201008ZGJUCRTDN-1,5.50,MARY ELLIOTT SCHOOL-FOOD & DRINK SUPPLIES,GROCERY STORES AND SUPERMARKETS,GPC
WALSALL COUNCIL,http://opendatacommunities.org/id/metropolitan-district-council/walsall,31/12/2020,CHILDRENS SERVICES,ASDA SUPERSTORE,07/10/2020,H59620201008ZGJUCRTDN-2,0.93,MARY ELLIOTT SCHOOL-FOOD & DRINK SUPPLIES,GROCERY STORES AND SUPERMARKETS,GPC
WALSALL COUNCIL,http://opendatacommunities.org/id/metropolitan-district-council/walsall,31/12/2020,RESOURCES & TRANSFORMATION,WWW.BANNERUK.COM,07/10/2020,H59620201008ZHHICIYRQ-1,23.33,LAW LIBRARY-STATIONERY & GENERAL OFFICE SU,"STATIONERY, OFFICE SUPPLIES AND WRITING PAPER",GPC
WALSALL COUNCIL,http://opendatacommunities.org/id/metropolitan-district-council/walsall,31/12/2020,RESOURCES & TRANSFORMATION,ARTHUR BRETT CATER,07/10/2020,H59620201008ZMSJNUCEM-1,50.92,CATERING - SCHOOLS-FOOD & DRINK SUPPLIES,MISCELLANEOUS FOOD STORES & CONVENIENCE STORES,GPC
WALSALL COUNCIL,http://opendatacommunities.org/id/metropolitan-district-council/walsall,31/12/2020,CHILDRENS SERVICES,POST OFFICE COUNTER,07/10/2020,H59620201008ZPUPJVYRG-1,293.00,SAFEGUARDING & FAMILY SUPPORT-POSTAGES & COURIER SERVICES,POSTAL SERVICES - GOVERNMENT ONLY,GPC
WALSALL COUNCIL,http://opendatacommunities.org/id/metropolitan-district-council/walsall,31/12/2020,ECONOMY & ENVIRONMENT,AMZNMKTPLACE AMAZON.CO.UK,07/10/2020,H59620201008ZPVFHLBUQ-1,463.12,CEMETERIES CENTRAL ADMINISTRAT-STATIONERY & GENERAL OFFICE SU,MISCELLANEOUS AND SPECIALTY RETAIL STORES,GPC
WALSALL COUNCIL,http://opendatacommunities.org/id/metropolitan-district-council/walsall,31/12/2020,CHILDRENS SERVICES,AMAZON.CO.UK*UN92J4HA5,07/10/2020,H59620201008ZSFETEIJN-1,26.87,ST FRANCIS OF ASSISI CATHOLIC -OPERATIONAL MAINTENANCE,OTHER DIRECT MARKETING-OTHER DIRECT MARKETERS,GPC
WALSALL COUNCIL,http://opendatacommunities.org/id/metropolitan-district-council/walsall,31/12/2020,RESOURCES & TRANSFORMATION,BLAKEMORE FOODSERVICE,08/10/2020,H59620201009AMFXUUEMH-1,480.62,CATERING - SCHOOLS-FOOD & DRINK SUPPLIES,CATERERS,GPC
WALSALL COUNCIL,http://opendatacommunities.org/id/metropolitan-district-council/walsall,31/12/2020,RESOURCES & TRANSFORMATION,BLAKEMORE FOODSERVICE,08/10/2020,H59620201009AMFXUUEMH-2,36.19,CATERING - SCHOOLS-FOOD & DRINK SUPPLIES,CATERERS,GPC
WALSALL COUNCIL,http://opendatacommunities.org/id/metropolitan-district-council/walsall,31/12/2020,RESOURCES & TRANSFORMATION,BLAKEMORE FOODSERVICE,08/10/2020,H59620201009AOBGGTMMF-1,54.61,CATERING - SCHOOLS-FOOD & DRINK SUPPLIES,CATERERS,GPC
WALSALL COUNCIL,http://opendatacommunities.org/id/metropolitan-district-council/walsall,31/12/2020,CHILDRENS SERVICES,247 CARS WILLENHALL LTD,08/10/2020,H59620201009BJABIOQFR-1,23.00,SAFEGUARDING & FAMILY SUPPORT-SECTION 1/17CHILD CARE ACT 198,TAXI SERVICES,GPC
WALSALL COUNCIL,http://opendatacommunities.org/id/metropolitan-district-council/walsall,31/12/2020,RESOURCES & TRANSFORMATION,SAINSBURYS S/MKTS,08/10/2020,H59620201009BKBYOEWBF-1,0.90,CATERING - MANAGEMENT-FOOD & DRINK SUPPLIES,GROCERY STORES AND SUPERMARKETS,GPC
WALSALL COUNCIL,http://opendatacommunities.org/id/metropolitan-district-council/walsall,31/12/2020,ECONOMY & ENVIRONMENT,WWW.BANNERUK.COM,08/10/2020,H59620201009BRSBFWAHX-1,87.86,LIBRARY OPERATIONS - MOBILE SE-MATERIALS,"STATIONERY, OFFICE SUPPLIES AND WRITING PAPER",GPC
WALSALL COUNCIL,http://opendatacommunities.org/id/metropolitan-district-council/walsall,31/12/2020,RESOURCES & TRANSFORMATION,WM MORRISONS STORE,08/10/2020,H59620201009CLBNHKWTJ-1,28.90,CATERING - MANAGEMENT-FOOD & DRINK SUPPLIES,GROCERY STORES AND SUPERMARKETS,GPC
WALSALL COUNCIL,http://opendatacommunities.org/id/metropolitan-district-council/walsall,31/12/2020,CHILDRENS SERVICES,METRO WALSALL,08/10/2020,H59620201009COFCXXVER-1,532.00,BED & BREAKFAST PAYMENTS-BED & BREAKFAST PAYMENTS,"EATING PLACES, RESTAURANTS",GPC
WALSALL COUNCIL,http://opendatacommunities.org/id/metropolitan-district-council/walsall,31/12/2020,CHILDRENS SERVICES,PAYPAL *DIMENSIONSC,08/10/2020,H59620201009CPJILBKVB-1,540.00,E19-MATERIALS,"SCHOOLS, ELEMENTARY AND SECONDARY",GPC
WALSALL COUNCIL,http://opendatacommunities.org/id/metropolitan-district-council/walsall,31/12/2020,CHILDRENS SERVICES,AMZNMKTPLACE,08/10/2020,H59620201009CVGYIQPOT-1,24.95,LAW-MATERIALS,MISCELLANEOUS AND SPECIALTY RETAIL STORES,GPC
WALSALL COUNCIL,http://opendatacommunities.org/id/metropolitan-district-council/walsall,31/12/2020,RESOURCES & TRANSFORMATION,BLAKEMORE FOODSERVICE,08/10/2020,H59620201009CYKXVKYGP-1,296.14,CATERING - SCHOOLS-FOOD & DRINK SUPPLIES,CATERERS,GPC
WALSALL COUNCIL,http://opendatacommunities.org/id/metropolitan-district-council/walsall,31/12/2020,RESOURCES & TRANSFORMATION,BLAKEMORE FOODSERVICE,08/10/2020,H59620201009CYKXVKYGP-2,9.04,CATERING - SCHOOLS-FOOD & DRINK SUPPLIES,CATERERS,GPC
WALSALL COUNCIL,http://opendatacommunities.org/id/metropolitan-district-council/walsall,31/12/2020,ECONOMY & ENVIRONMENT,TOOLSTATION LTD,08/10/2020,H59620201009DQPTBIEZL-1,50.56,STREET CLEANSING-MATERIALS,LUMBER & BUILDING MATERIALS STORES,GPC
WALSALL COUNCIL,http://opendatacommunities.org/id/metropolitan-district-council/walsall,31/12/2020,CHILDRENS SERVICES,IZ *C & T LOCKSMITHS LTD,08/10/2020,H59620201009DWPVLXCCM-1,144.00,NEW LEAF PUPIL REFERAL UNIT-MATERIALS,MISCELLANEOUS AND SPECIALTY RETAIL STORES,GPC
WALSALL COUNCIL,http://opendatacommunities.org/id/metropolitan-district-council/walsall,31/12/2020,ECONOMY & ENVIRONMENT,B&M 402 - BROWNHILLS,08/10/2020,H59620201009EVEPWPPFL-1,10.45,BROWNHILLS LIBRARY-CLEANING MATERIALS,MISCELLANEOUS GENERAL MERCHANDISE,GPC
WALSALL COUNCIL,http://opendatacommunities.org/id/metropolitan-district-council/walsall,31/12/2020,CHILDRENS SERVICES,PAYPAL *EUROFFICELT,08/10/2020,H59620201009FEIJUQUZJ-1,63.22,NURSERY-MATERIALS,"OFFICE, SCHOOL SUPPLY, AND STATIONERY STORES",GPC
WALSALL COUNCIL,http://opendatacommunities.org/id/metropolitan-district-council/walsall,31/12/2020,CHILDRENS SERVICES,B&M 419 - HS REEDSWOOD,08/10/2020,H59620201009FODEYDKAC-1,23.97,REDRUTH ROAD-PURCHASE OF FURNITURE & EQUIPM,MISCELLANEOUS GENERAL MERCHANDISE,GPC
WALSALL COUNCIL,http://opendatacommunities.org/id/metropolitan-district-council/walsall,31/12/2020,CHILDRENS SERVICES,HMCOURTS-SERVICE.G,08/10/2020,H59620201009FRXLELDUR-1,22.00,SUPPORT UNDER SECT 23 OF THE C-SUPPORT UNDER SECTION 23 OF TH,FINES,GPC
WALSALL COUNCIL,http://opendatacommunities.org/id/metropolitan-district-council/walsall,31/12/2020,CHILDRENS SERVICES,FINDEL EDUCATION,08/10/2020,H59620201009GIOIDHMFQ-1,140.00,CURRICULUM STOCK-MATERIALS,OTHER DIRECT MARKETING-OTHER DIRECT MARKETERS,GPC
WALSALL COUNCIL,http://opendatacommunities.org/id/metropolitan-district-council/walsall,31/12/2020,ECONOMY & ENVIRONMENT,AMZ*AMODFF,08/10/2020,H59620201009GLKRKUXUM-1,-71.96,DARLASTON LEISURE CENTRE-STATIONERY & GENERAL OFFICE SU,MISCELLANEOUS AND SPECIALTY RETAIL STORES,GPC
WALSALL COUNCIL,http://opendatacommunities.org/id/metropolitan-district-council/walsall,31/12/2020,ECONOMY & ENVIRONMENT,AMZNMKTPLACE,08/10/2020,H59620201009GRHYYVTVS-1,10.60,REGISTRAR-STATIONERY & GENERAL OFFICE SU,MISCELLANEOUS AND SPECIALTY RETAIL STORES,GPC
WALSALL COUNCIL,http://opendatacommunities.org/id/metropolitan-district-council/walsall,31/12/2020,RESOURCES & TRANSFORMATION,BLAKEMORE FOODSERVICE,08/10/2020,H59620201009HAOAWPPPT-1,211.23,CATERING - SCHOOLS-FOOD & DRINK SUPPLIES,CATERERS,GPC
WALSALL COUNCIL,http://opendatacommunities.org/id/metropolitan-district-council/walsall,31/12/2020,CHILDRENS SERVICES,WWW.SLINGSBY.COM,08/10/2020,H59620201009HRYILFCWV-1,202.64,MEADOW VIEW JMI PRIMARY SCHOOL-OPERATIONAL MAINTENANCE,OTHER INDUSTRIAL SUPPLIES,GPC
WALSALL COUNCIL,http://opendatacommunities.org/id/metropolitan-district-council/walsall,31/12/2020,RESOURCES & TRANSFORMATION,BLAKEMORE FOODSERVICE,08/10/2020,H59620201009HYJMGXEGS-1,356.25,CATERING - SCHOOLS-FOOD & DRINK SUPPLIES,CATERERS,GPC
WALSALL COUNCIL,http://opendatacommunities.org/id/metropolitan-district-council/walsall,31/12/2020,RESOURCES & TRANSFORMATION,BLAKEMORE FOODSERVICE,08/10/2020,H59620201009HYJMGXEGS-2,36.19,CATERING - SCHOOLS-FOOD & DRINK SUPPLIES,CATERERS,GPC
WALSALL COUNCIL,http://opendatacommunities.org/id/metropolitan-district-council/walsall,31/12/2020,RESOURCES & TRANSFORMATION,BLAKEMORE FOODSERVICE,08/10/2020,H59620201009IXXPDVPWJ-1,-18.96,CATERING - SCHOOLS-FOOD & DRINK SUPPLIES,CATERERS,GPC
WALSALL COUNCIL,http://opendatacommunities.org/id/metropolitan-district-council/walsall,31/12/2020,ECONOMY & ENVIRONMENT,AMZNMKTPLACE,08/10/2020,H59620201009JACGBAQEW-1,29.98,BLOXWICH LEISURE CENTRE-STATIONERY & GENERAL OFFICE SU,MISCELLANEOUS AND SPECIALTY RETAIL STORES,GPC
WALSALL COUNCIL,http://opendatacommunities.org/id/metropolitan-district-council/walsall,31/12/2020,CHILDRENS SERVICES,BAMBINO PLANET,08/10/2020,H59620201009JUJQWCNXH-1,27.48,E19-MATERIALS,"EQUIPMENT, FURNITURE, AND HOME FURNISHINGS STORES ",GPC
WALSALL COUNCIL,http://opendatacommunities.org/id/metropolitan-district-council/walsall,31/12/2020,RESOURCES & TRANSFORMATION,BLAKEMORE FOODSERVICE,08/10/2020,H59620201009KGPMXIPUP-1,293.58,CATERING - SCHOOLS-FOOD & DRINK SUPPLIES,CATERERS,GPC
WALSALL COUNCIL,http://opendatacommunities.org/id/metropolitan-district-council/walsall,31/12/2020,ECONOMY & ENVIRONMENT,LINWOOD TRADE SUPPLIES,08/10/2020,H59620201009LDWQKMYSR-1,192.00,WALSALL ARENA AND ARTS CENTRE-PURCHASE OF FURNITURE & EQUIPM,HOME SUPPLY WAREHOUSE STORES,GPC
WALSALL COUNCIL,http://opendatacommunities.org/id/metropolitan-district-council/walsall,31/12/2020,RESOURCES & TRANSFORMATION,BLAKEMORE FOODSERVICE,08/10/2020,H59620201009LLDBDJEZQ-1,400.44,CATERING - SCHOOLS-FOOD & DRINK SUPPLIES,CATERERS,GPC
WALSALL COUNCIL,http://opendatacommunities.org/id/metropolitan-district-council/walsall,31/12/2020,RESOURCES & TRANSFORMATION,BLAKEMORE FOODSERVICE,08/10/2020,H59620201009LLDBDJEZQ-2,42.69,CATERING - SCHOOLS-FOOD & DRINK SUPPLIES,CATERERS,GPC
WALSALL COUNCIL,http://opendatacommunities.org/id/metropolitan-district-council/walsall,31/12/2020,RESOURCES & TRANSFORMATION,BLAKEMORE FOODSERVICE,08/10/2020,H59620201009LLYLEQBFV-1,149.52,CATERING - SCHOOLS-FOOD & DRINK SUPPLIES,CATERERS,GPC
WALSALL COUNCIL,http://opendatacommunities.org/id/metropolitan-district-council/walsall,31/12/2020,RESOURCES & TRANSFORMATION,BLAKEMORE FOODSERVICE,08/10/2020,H59620201009LLYLEQBFV-2,87.69,CATERING - SCHOOLS-FOOD & DRINK SUPPLIES,CATERERS,GPC
WALSALL COUNCIL,http://opendatacommunities.org/id/metropolitan-district-council/walsall,31/12/2020,RESOURCES & TRANSFORMATION,BLAKEMORE FOODSERVICE,08/10/2020,H59620201009LSWMROWXU-1,195.79,CATERING - SCHOOLS-FOOD & DRINK SUPPLIES,CATERERS,GPC
WALSALL COUNCIL,http://opendatacommunities.org/id/metropolitan-district-council/walsall,31/12/2020,RESOURCES & TRANSFORMATION,BLAKEMORE FOODSERVICE,08/10/2020,H59620201009LSWMROWXU-2,21.57,CATERING - SCHOOLS-FOOD & DRINK SUPPLIES,CATERERS,GPC
WALSALL COUNCIL,http://opendatacommunities.org/id/metropolitan-district-council/walsall,31/12/2020,CHILDRENS SERVICES,WICKES BUILDING,08/10/2020,H59620201009LXSCHDLKI-1,533.25,MEADOW VIEW JMI PRIMARY SCHOOL-OPERATIONAL MAINTENANCE,LUMBER & BUILDING MATERIALS STORES,GPC
WALSALL COUNCIL,http://opendatacommunities.org/id/metropolitan-district-council/walsall,31/12/2020,CHILDRENS SERVICES,POST OFFICE COUNTER,08/10/2020,H59620201009LYUHGVVGR-1,13.40,ROUGH SLEEPING INITIATIVE GRAN-CRISIS SUPPORT PAYMENTS,POSTAL SERVICES - GOVERNMENT ONLY,GPC
WALSALL COUNCIL,http://opendatacommunities.org/id/metropolitan-district-council/walsall,31/12/2020,CHILDRENS SERVICES,PP*MOVE CARE,08/10/2020,H59620201009MEQLUOYHB-1,850.00,SAFEGUARDING & FAMILY SUPPORT-POSTAGES & COURIER SERVICES,COURIER SERVICES,GPC
WALSALL COUNCIL,http://opendatacommunities.org/id/metropolitan-district-council/walsall,31/12/2020,CHILDRENS SERVICES,BULL DOG APPLIANCES LT,08/10/2020,H59620201009NNNTWOYSM-1,229.98,TRANSITION AND LEAVING CARE PL-CARE LEAVERS MTCE PAYMENTS,HOUSEHOLD APPLIANCE STORES,GPC
WALSALL COUNCIL,http://opendatacommunities.org/id/metropolitan-district-council/walsall,31/12/2020,CHILDRENS SERVICES,TESCO STORES 6161,08/10/2020,H59620201009NUPNNPMVK-1,0.99,FOOD TECHNOLOGY/HOSPITALITY-MATERIALS,GROCERY STORES AND SUPERMARKETS,GPC
WALSALL COUNCIL,http://opendatacommunities.org/id/metropolitan-district-council/walsall,31/12/2020,CHILDRENS SERVICES,TESCO STORES 6161,08/10/2020,H59620201009NUPNNPMVK-2,27.98,FOOD TECHNOLOGY/HOSPITALITY-MATERIALS,GROCERY STORES AND SUPERMARKETS,GPC
WALSALL COUNCIL,http://opendatacommunities.org/id/metropolitan-district-council/walsall,31/12/2020,CHILDRENS SERVICES,BUZZ NETWORKS TA VIRTUAL,08/10/2020,H59620201009OMFZFWEPI-1,12.96,CADMUS FEDERATION-MATERIALS,TELECOMMUNICATION SERVICES,GPC
WALSALL COUNCIL,http://opendatacommunities.org/id/metropolitan-district-council/walsall,31/12/2020,CHILDRENS SERVICES,WALSALL STN T/O,08/10/2020,H59620201009OPVDLNGES-1,17.70,ROUGH SLEEPING INITIATIVE GRAN-CRISIS SUPPORT PAYMENTS,PASSENGER RAILWAYS,GPC
WALSALL COUNCIL,http://opendatacommunities.org/id/metropolitan-district-council/walsall,31/12/2020,RESOURCES & TRANSFORMATION,BLAKEMORE FOODSERVICE,08/10/2020,H59620201009OQKSDDROG-1,-168.20,CATERING - SCHOOLS-FOOD & DRINK SUPPLIES,CATERERS,GPC
WALSALL COUNCIL,http://opendatacommunities.org/id/metropolitan-district-council/walsall,31/12/2020,RESOURCES & TRANSFORMATION,AMZNMKTPLACE,08/10/2020,H59620201009OUZYDBMUD-1,58.05,YEI ESF FUNDING-PROFESSIONAL FEES & SERVICES,MISCELLANEOUS AND SPECIALTY RETAIL STORES,GPC
WALSALL COUNCIL,http://opendatacommunities.org/id/metropolitan-district-council/walsall,31/12/2020,RESOURCES & TRANSFORMATION,AMZNMKTPLACE,08/10/2020,H59620201009OUZYDBMUD-2,58.06,YEI (IMPACT) PROGRAMME-PROFESSIONAL FEES & SERVICES,MISCELLANEOUS AND SPECIALTY RETAIL STORES,GPC
WALSALL COUNCIL,http://opendatacommunities.org/id/metropolitan-district-council/walsall,31/12/2020,CHILDRENS SERVICES,MAX SPIELMANN LTD,08/10/2020,H59620201009OYEFGUMHA-1,19.98,WALSALL CRISIS SUPPORT SCHEME-CRISIS SUPPORT PAYMENTS,MISCELLANEOUS AND SPECIALTY RETAIL STORES,GPC
WALSALL COUNCIL,http://opendatacommunities.org/id/metropolitan-district-council/walsall,31/12/2020,CHILDRENS SERVICES,AMAZON.CO.UK*5P37Z60E5,08/10/2020,H59620201009QITJSHRIS-1,28.08,YEAR 5 / 6-MATERIALS,OTHER DIRECT MARKETING-OTHER DIRECT MARKETERS,GPC
WALSALL COUNCIL,http://opendatacommunities.org/id/metropolitan-district-council/walsall,31/12/2020,RESOURCES & TRANSFORMATION,AMAZON.CO.UK*IZ1EV66K5,08/10/2020,H59620201009QSFSTSYEV-1,286.98,LAW LIBRARY-STATIONERY & GENERAL OFFICE SU,OTHER DIRECT MARKETING-OTHER DIRECT MARKETERS,GPC
WALSALL COUNCIL,http://opendatacommunities.org/id/metropolitan-district-council/walsall,31/12/2020,RESOURCES & TRANSFORMATION,BLAKEMORE FOODSERVICE,08/10/2020,H59620201009QTCWJJMNO-1,605.56,CATERING - SCHOOLS-FOOD & DRINK SUPPLIES,CATERERS,GPC
WALSALL COUNCIL,http://opendatacommunities.org/id/metropolitan-district-council/walsall,31/12/2020,RESOURCES & TRANSFORMATION,ASDA SUPERSTORE,08/10/2020,H59620201009QTUJNDYAU-1,3.00,CATERING - MANAGEMENT-FOOD & DRINK SUPPLIES,GROCERY STORES AND SUPERMARKETS,GPC
WALSALL COUNCIL,http://opendatacommunities.org/id/metropolitan-district-council/walsall,31/12/2020,CHILDRENS SERVICES,247 CARS WILLENHALL LTD,08/10/2020,H59620201009SBKDMSGUB-1,25.40,SAFEGUARDING & FAMILY SUPPORT-SECTION 1/17CHILD CARE ACT 198,TAXI SERVICES,GPC
WALSALL COUNCIL,http://opendatacommunities.org/id/metropolitan-district-council/walsall,31/12/2020,CHILDRENS SERVICES,BRITISH HEART FOUNDATI,08/10/2020,H59620201009SHDJXDHSY-1,184.00,TRANSITION AND LEAVING CARE PL-CARE LEAVERS MTCE PAYMENTS,"ORGANIZATIONS, CHARITABLE AND SOCIAL SERVICE",GPC
WALSALL COUNCIL,http://opendatacommunities.org/id/metropolitan-district-council/walsall,31/12/2020,CHILDRENS SERVICES,KFC,08/10/2020,H59620201009TFJLQDITP-1,5.09,ADOLESCENT SERVICE-OFFICERS SUBSISTENCE EXPENSES,QUICK PAYMENT SERVICE-FAST-FOOD RESTAURANTS,GPC
WALSALL COUNCIL,http://opendatacommunities.org/id/metropolitan-district-council/walsall,31/12/2020,RESOURCES & TRANSFORMATION,WWW.SCC.COM,08/10/2020,H59620201009UQDBTJMXC-1,396.52,RECHARGEABLE EQUIPMENT-COMPUTER EQUIPMENT,"COMPUTERS, COMPUTER PERIPHERAL EQUIPMENT, SOFTWARE",GPC
WALSALL COUNCIL,http://opendatacommunities.org/id/metropolitan-district-council/walsall,31/12/2020,CHILDRENS SERVICES,ELEGANCE CARPETS FLOORI,08/10/2020,H59620201009UYKXTWRWB-1,185.00,TRANSITION AND LEAVING CARE PL-CARE LEAVERS MTCE PAYMENTS,FLOOR COVERING STORES,GPC
WALSALL COUNCIL,http://opendatacommunities.org/id/metropolitan-district-council/walsall,31/12/2020,CHILDRENS SERVICES,MCDONALDS,08/10/2020,H59620201009VDJCEQOEH-1,0.99,ADOLESCENT SERVICE-FOOD & DRINK SUPPLIES,QUICK PAYMENT SERVICE-FAST-FOOD RESTAURANTS,GPC
WALSALL COUNCIL,http://opendatacommunities.org/id/metropolitan-district-council/walsall,31/12/2020,CHILDRENS SERVICES,MCDONALDS,08/10/2020,H59620201009VDJCEQOEH-2,2.10,ADOLESCENT SERVICE-FOOD & DRINK SUPPLIES,QUICK PAYMENT SERVICE-FAST-FOOD RESTAURANTS,GPC
WALSALL COUNCIL,http://opendatacommunities.org/id/metropolitan-district-council/walsall,31/12/2020,ECONOMY & ENVIRONMENT,AMZ*AMAZON.CO.UK,08/10/2020,H59620201009VKWGFBENX-1,-22.39,BLOXWICH LEISURE CENTRE-MATERIALS,MISCELLANEOUS AND SPECIALTY RETAIL STORES,GPC
WALSALL COUNCIL,http://opendatacommunities.org/id/metropolitan-district-council/walsall,31/12/2020,RESOURCES & TRANSFORMATION,BLAKEMORE FOODSERVICE,08/10/2020,H59620201009VTTKPUXJK-1,107.94,CATERING - SCHOOLS-FOOD & DRINK SUPPLIES,CATERERS,GPC
WALSALL COUNCIL,http://opendatacommunities.org/id/metropolitan-district-council/walsall,31/12/2020,RESOURCES & TRANSFORMATION,BLAKEMORE FOODSERVICE,08/10/2020,H59620201009VTTKPUXJK-2,18.09,CATERING - SCHOOLS-FOOD & DRINK SUPPLIES,CATERERS,GPC
WALSALL COUNCIL,http://opendatacommunities.org/id/metropolitan-district-council/walsall,31/12/2020,CHILDRENS SERVICES,AMZNMKTPLACE,08/10/2020,H59620201009WJLBQXXZQ-1,37.59,ADMINISTRATIVE SUPPLIES-MATERIALS,MISCELLANEOUS AND SPECIALTY RETAIL STORES,GPC
WALSALL COUNCIL,http://opendatacommunities.org/id/metropolitan-district-council/walsall,31/12/2020,CHILDRENS SERVICES,TWINKL LIMITED,08/10/2020,H59620201009WWSCSNKLP-1,74.88,EARLY YEARS-STATIONERY & GENERAL OFFICE SU,OTHER SCHOOLS AND EDUCATIONAL SERVICES,GPC
WALSALL COUNCIL,http://opendatacommunities.org/id/metropolitan-district-council/walsall,31/12/2020,CHILDRENS SERVICES,AMZNMKTPLACE AMAZON.CO.UK,08/10/2020,H59620201009XNORCWBKY-1,11.98,ST FRANCIS OF ASSISI CATHOLIC -OPERATIONAL MAINTENANCE,MISCELLANEOUS AND SPECIALTY RETAIL STORES,GPC
WALSALL COUNCIL,http://opendatacommunities.org/id/metropolitan-district-council/walsall,31/12/2020,CHILDRENS SERVICES,ARGOS WALSALL CROW,08/10/2020,H59620201009YCWBXMODP-1,674.92,TRANSITION AND LEAVING CARE PL-CARE LEAVERS MTCE PAYMENTS,DISCOUNT STORES,GPC
WALSALL COUNCIL,http://opendatacommunities.org/id/metropolitan-district-council/walsall,31/12/2020,CHILDRENS SERVICES,WWW.BANNERUK.COM,08/10/2020,H59620201009YFXQHZSBM-1,21.90,FAMILY PLACEMENTS-STATIONERY & GENERAL OFFICE SU,"STATIONERY, OFFICE SUPPLIES AND WRITING PAPER",GPC
WALSALL COUNCIL,http://opendatacommunities.org/id/metropolitan-district-council/walsall,31/12/2020,RESOURCES & TRANSFORMATION,BLAKEMORE FOODSERVICE,08/10/2020,H59620201009ZAIRNJUEL-1,172.66,CATERING - SCHOOLS-FOOD & DRINK SUPPLIES,CATERERS,GPC
WALSALL COUNCIL,http://opendatacommunities.org/id/metropolitan-district-council/walsall,31/12/2020,RESOURCES & TRANSFORMATION,BLAKEMORE FOODSERVICE,08/10/2020,H59620201009ZAIRNJUEL-2,187.92,CATERING - SCHOOLS-FOOD & DRINK SUPPLIES,CATERERS,GPC
WALSALL COUNCIL,http://opendatacommunities.org/id/metropolitan-district-council/walsall,31/12/2020,CHILDRENS SERVICES,METRO WALSALL,08/10/2020,H59620201009ZCXEYKUZD-1,5000.00,BED & BREAKFAST PAYMENTS-OFFICERS SUBSISTENCE EXPENSES,"EATING PLACES, RESTAURANTS",GPC
WALSALL COUNCIL,http://opendatacommunities.org/id/metropolitan-district-council/walsall,31/12/2020,CHILDRENS SERVICES,AMZNMKTPLACE,08/10/2020,H59620201009ZTZEKDRKC-1,8.99,ADMINISTRATIVE SUPPLIES-MATERIALS,MISCELLANEOUS AND SPECIALTY RETAIL STORES,GPC
WALSALL COUNCIL,http://opendatacommunities.org/id/metropolitan-district-council/walsall,31/12/2020,CHILDRENS SERVICES,WALSALL COUNCIL,09/10/2020,H59620201010ALSJAHIXJ-1,17.00,SAFEGUARDING & FAMILY SUPPORT-FEES & LICENCES,GOVERNMENT SERVICES,GPC
WALSALL COUNCIL,http://opendatacommunities.org/id/metropolitan-district-council/walsall,31/12/2020,CHILDRENS SERVICES,AMZNMKTPLACE,09/10/2020,H59620201010AWDNNNGLH-1,28.74,ST FRANCIS OF ASSISI CATHOLIC -STATIONERY & GENERAL OFFICE SU,MISCELLANEOUS AND SPECIALTY RETAIL STORES,GPC
WALSALL COUNCIL,http://opendatacommunities.org/id/metropolitan-district-council/walsall,31/12/2020,CHILDRENS SERVICES,247 CARS WILLENHALL LTD,09/10/2020,H59620201010BPWPLXWNE-1,24.40,SAFEGUARDING & FAMILY SUPPORT-SECTION 1/17CHILD CARE ACT 198,TAXI SERVICES,GPC
WALSALL COUNCIL,http://opendatacommunities.org/id/metropolitan-district-council/walsall,31/12/2020,ECONOMY & ENVIRONMENT,TOOLSTATION LTD,09/10/2020,H59620201010CIJSQDOPY-1,10.18,STREET CLEANSING-MATERIALS,LUMBER & BUILDING MATERIALS STORES,GPC
WALSALL COUNCIL,http://opendatacommunities.org/id/metropolitan-district-council/walsall,31/12/2020,CHILDRENS SERVICES,WWW.HYGIENEFIRST.CO.UK,09/10/2020,H59620201010CJBKKKXDK-1,69.36,SPECIAL FACILITIES-MATERIALS,DENTAL/LABORATORY/MEDICAL EQUIPMENT & SUPPLIES,GPC
WALSALL COUNCIL,http://opendatacommunities.org/id/metropolitan-district-council/walsall,31/12/2020,CHILDRENS SERVICES,AMZNMKTPLACE,09/10/2020,H59620201010CLETGYXXH-1,5.48,ROSEDALE C.E. PRIMARY SCHOOL-OPERATIONAL MAINTENANCE,MISCELLANEOUS AND SPECIALTY RETAIL STORES,GPC
WALSALL COUNCIL,http://opendatacommunities.org/id/metropolitan-district-council/walsall,31/12/2020,ECONOMY & ENVIRONMENT,WWW.BANNERUK.COM,09/10/2020,H59620201010CQVPTMTUF-1,1.92,RESOURCE MANAGEMENT-STATIONERY & GENERAL OFFICE SU,"STATIONERY, OFFICE SUPPLIES AND WRITING PAPER",GPC
WALSALL COUNCIL,http://opendatacommunities.org/id/metropolitan-district-council/walsall,31/12/2020,CHILDRENS SERVICES,MCDONALDS,09/10/2020,H59620201010DEUEYOZGJ-1,3.48,ADOLESCENT SERVICE-OFFICERS SUBSISTENCE EXPENSES,QUICK PAYMENT SERVICE-FAST-FOOD RESTAURANTS,GPC
WALSALL COUNCIL,http://opendatacommunities.org/id/metropolitan-district-council/walsall,31/12/2020,CHILDRENS SERVICES,MCDONALDS,09/10/2020,H59620201010DEUEYOZGJ-2,1.89,ADOLESCENT SERVICE-OFFICERS SUBSISTENCE EXPENSES,QUICK PAYMENT SERVICE-FAST-FOOD RESTAURANTS,GPC
WALSALL COUNCIL,http://opendatacommunities.org/id/metropolitan-district-council/walsall,31/12/2020,CHILDRENS SERVICES,HTTP://WWW.FORWARDPRODUC,09/10/2020,H59620201010DRGETFBJX-1,171.16,ADMINISTRATIVE SUPPLIES-MATERIALS,"STATIONERY, OFFICE SUPPLIES AND WRITING PAPER",GPC
WALSALL COUNCIL,http://opendatacommunities.org/id/metropolitan-district-council/walsall,31/12/2020,CHILDRENS SERVICES,SPEEDY FREIGHT,09/10/2020,H59620201010FUFJCCLCV-1,60.00,SAFEGUARDING & FAMILY SUPPORT-PROFESSIONAL FEES & SERVICES,MOTOR FREIGHT CARRIERS,GPC
WALSALL COUNCIL,http://opendatacommunities.org/id/metropolitan-district-council/walsall,31/12/2020,CHILDRENS SERVICES,WALSALL COUNCIL,09/10/2020,H59620201010GOSIARQRQ-1,17.00,LOOKED AFTER CHILDRENS SOCIAL -FEES & LICENCES,GOVERNMENT SERVICES,GPC
WALSALL COUNCIL,http://opendatacommunities.org/id/metropolitan-district-council/walsall,31/12/2020,CHILDRENS SERVICES,THETRAINLINE.COM,09/10/2020,H59620201010GPAIYRFSJ-1,12.87,EARLY YEARS AND DISABILITIES S-OFFICERS & STAFF PUBLIC TRANSP,PASSENGER RAILWAYS,GPC
WALSALL COUNCIL,http://opendatacommunities.org/id/metropolitan-district-council/walsall,31/12/2020,ADULT SOCIAL CARE,AMZNMKTPLACE,09/10/2020,H59620201010GYFVNKSFN-1,59.55,INTERMEDIATE CARE SERVICE-CLOTHING & LAUNDRY,MISCELLANEOUS AND SPECIALTY RETAIL STORES,GPC
WALSALL COUNCIL,http://opendatacommunities.org/id/metropolitan-district-council/walsall,31/12/2020,CHILDRENS SERVICES,MARKS&SPENCER PLC,09/10/2020,H59620201010HCIGEPBWN-1,30.00,ROSEDALE C.E. PRIMARY SCHOOL-MATERIALS,GROCERY STORES AND SUPERMARKETS,GPC
WALSALL COUNCIL,http://opendatacommunities.org/id/metropolitan-district-council/walsall,31/12/2020,CHILDRENS SERVICES,ALDI 772 129,09/10/2020,H59620201010HCVCMOSVC-1,0.59,"43A HILTON ROAD, WILLENHALL-FOOD & DRINK SUPPLIES",GROCERY STORES AND SUPERMARKETS,GPC
WALSALL COUNCIL,http://opendatacommunities.org/id/metropolitan-district-council/walsall,31/12/2020,CHILDRENS SERVICES,ALDI 772 129,09/10/2020,H59620201010HCVCMOSVC-2,5.48,"43A HILTON ROAD, WILLENHALL-FOOD & DRINK SUPPLIES",GROCERY STORES AND SUPERMARKETS,GPC
WALSALL COUNCIL,http://opendatacommunities.org/id/metropolitan-district-council/walsall,31/12/2020,CHILDRENS SERVICES,WALSALL COUNCIL,09/10/2020,H59620201010IPOMUGQAM-1,22.50,ACCOMMODATION SERVICES MANAGEM-FEES & LICENCES,GOVERNMENT SERVICES,GPC
WALSALL COUNCIL,http://opendatacommunities.org/id/metropolitan-district-council/walsall,31/12/2020,CHILDRENS SERVICES,PREMIER INN44533745,09/10/2020,H59620201010KMEPUIFCV-1,147.00,LOOKED AFTER CHILDRENS SOCIAL -SECTION 34 (CONTACT),PREMIER INN,GPC
WALSALL COUNCIL,http://opendatacommunities.org/id/metropolitan-district-council/walsall,31/12/2020,CHILDRENS SERVICES,METRO WALSALL,09/10/2020,H59620201010LFWNPSGEH-1,38.00,BED & BREAKFAST PAYMENTS-OFFICERS SUBSISTENCE EXPENSES,"EATING PLACES, RESTAURANTS",GPC
WALSALL COUNCIL,http://opendatacommunities.org/id/metropolitan-district-council/walsall,31/12/2020,CHILDRENS SERVICES,AMZNMKTPLACE,09/10/2020,H59620201010LYJFROLLU-1,55.90,CURRICULUM STOCK-MATERIALS,MISCELLANEOUS AND SPECIALTY RETAIL STORES,GPC
WALSALL COUNCIL,http://opendatacommunities.org/id/metropolitan-district-council/walsall,31/12/2020,ECONOMY & ENVIRONMENT,SCREWFIX DIR LTD,09/10/2020,H59620201010MOAIQGELW-1,9.99,DEPOT-MATERIALS,LUMBER & BUILDING MATERIALS STORES,GPC
WALSALL COUNCIL,http://opendatacommunities.org/id/metropolitan-district-council/walsall,31/12/2020,ECONOMY & ENVIRONMENT,AMZNMKTPLACE,09/10/2020,H59620201010MRHYJRMOQ-1,28.66,COMMUNITY LIASON-STATIONERY & GENERAL OFFICE SU,MISCELLANEOUS AND SPECIALTY RETAIL STORES,GPC
WALSALL COUNCIL,http://opendatacommunities.org/id/metropolitan-district-council/walsall,31/12/2020,ECONOMY & ENVIRONMENT,ROYAL YACHTING ASSOC,09/10/2020,H59620201010NIOCLJFXD-1,37.00,WALSALL OUTDOOR ADVENTURE CENT-PROFESSIONAL FEES & SERVICES,OTHER BUSINESS SERVICES,GPC
WALSALL COUNCIL,http://opendatacommunities.org/id/metropolitan-district-council/walsall,31/12/2020,CHILDRENS SERVICES,ENVOY OB TICKET,09/10/2020,H59620201010NKBBKKDMU-1,7.40,ADOLESCENT SERVICE-OFFICERS & STAFF PUBLIC TRANSP,PASSENGER RAILWAYS,GPC
WALSALL COUNCIL,http://opendatacommunities.org/id/metropolitan-district-council/walsall,31/12/2020,CHILDRENS SERVICES,THETRAINLINE.COM,09/10/2020,H59620201010NQWLGUMML-1,12.87,EARLY YEARS AND DISABILITIES S-OFFICERS & STAFF PUBLIC TRANSP,PASSENGER RAILWAYS,GPC
WALSALL COUNCIL,http://opendatacommunities.org/id/metropolitan-district-council/walsall,31/12/2020,ECONOMY & ENVIRONMENT,MAUDESPORT LTD,09/10/2020,H59620201010NWTXKHWAG-1,277.50,OAK PARK-PURCHASE OF FURNITURE & EQUIPM,SPORTING GOODS STORES,GPC
WALSALL COUNCIL,http://opendatacommunities.org/id/metropolitan-district-council/walsall,31/12/2020,RESOURCES & TRANSFORMATION,POST OFFICE COUNTER,09/10/2020,H59620201010OFVXDNMUB-1,5.52,YEI ESF FUNDING-PROFESSIONAL FEES & SERVICES,POSTAL SERVICES - GOVERNMENT ONLY,GPC
WALSALL COUNCIL,http://opendatacommunities.org/id/metropolitan-district-council/walsall,31/12/2020,RESOURCES & TRANSFORMATION,POST OFFICE COUNTER,09/10/2020,H59620201010OFVXDNMUB-2,5.52,YEI (IMPACT) PROGRAMME-PROFESSIONAL FEES & SERVICES,POSTAL SERVICES - GOVERNMENT ONLY,GPC
WALSALL COUNCIL,http://opendatacommunities.org/id/metropolitan-district-council/walsall,31/12/2020,CHILDRENS SERVICES,AMAZON.CO.UK*QQ3DF2ZR5,09/10/2020,H59620201010OOBZEKMHZ-1,5.95,SAFEGUARDING-MATERIALS,OTHER DIRECT MARKETING-OTHER DIRECT MARKETERS,GPC
WALSALL COUNCIL,http://opendatacommunities.org/id/metropolitan-district-council/walsall,31/12/2020,CHILDRENS SERVICES,DENMANS ELECTRICAL,09/10/2020,H59620201010OUCHUQGCZ-1,191.04,MARY ELLIOTT SCHOOL-OPERATIONAL MAINTENANCE,ELECTRICAL PARTS AND EQUIPMENT,GPC
WALSALL COUNCIL,http://opendatacommunities.org/id/metropolitan-district-council/walsall,31/12/2020,CHILDRENS SERVICES,WWW.ICO.ORG.UK,09/10/2020,H59620201010QNJJPWMWW-1,40.00,ADMINISTRATIVE SUPPLIES-MATERIALS,GOVERNMENT SERVICES,GPC
WALSALL COUNCIL,http://opendatacommunities.org/id/metropolitan-district-council/walsall,31/12/2020,RESOURCES & TRANSFORMATION,WWW.BANNERUK.COM,09/10/2020,H59620201010RFUNZIFXE-1,24.95,CENTRALISED STATIONARY-STATIONERY & GENERAL OFFICE SU,"STATIONERY, OFFICE SUPPLIES AND WRITING PAPER",GPC
WALSALL COUNCIL,http://opendatacommunities.org/id/metropolitan-district-council/walsall,31/12/2020,CHILDRENS SERVICES,EUROFLORIST AB,09/10/2020,H59620201010SLCTHRCJH-1,29.98,FAMILY PLACEMENTS-FEES & LICENCES,FLORISTS,GPC
WALSALL COUNCIL,http://opendatacommunities.org/id/metropolitan-district-council/walsall,31/12/2020,CHILDRENS SERVICES,AMAZON.CO.UK*8J24F52N5,09/10/2020,H59620201010SMCTRLGHO-1,21.54,GENERAL-MATERIALS,OTHER DIRECT MARKETING-OTHER DIRECT MARKETERS,GPC
WALSALL COUNCIL,http://opendatacommunities.org/id/metropolitan-district-council/walsall,31/12/2020,ECONOMY & ENVIRONMENT,AMZ*BESTDEAL WAREHOUSE,09/10/2020,H59620201010TBEZQMNBQ-1,-89.97,RESOURCE MANAGEMENT-STATIONERY & GENERAL OFFICE SU,MISCELLANEOUS AND SPECIALTY RETAIL STORES,GPC
WALSALL COUNCIL,http://opendatacommunities.org/id/metropolitan-district-council/walsall,31/12/2020,RESOURCES & TRANSFORMATION,NOBISCO LIMITED,09/10/2020,H59620201010TIQIOFSUF-1,12.43,CATERING - SCHOOLS-FOOD & DRINK SUPPLIES,OTHER INDUSTRIAL SUPPLIES,GPC
WALSALL COUNCIL,http://opendatacommunities.org/id/metropolitan-district-council/walsall,31/12/2020,CHILDRENS SERVICES,POST OFFICE COUNTER,09/10/2020,H59620201010TSBLIZCNE-1,7.50,ADOLESCENT SERVICE-STATIONERY & GENERAL OFFICE SU,POSTAL SERVICES - GOVERNMENT ONLY,GPC
WALSALL COUNCIL,http://opendatacommunities.org/id/metropolitan-district-council/walsall,31/12/2020,CHILDRENS SERVICES,WWW.SAFETYFIRSTAID.CO.,09/10/2020,H59620201010UKPDDDBYD-1,118.20,ADMINISTRATIVE SUPPLIES-MEDICAL REQUISITES-MATERIALS,OTHER INDUSTRIAL SUPPLIES,GPC
WALSALL COUNCIL,http://opendatacommunities.org/id/metropolitan-district-council/walsall,31/12/2020,RESOURCES & TRANSFORMATION,ARTHUR BRETT CATER,09/10/2020,H59620201010UOGECJAEF-1,-2.20,CATERING - SCHOOLS-FOOD & DRINK SUPPLIES,MISCELLANEOUS FOOD STORES & CONVENIENCE STORES,GPC
WALSALL COUNCIL,http://opendatacommunities.org/id/metropolitan-district-council/walsall,31/12/2020,RESOURCES & TRANSFORMATION,AMZNMKTPLACE,09/10/2020,H59620201010UONTWTPMI-1,32.02,YEI ESF FUNDING-PROFESSIONAL FEES & SERVICES,MISCELLANEOUS AND SPECIALTY RETAIL STORES,GPC
WALSALL COUNCIL,http://opendatacommunities.org/id/metropolitan-district-council/walsall,31/12/2020,RESOURCES & TRANSFORMATION,AMZNMKTPLACE,09/10/2020,H59620201010UONTWTPMI-2,32.03,YEI (IMPACT) PROGRAMME-PROFESSIONAL FEES & SERVICES,MISCELLANEOUS AND SPECIALTY RETAIL STORES,GPC
WALSALL COUNCIL,http://opendatacommunities.org/id/metropolitan-district-council/walsall,31/12/2020,ECONOMY & ENVIRONMENT,FACEBK *8R66YVE932,09/10/2020,H59620201010VCRJMYEWC-1,17.47,INTEGRATED COMMUNITIES PROGRAM-PUBLICITY & ADVERTISING (NON S,ADVERTISING SERVICES,GPC
WALSALL COUNCIL,http://opendatacommunities.org/id/metropolitan-district-council/walsall,31/12/2020,CHILDRENS SERVICES,AMZNMKTPLACE,09/10/2020,H59620201010VDEWLFYXT-1,12.54,GENERAL SUPPLIES RD-MATERIALS,MISCELLANEOUS AND SPECIALTY RETAIL STORES,GPC
WALSALL COUNCIL,http://opendatacommunities.org/id/metropolitan-district-council/walsall,31/12/2020,CHILDRENS SERVICES,MARKS&SPENCER PLC,09/10/2020,H59620201010VMSEDWKFP-1,43.50,ROSEDALE C.E. PRIMARY SCHOOL-MATERIALS,GROCERY STORES AND SUPERMARKETS,GPC
WALSALL COUNCIL,http://opendatacommunities.org/id/metropolitan-district-council/walsall,31/12/2020,CHILDRENS SERVICES,METRO WALSALL,09/10/2020,H59620201010VNFUUZAZL-1,266.00,BED & BREAKFAST PAYMENTS-HOTEL ACCOMMODATION-EMPLOYEES,"EATING PLACES, RESTAURANTS",GPC
WALSALL COUNCIL,http://opendatacommunities.org/id/metropolitan-district-council/walsall,31/12/2020,CHILDRENS SERVICES,WALSALL COUNCIL,09/10/2020,H59620201010VUJTYLVPL-1,17.00,GENERAL MANAGEMENT SUPPORT (IN-FEES & LICENCES,GOVERNMENT SERVICES,GPC
WALSALL COUNCIL,http://opendatacommunities.org/id/metropolitan-district-council/walsall,31/12/2020,CHILDRENS SERVICES,ASDA SUPERSTORE,09/10/2020,H59620201010WBVYZXDRS-1,9.70,WALSALL WOOD PRIMARY SCHOOL-MATERIALS,GROCERY STORES AND SUPERMARKETS,GPC
WALSALL COUNCIL,http://opendatacommunities.org/id/metropolitan-district-council/walsall,31/12/2020,CHILDRENS SERVICES,AMZNMKTPLACE,09/10/2020,H59620201010WBWASCSJW-1,20.49,ADMINISTRATIVE SUPPLIES-MATERIALS,MISCELLANEOUS AND SPECIALTY RETAIL STORES,GPC
WALSALL COUNCIL,http://opendatacommunities.org/id/metropolitan-district-council/walsall,31/12/2020,CHILDRENS SERVICES,AMZNMKTPLACE,09/10/2020,H59620201010WBWASCSJW-2,4.99,ADMINISTRATIVE SUPPLIES-MATERIALS,MISCELLANEOUS AND SPECIALTY RETAIL STORES,GPC
WALSALL COUNCIL,http://opendatacommunities.org/id/metropolitan-district-council/walsall,31/12/2020,RESOURCES & TRANSFORMATION,NOBISCO LIMITED,09/10/2020,H59620201010WDTGDCBKL-1,72.40,CATERING - SCHOOLS-FOOD & DRINK SUPPLIES,OTHER INDUSTRIAL SUPPLIES,GPC
WALSALL COUNCIL,http://opendatacommunities.org/id/metropolitan-district-council/walsall,31/12/2020,CHILDRENS SERVICES,O2,09/10/2020,H59620201010WJJOMYDSE-1,33.80,ADMIN-MOBILE PHONES,TELECOMMUNICATION SERVICES,GPC
WALSALL COUNCIL,http://opendatacommunities.org/id/metropolitan-district-council/walsall,31/12/2020,RESOURCES & TRANSFORMATION,WWW.BANNERUK.COM,09/10/2020,H59620201010WJQXQLQPZ-1,65.52,CENTRALISED STATIONARY-STATIONERY & GENERAL OFFICE SU,"STATIONERY, OFFICE SUPPLIES AND WRITING PAPER",GPC
WALSALL COUNCIL,http://opendatacommunities.org/id/metropolitan-district-council/walsall,31/12/2020,CHILDRENS SERVICES,WALSALL COUNCIL,09/10/2020,H59620201010XACPVNEJC-1,17.00,SAFEGUARDING & FAMILY SUPPORT-FEES & LICENCES,GOVERNMENT SERVICES,GPC
WALSALL COUNCIL,http://opendatacommunities.org/id/metropolitan-district-council/walsall,31/12/2020,RESOURCES & TRANSFORMATION,SKY DIGITAL INTERN,09/10/2020,H59620201010XBGBINQQU-1,5.00,CHARGING & PAYMENTS-SUBSCRIPTIONS,"CABLE, SATELLITE & OTHER PAY TV AND RADIO SERVICES",GPC
WALSALL COUNCIL,http://opendatacommunities.org/id/metropolitan-district-council/walsall,31/12/2020,CHILDRENS SERVICES,247 CARS WILLENHALL LTD,09/10/2020,H59620201010XDHTZPYQM-1,22.80,SAFEGUARDING & FAMILY SUPPORT-SECTION 1/17CHILD CARE ACT 198,TAXI SERVICES,GPC
WALSALL COUNCIL,http://opendatacommunities.org/id/metropolitan-district-council/walsall,31/12/2020,CHILDRENS SERVICES,BROWNHILLS CARS,09/10/2020,H59620201010XEEKNBPQV-1,35.00,SAFEGUARDING & FAMILY SUPPORT-SECTION 1/17CHILD CARE ACT 198,TAXI SERVICES,GPC
WALSALL COUNCIL,http://opendatacommunities.org/id/metropolitan-district-council/walsall,31/12/2020,CHILDRENS SERVICES,POST OFFICE COUNTER,09/10/2020,H59620201010YHCDYVBPM-1,10.86,FAMILY PLACEMENTS-POSTAGES & COURIER SERVICES,POSTAL SERVICES - GOVERNMENT ONLY,GPC
WALSALL COUNCIL,http://opendatacommunities.org/id/metropolitan-district-council/walsall,31/12/2020,CHILDRENS SERVICES,ALDI 772 129,09/10/2020,H59620201010YZWMVDBNX-1,62.83,"43A HILTON ROAD, WILLENHALL-FOOD & DRINK SUPPLIES",GROCERY STORES AND SUPERMARKETS,GPC
WALSALL COUNCIL,http://opendatacommunities.org/id/metropolitan-district-council/walsall,31/12/2020,CHILDRENS SERVICES,ALDI 772 129,09/10/2020,H59620201010YZWMVDBNX-2,7.80,"43A HILTON ROAD, WILLENHALL-FOOD & DRINK SUPPLIES",GROCERY STORES AND SUPERMARKETS,GPC
WALSALL COUNCIL,http://opendatacommunities.org/id/metropolitan-district-council/walsall,31/12/2020,CHILDRENS SERVICES,NCP LIMITED,12/10/2020,H59620201013ABOSFGVFR-1,2.20,ADOLESCENT SERVICE-OTHER TRAVEL ALLOWANCES,AUTOMOBILE PARKING LOTS AND GARAGES,GPC
WALSALL COUNCIL,http://opendatacommunities.org/id/metropolitan-district-council/walsall,31/12/2020,CHILDRENS SERVICES,FINDEL EDUCATION,12/10/2020,H59620201013AWLGUGVFK-1,33.22,CURRICULUM STOCK-MATERIALS,OTHER DIRECT MARKETING-OTHER DIRECT MARKETERS,GPC
WALSALL COUNCIL,http://opendatacommunities.org/id/metropolitan-district-council/walsall,31/12/2020,CHILDRENS SERVICES,AMAZON.CO.UK*589AS6M75 AM,12/10/2020,H59620201013BFPERNYVF-1,50.02,CURRICULUM STOCK-MATERIALS,MISCELLANEOUS AND SPECIALTY RETAIL STORES,GPC
WALSALL COUNCIL,http://opendatacommunities.org/id/metropolitan-district-council/walsall,31/12/2020,RESOURCES & TRANSFORMATION,AMAZON.CO.UK*CW4PB5N85,12/10/2020,H59620201013BITIXYYVH-1,49.90,CENTRALISED STATIONARY-STATIONERY & GENERAL OFFICE SU,OTHER DIRECT MARKETING-OTHER DIRECT MARKETERS,GPC
WALSALL COUNCIL,http://opendatacommunities.org/id/metropolitan-district-council/walsall,31/12/2020,CHILDRENS SERVICES,AMZNMKTPLACE,12/10/2020,H59620201013BQJBMILUM-1,41.97,CHUCKERY PRIMARY SCHOOL-OPERATIONAL MAINTENANCE,MISCELLANEOUS AND SPECIALTY RETAIL STORES,GPC
WALSALL COUNCIL,http://opendatacommunities.org/id/metropolitan-district-council/walsall,31/12/2020,CHILDRENS SERVICES,AMZNMKTPLACE,12/10/2020,H59620201013BQJBMILUM-2,9.75,CHUCKERY PRIMARY SCHOOL-OPERATIONAL MAINTENANCE,MISCELLANEOUS AND SPECIALTY RETAIL STORES,GPC
WALSALL COUNCIL,http://opendatacommunities.org/id/metropolitan-district-council/walsall,31/12/2020,CHILDRENS SERVICES,DISPUTE CB - HIMLEY COUNT,12/10/2020,H59620201013BVJZMMNIY-1,-120.00,BED & BREAKFAST PAYMENTS-HOTEL ACCOMMODATION-EMPLOYEES,"HOTELS, MOTELS, RESORTS",GPC
WALSALL COUNCIL,http://opendatacommunities.org/id/metropolitan-district-council/walsall,31/12/2020,CHILDRENS SERVICES,JOHNSTONES DEC CENTRE,12/10/2020,H59620201013CRJRPSNKO-1,6.00,WALSALL WOOD PRIMARY SCHOOL-OPERATIONAL MAINTENANCE,"GLASS, PAINT AND WALLPAPER STORES",GPC
WALSALL COUNCIL,http://opendatacommunities.org/id/metropolitan-district-council/walsall,31/12/2020,CHILDRENS SERVICES,WWW.ICO.ORG.UK,12/10/2020,H59620201013DJBLPMVYJ-1,60.00,ADMINISTRATIVE SUPPLIES-SUBSCRIPTIONS,GOVERNMENT SERVICES,GPC
WALSALL COUNCIL,http://opendatacommunities.org/id/metropolitan-district-council/walsall,31/12/2020,RESOURCES & TRANSFORMATION,CHICKEN JOES LTD,12/10/2020,H59620201013DTMHBBCWU-1,137.19,CATERING - SCHOOLS-FOOD & DRINK SUPPLIES,CATERERS,GPC
WALSALL COUNCIL,http://opendatacommunities.org/id/metropolitan-district-council/walsall,31/12/2020,CHILDRENS SERVICES,AMAZON.CO.UK*TD5R027E5 AM,12/10/2020,H59620201013DTWWDFBKP-1,8.34,PRIMARY-MATERIALS,MISCELLANEOUS AND SPECIALTY RETAIL STORES,GPC
WALSALL COUNCIL,http://opendatacommunities.org/id/metropolitan-district-council/walsall,31/12/2020,CHILDRENS SERVICES,AMZNMKTPLACE,12/10/2020,H59620201013EFHAWSPNT-1,83.75,E19-MATERIALS,MISCELLANEOUS AND SPECIALTY RETAIL STORES,GPC
WALSALL COUNCIL,http://opendatacommunities.org/id/metropolitan-district-council/walsall,31/12/2020,CHILDRENS SERVICES,G A NICHOLAS,12/10/2020,H59620201013ERIWVTHOA-1,14.40,ROSEDALE C.E. PRIMARY SCHOOL-CLEANING MATERIALS,ELECTRICAL PARTS AND EQUIPMENT,GPC
WALSALL COUNCIL,http://opendatacommunities.org/id/metropolitan-district-council/walsall,31/12/2020,CHILDRENS SERVICES,WEST MIDLAND CARD,12/10/2020,H59620201013FHYXJHQBG-1,4.60,TRANSITION AND LEAVING CARE PL-OFFICERS & STAFF PUBLIC TRANSP,BUS LINES,GPC
WALSALL COUNCIL,http://opendatacommunities.org/id/metropolitan-district-council/walsall,31/12/2020,RESOURCES & TRANSFORMATION,PAYPAL *LAG,12/10/2020,H59620201013FHZEJITIM-1,-53.50,WORKFORCE DEVELOPMENT-SUBSCRIPTIONS,"ORGANIZATIONS, CHARITABLE AND SOCIAL SERVICE",GPC
WALSALL COUNCIL,http://opendatacommunities.org/id/metropolitan-district-council/walsall,31/12/2020,CHILDRENS SERVICES,247 CARS WILLENHALL LTD,12/10/2020,H59620201013FOBDSBCTW-1,25.40,SAFEGUARDING & FAMILY SUPPORT-SECTION 1/17CHILD CARE ACT 198,TAXI SERVICES,GPC
WALSALL COUNCIL,http://opendatacommunities.org/id/metropolitan-district-council/walsall,31/12/2020,CHILDRENS SERVICES,SCHOOLGATEWA*BLUE COAT AC,12/10/2020,H59620201013FWBIPVKFT-1,13.35,REDRUTH ROAD-FOOD & DRINK SUPPLIES,"COLLEGES, UNIVERSITIES, PROFESSIONAL SCHOOLS",GPC
WALSALL COUNCIL,http://opendatacommunities.org/id/metropolitan-district-council/walsall,31/12/2020,RESOURCES & TRANSFORMATION,NOBISCO LIMITED,12/10/2020,H59620201013GDSJXQQXX-1,102.76,CATERING - SCHOOLS-FOOD & DRINK SUPPLIES,OTHER INDUSTRIAL SUPPLIES,GPC
WALSALL COUNCIL,http://opendatacommunities.org/id/metropolitan-district-council/walsall,31/12/2020,CHILDRENS SERVICES,POST OFFICE COUNTER,12/10/2020,H59620201013GDVIGLWVF-1,3.04,57 LICHFIELD ROAD-POSTAGES & COURIER SERVICES,POSTAL SERVICES - GOVERNMENT ONLY,GPC
WALSALL COUNCIL,http://opendatacommunities.org/id/metropolitan-district-council/walsall,31/12/2020,RESOURCES & TRANSFORMATION,CHICKEN JOES LTD,12/10/2020,H59620201013GRHOFPVBT-1,45.25,CATERING - SCHOOLS-FOOD & DRINK SUPPLIES,CATERERS,GPC
WALSALL COUNCIL,http://opendatacommunities.org/id/metropolitan-district-council/walsall,31/12/2020,ECONOMY & ENVIRONMENT,WOLSELEY UK,12/10/2020,H59620201013GXIQLQCMG-1,83.11,DEPOT-MATERIALS,"AIR CONDITIONING, HEATING, PLUMBING CONTRACTORS",GPC
WALSALL COUNCIL,http://opendatacommunities.org/id/metropolitan-district-council/walsall,31/12/2020,RESOURCES & TRANSFORMATION,PAYPAL *LAG,12/10/2020,H59620201013GYDNYCHGY-1,68.50,WORKFORCE DEVELOPMENT-SUBSCRIPTIONS,"ORGANIZATIONS, CHARITABLE AND SOCIAL SERVICE",GPC
WALSALL COUNCIL,http://opendatacommunities.org/id/metropolitan-district-council/walsall,31/12/2020,CHILDRENS SERVICES,AMZNMKTPLACE,12/10/2020,H59620201013GYTBUVIVV-1,21.48,SPECIAL FACILITIES -  BEFORE/A-MATERIALS,MISCELLANEOUS AND SPECIALTY RETAIL STORES,GPC
WALSALL COUNCIL,http://opendatacommunities.org/id/metropolitan-district-council/walsall,31/12/2020,RESOURCES & TRANSFORMATION,THE MYERSBRIGGS COMPANY L,12/10/2020,H59620201013HVHYWSCDY-1,3594.00,LEARNING & MANAGEMENT DEVELOPM-PROFESSIONAL FEES & SERVICES,OTHER BUSINESS SERVICES,GPC
WALSALL COUNCIL,http://opendatacommunities.org/id/metropolitan-district-council/walsall,31/12/2020,RESOURCES & TRANSFORMATION,WM MORRISONS STORE,12/10/2020,H59620201013ICRCXRMFU-1,26.39,CATERING - MANAGEMENT-FOOD & DRINK SUPPLIES,GROCERY STORES AND SUPERMARKETS,GPC
WALSALL COUNCIL,http://opendatacommunities.org/id/metropolitan-district-council/walsall,31/12/2020,ECONOMY & ENVIRONMENT,SIM-MAYOU HARDWARE,12/10/2020,H59620201013IFVKQDIIX-1,38.34,INFRASTRUCTURE MAINTENANCE-MATERIALS,HARDWARE STORES,GPC
WALSALL COUNCIL,http://opendatacommunities.org/id/metropolitan-district-council/walsall,31/12/2020,CHILDRENS SERVICES,DVLA DRIVER ONLINE,12/10/2020,H59620201013ILSOKLQVO-1,34.00,TRANSITION AND LEAVING CARE PL-FEES & LICENCES,GOVERNMENT SERVICES,GPC
WALSALL COUNCIL,http://opendatacommunities.org/id/metropolitan-district-council/walsall,31/12/2020,CHILDRENS SERVICES,AMAZON.CO.UK*D03783775,12/10/2020,H59620201013IPPFHRMRK-1,177.15,ENGLISH-LIBRARY BOOKS,OTHER DIRECT MARKETING-OTHER DIRECT MARKETERS,GPC
WALSALL COUNCIL,http://opendatacommunities.org/id/metropolitan-district-council/walsall,31/12/2020,CHILDRENS SERVICES,ELEGANCE CARPETS FLOORI,12/10/2020,H59620201013IWKDFLVTN-1,700.00,TRANSITION AND LEAVING CARE PL-CARE LEAVERS MTCE PAYMENTS,FLOOR COVERING STORES,GPC
WALSALL COUNCIL,http://opendatacommunities.org/id/metropolitan-district-council/walsall,31/12/2020,CHILDRENS SERVICES,AMZNMKTPLACE,12/10/2020,H59620201013JANMWXYYR-1,18.87,SPECIAL FACILITIES -  BEFORE/A-MATERIALS,MISCELLANEOUS AND SPECIALTY RETAIL STORES,GPC
WALSALL COUNCIL,http://opendatacommunities.org/id/metropolitan-district-council/walsall,31/12/2020,ECONOMY & ENVIRONMENT,B & Q 1276,12/10/2020,H59620201013JAWTEWMVS-1,-28.44,WALSALL OUTDOOR ADVENTURE CENT-PURCHASE OF FURNITURE & EQUIPM,HOME SUPPLY WAREHOUSE STORES,GPC
WALSALL COUNCIL,http://opendatacommunities.org/id/metropolitan-district-council/walsall,31/12/2020,ECONOMY & ENVIRONMENT,ARGOS CANNOCK,12/10/2020,H59620201013JFWEOSATU-1,44.99,ALDRIDGE LIBRARY-PURCHASE OF FURNITURE & EQUIPM,DISCOUNT STORES,GPC
WALSALL COUNCIL,http://opendatacommunities.org/id/metropolitan-district-council/walsall,31/12/2020,RESOURCES & TRANSFORMATION,AMZNMKTPLACE AMAZON.CO.UK,12/10/2020,H59620201013JGPDRIBLT-1,107.91,ELECTORAL SERVICES-MATERIALS,MISCELLANEOUS AND SPECIALTY RETAIL STORES,GPC
WALSALL COUNCIL,http://opendatacommunities.org/id/metropolitan-district-council/walsall,31/12/2020,CHILDRENS SERVICES,G & B KENDALLS & SONS,12/10/2020,H59620201013JJVTPKPQQ-1,66.03,MARY ELLIOTT SCHOOL-FOOD & DRINK SUPPLIES,MISCELLANEOUS FOOD STORES & CONVENIENCE STORES,GPC
WALSALL COUNCIL,http://opendatacommunities.org/id/metropolitan-district-council/walsall,31/12/2020,RESOURCES & TRANSFORMATION,VIRGIN MEDIA PYMTS,12/10/2020,H59620201013JKOEVIPVG-1,48.24,CHARGING & PAYMENTS-SUBSCRIPTIONS,TELECOMMUNICATION SERVICES,GPC
WALSALL COUNCIL,http://opendatacommunities.org/id/metropolitan-district-council/walsall,31/12/2020,CHILDRENS SERVICES,GREGGS PLC,12/10/2020,H59620201013JPXGENCKY-1,0.70,TRANSITION AND LEAVING CARE PL-OFFICERS SUBSISTENCE EXPENSES,"EATING PLACES, RESTAURANTS",GPC
WALSALL COUNCIL,http://opendatacommunities.org/id/metropolitan-district-council/walsall,31/12/2020,CHILDRENS SERVICES,GREGGS PLC,12/10/2020,H59620201013JPXGENCKY-2,1.62,TRANSITION AND LEAVING CARE PL-OFFICERS SUBSISTENCE EXPENSES,"EATING PLACES, RESTAURANTS",GPC
WALSALL COUNCIL,http://opendatacommunities.org/id/metropolitan-district-council/walsall,31/12/2020,CHILDRENS SERVICES,GREGGS PLC,12/10/2020,H59620201013JPXGENCKY-3,1.63,TRANSITION AND LEAVING CARE PL-OFFICERS SUBSISTENCE EXPENSES,"EATING PLACES, RESTAURANTS",GPC
WALSALL COUNCIL,http://opendatacommunities.org/id/metropolitan-district-council/walsall,31/12/2020,RESOURCES & TRANSFORMATION,AMZNMKTPLACE AMAZON.CO.UK,12/10/2020,H59620201013JTOTHHTSR-1,23.50,ELECTORAL SERVICES-MATERIALS,MISCELLANEOUS AND SPECIALTY RETAIL STORES,GPC
WALSALL COUNCIL,http://opendatacommunities.org/id/metropolitan-district-council/walsall,31/12/2020,RESOURCES & TRANSFORMATION,CHICKEN JOES LTD,12/10/2020,H59620201013KBJVDPUTU-1,91.46,CATERING - SCHOOLS-FOOD & DRINK SUPPLIES,CATERERS,GPC
WALSALL COUNCIL,http://opendatacommunities.org/id/metropolitan-district-council/walsall,31/12/2020,CHILDRENS SERVICES,AMZNMKTPLACE,12/10/2020,H59620201013KFUXYHQZS-1,16.14,ADMINISTRATIVE SUPPLIES-MATERIALS,MISCELLANEOUS AND SPECIALTY RETAIL STORES,GPC
WALSALL COUNCIL,http://opendatacommunities.org/id/metropolitan-district-council/walsall,31/12/2020,ECONOMY & ENVIRONMENT,B&M 146 - HEDNESFORD,12/10/2020,H59620201013KLERZROPO-1,4.00,LIBRARY OPERATIONS - MOBILE SE-STATIONERY & GENERAL OFFICE SU,MISCELLANEOUS GENERAL MERCHANDISE,GPC
WALSALL COUNCIL,http://opendatacommunities.org/id/metropolitan-district-council/walsall,31/12/2020,ECONOMY & ENVIRONMENT,B&M 146 - HEDNESFORD,12/10/2020,H59620201013KLERZROPO-2,5.98,LIBRARY OPERATIONS - MOBILE SE-STATIONERY & GENERAL OFFICE SU,MISCELLANEOUS GENERAL MERCHANDISE,GPC
WALSALL COUNCIL,http://opendatacommunities.org/id/metropolitan-district-council/walsall,31/12/2020,RESOURCES & TRANSFORMATION,ARTHUR BRETT CATER,12/10/2020,H59620201013KTUZEJILL-1,86.96,CATERING - SCHOOLS-FOOD & DRINK SUPPLIES,MISCELLANEOUS FOOD STORES & CONVENIENCE STORES,GPC
WALSALL COUNCIL,http://opendatacommunities.org/id/metropolitan-district-council/walsall,31/12/2020,ECONOMY & ENVIRONMENT,TVLICENSING.CO.UK,12/10/2020,H59620201013KWXXRFSOQ-1,157.50,DEPOT-MATERIALS,"CONSULTING, MANAGEMENT, AND PR SERVICES",GPC
WALSALL COUNCIL,http://opendatacommunities.org/id/metropolitan-district-council/walsall,31/12/2020,CHILDRENS SERVICES,ALDI 42 772,12/10/2020,H59620201013LEMWYOYFG-1,50.32,REDRUTH ROAD-FOOD & DRINK SUPPLIES,GROCERY STORES AND SUPERMARKETS,GPC
WALSALL COUNCIL,http://opendatacommunities.org/id/metropolitan-district-council/walsall,31/12/2020,CHILDRENS SERVICES,AMZNMKTPLACE,12/10/2020,H59620201013LHRSIFXGF-1,76.99,GENERAL SUPPLIES SH-MATERIALS,MISCELLANEOUS AND SPECIALTY RETAIL STORES,GPC
WALSALL COUNCIL,http://opendatacommunities.org/id/metropolitan-district-council/walsall,31/12/2020,RESOURCES & TRANSFORMATION,WWW.AAT-ORG.UK,12/10/2020,H59620201013MCVQIANPI-1,99.00,FINANCE TRAINING-EXTERNAL TRAINING,"ACCOUNTING, AUDITING, AND BOOKKEEPING SERVICES",GPC
WALSALL COUNCIL,http://opendatacommunities.org/id/metropolitan-district-council/walsall,31/12/2020,RESOURCES & TRANSFORMATION,CHICKEN JOES LTD,12/10/2020,H59620201013MLECLVKPR-1,70.05,CATERING - SCHOOLS-FOOD & DRINK SUPPLIES,CATERERS,GPC
WALSALL COUNCIL,http://opendatacommunities.org/id/metropolitan-district-council/walsall,31/12/2020,CHILDRENS SERVICES,B&M 022 - WEDNESBURY,12/10/2020,H59620201013MQDNYFZOS-1,20.94,CONTACT SESSIONAL STAFF-PURCHASE OF FURNITURE & EQUIPM,MISCELLANEOUS GENERAL MERCHANDISE,GPC
WALSALL COUNCIL,http://opendatacommunities.org/id/metropolitan-district-council/walsall,31/12/2020,ECONOMY & ENVIRONMENT,B & Q 1276,12/10/2020,H59620201013MWUTZKSUF-1,28.44,WALSALL OUTDOOR ADVENTURE CENT-PURCHASE OF FURNITURE & EQUIPM,HOME SUPPLY WAREHOUSE STORES,GPC
WALSALL COUNCIL,http://opendatacommunities.org/id/metropolitan-district-council/walsall,31/12/2020,CHILDRENS SERVICES,VISTAPRINT,12/10/2020,H59620201013NCPCBPLUK-1,21.59,ADMINISTRATIVE SUPPLIES-MATERIALS,MISCELLANEOUS PUBLISHING AND PRINTING,GPC
WALSALL COUNCIL,http://opendatacommunities.org/id/metropolitan-district-council/walsall,31/12/2020,RESOURCES & TRANSFORMATION,PAYPAL *LAG,12/10/2020,H59620201013NFBNVVHKK-1,53.50,WORKFORCE DEVELOPMENT-SUBSCRIPTIONS,"ORGANIZATIONS, CHARITABLE AND SOCIAL SERVICE",GPC
WALSALL COUNCIL,http://opendatacommunities.org/id/metropolitan-district-council/walsall,31/12/2020,CHILDRENS SERVICES,ROYAL MAIL SAMEDAY,12/10/2020,H59620201013NJNQBXXAW-1,30.00,GENERAL MANAGEMENT SUPPORT (IN-LEGAL FEES-PRIV CONTRACTOR FEE,POSTAL SERVICES - GOVERNMENT ONLY,GPC
WALSALL COUNCIL,http://opendatacommunities.org/id/metropolitan-district-council/walsall,31/12/2020,RESOURCES & TRANSFORMATION,CHICKEN JOES LTD,12/10/2020,H59620201013NLGTCERYK-1,45.73,CATERING - SCHOOLS-FOOD & DRINK SUPPLIES,CATERERS,GPC
WALSALL COUNCIL,http://opendatacommunities.org/id/metropolitan-district-council/walsall,31/12/2020,ECONOMY & ENVIRONMENT,AMAZON.CO.UK*ZE6VX2ZW5 AM,12/10/2020,H59620201013OEJWREXKE-1,26.06,RESOURCE MANAGEMENT-STATIONERY & GENERAL OFFICE SU,MISCELLANEOUS AND SPECIALTY RETAIL STORES,GPC
WALSALL COUNCIL,http://opendatacommunities.org/id/metropolitan-district-council/walsall,31/12/2020,CHILDRENS SERVICES,AMAZON.CO.UK*OY6QS7VC5,12/10/2020,H59620201013OUHDOHPFI-1,13.26,ENGLISH-LIBRARY BOOKS,OTHER DIRECT MARKETING-OTHER DIRECT MARKETERS,GPC
WALSALL COUNCIL,http://opendatacommunities.org/id/metropolitan-district-council/walsall,31/12/2020,CHILDRENS SERVICES,TESCO STORES 6161,12/10/2020,H59620201013PFTGOSJNJ-1,9.44,REDRUTH ROAD-FOOD & DRINK SUPPLIES,GROCERY STORES AND SUPERMARKETS,GPC
WALSALL COUNCIL,http://opendatacommunities.org/id/metropolitan-district-council/walsall,31/12/2020,CHILDRENS SERVICES,AMAZON.CO.UK*HQ4BF6MG5 AM,12/10/2020,H59620201013PNQROVQRY-1,22.49,ACCOMMODATION SERVICES MANAGEM-CLEANING MATERIALS,MISCELLANEOUS AND SPECIALTY RETAIL STORES,GPC
WALSALL COUNCIL,http://opendatacommunities.org/id/metropolitan-district-council/walsall,31/12/2020,CHILDRENS SERVICES,AMZNMKTPLACE,12/10/2020,H59620201013POQNPXBKC-1,85.45,CONTACT SESSIONAL STAFF-STATIONERY & GENERAL OFFICE SU,MISCELLANEOUS AND SPECIALTY RETAIL STORES,GPC
WALSALL COUNCIL,http://opendatacommunities.org/id/metropolitan-district-council/walsall,31/12/2020,RESOURCES & TRANSFORMATION,NAIO NAILS,12/10/2020,H59620201013PUYMCWPJP-1,204.79,YEI ESF FUNDING-PROFESSIONAL FEES & SERVICES,COSMETIC STORES,GPC
WALSALL COUNCIL,http://opendatacommunities.org/id/metropolitan-district-council/walsall,31/12/2020,RESOURCES & TRANSFORMATION,NAIO NAILS,12/10/2020,H59620201013PUYMCWPJP-2,204.79,YEI (IMPACT) PROGRAMME-PROFESSIONAL FEES & SERVICES,COSMETIC STORES,GPC
WALSALL COUNCIL,http://opendatacommunities.org/id/metropolitan-district-council/walsall,31/12/2020,CHILDRENS SERVICES,247 CARS WILLENHALL LTD,12/10/2020,H59620201013PVKSNWHDU-1,23.00,SAFEGUARDING & FAMILY SUPPORT-SECTION 1/17CHILD CARE ACT 198,TAXI SERVICES,GPC
WALSALL COUNCIL,http://opendatacommunities.org/id/metropolitan-district-council/walsall,31/12/2020,CHILDRENS SERVICES,WALSALL COUNCIL,12/10/2020,H59620201013PYFVGVHQY-1,17.00,LOOKED AFTER CHILDRENS SOCIAL -FEES & LICENCES,GOVERNMENT SERVICES,GPC
WALSALL COUNCIL,http://opendatacommunities.org/id/metropolitan-district-council/walsall,31/12/2020,CHILDRENS SERVICES,247 CARS WILLENHALL LTD,12/10/2020,H59620201013QHESNJZHK-1,23.00,SAFEGUARDING & FAMILY SUPPORT-TAXI FARES,TAXI SERVICES,GPC
WALSALL COUNCIL,http://opendatacommunities.org/id/metropolitan-district-council/walsall,31/12/2020,CHILDRENS SERVICES,THETRAINLINE.COM,12/10/2020,H59620201013QHUVSEPVL-1,-4.40,EARLY YEARS AND DISABILITIES S-OFFICERS & STAFF PUBLIC TRANSP,PASSENGER RAILWAYS,GPC
WALSALL COUNCIL,http://opendatacommunities.org/id/metropolitan-district-council/walsall,31/12/2020,RESOURCES & TRANSFORMATION,WALSALL COUNCIL,12/10/2020,H59620201013QMBMLNSOY-1,8.50,YEI ESF FUNDING-FEES & LICENCES,GOVERNMENT SERVICES,GPC
WALSALL COUNCIL,http://opendatacommunities.org/id/metropolitan-district-council/walsall,31/12/2020,RESOURCES & TRANSFORMATION,WALSALL COUNCIL,12/10/2020,H59620201013QMBMLNSOY-2,8.50,YEI ESF FUNDING-FEES & LICENCES,GOVERNMENT SERVICES,GPC
WALSALL COUNCIL,http://opendatacommunities.org/id/metropolitan-district-council/walsall,31/12/2020,ECONOMY & ENVIRONMENT,SAINSBURYS S/MKT,12/10/2020,H59620201013QUXTPEMLX-1,14.00,ALDRIDGE LIBRARY-PURCHASE OF FURNITURE & EQUIPM,GROCERY STORES AND SUPERMARKETS,GPC
WALSALL COUNCIL,http://opendatacommunities.org/id/metropolitan-district-council/walsall,31/12/2020,CHILDRENS SERVICES,AMAZON.CO.UK*R12DI5H25,12/10/2020,H59620201013QUYTKDHSM-1,10.40,ENGLISH-LIBRARY BOOKS,OTHER DIRECT MARKETING-OTHER DIRECT MARKETERS,GPC
WALSALL COUNCIL,http://opendatacommunities.org/id/metropolitan-district-council/walsall,31/12/2020,CHILDRENS SERVICES,AMAZON.CO.UK*4G2W35RN5 AM,12/10/2020,H59620201013QWDNYWRST-1,22.49,ACCOMMODATION SERVICES MANAGEM-CLEANING MATERIALS,MISCELLANEOUS AND SPECIALTY RETAIL STORES,GPC
WALSALL COUNCIL,http://opendatacommunities.org/id/metropolitan-district-council/walsall,31/12/2020,RESOURCES & TRANSFORMATION,CHICKEN JOES LTD,12/10/2020,H59620201013RANXWIGOL-1,105.61,CATERING - SCHOOLS-FOOD & DRINK SUPPLIES,CATERERS,GPC
WALSALL COUNCIL,http://opendatacommunities.org/id/metropolitan-district-council/walsall,31/12/2020,CHILDRENS SERVICES,POST OFFICE COUNTER,12/10/2020,H59620201013RBJXHFFCN-1,9.80,LOOKED AFTER CHILDRENS SOCIAL -POSTAGES & COURIER SERVICES,POSTAL SERVICES - GOVERNMENT ONLY,GPC
WALSALL COUNCIL,http://opendatacommunities.org/id/metropolitan-district-council/walsall,31/12/2020,RESOURCES & TRANSFORMATION,AMZNMKTPLACE AMAZON.CO.UK,12/10/2020,H59620201013REBQUNNRI-1,131.89,ELECTORAL SERVICES-MATERIALS,MISCELLANEOUS AND SPECIALTY RETAIL STORES,GPC
WALSALL COUNCIL,http://opendatacommunities.org/id/metropolitan-district-council/walsall,31/12/2020,RESOURCES & TRANSFORMATION,CHICKEN JOES LTD,12/10/2020,H59620201013RFJOUVPSH-1,67.14,CATERING - SCHOOLS-FOOD & DRINK SUPPLIES,CATERERS,GPC
WALSALL COUNCIL,http://opendatacommunities.org/id/metropolitan-district-council/walsall,31/12/2020,CHILDRENS SERVICES,THETRAINLINE.COM,12/10/2020,H59620201013RJSWBTMVU-1,60.10,SAFEGUARDING & FAMILY SUPPORT-TRANSFER PAYMENTS - SOCIAL SER,PASSENGER RAILWAYS,GPC
WALSALL COUNCIL,http://opendatacommunities.org/id/metropolitan-district-council/walsall,31/12/2020,CHILDRENS SERVICES,AMAZON.CO.UK*QY4OS21I5 AM,12/10/2020,H59620201013RKQUIVDXP-1,22.48,ACCOMMODATION SERVICES MANAGEM-CLEANING MATERIALS,MISCELLANEOUS AND SPECIALTY RETAIL STORES,GPC
WALSALL COUNCIL,http://opendatacommunities.org/id/metropolitan-district-council/walsall,31/12/2020,CHILDRENS SERVICES,MUSTANG CLEANING SUPPLIES,12/10/2020,H59620201013RRREKMZIF-1,256.20,LEIGHSWOOD PRIMARY SCHOOL-MATERIALS,"CLEANING AND MAINTENANCE, JANITORIAL SERVICES",GPC
WALSALL COUNCIL,http://opendatacommunities.org/id/metropolitan-district-council/walsall,31/12/2020,CHILDRENS SERVICES,WM MORRISONS STORE,12/10/2020,H59620201013RWWEYOSWC-1,18.02,"43A HILTON ROAD, WILLENHALL-RESIDENTS PERSONAL EXPENSES-AL",GROCERY STORES AND SUPERMARKETS,GPC
WALSALL COUNCIL,http://opendatacommunities.org/id/metropolitan-district-council/walsall,31/12/2020,RESOURCES & TRANSFORMATION,NOBISCO LIMITED,12/10/2020,H59620201013RYDPOZFTT-1,376.08,CATERING - SCHOOLS-FOOD & DRINK SUPPLIES,OTHER INDUSTRIAL SUPPLIES,GPC
WALSALL COUNCIL,http://opendatacommunities.org/id/metropolitan-district-council/walsall,31/12/2020,RESOURCES & TRANSFORMATION,CHICKEN JOES LTD,12/10/2020,H59620201013RZXFUHCGB-1,87.94,CATERING - SCHOOLS-FOOD & DRINK SUPPLIES,CATERERS,GPC
WALSALL COUNCIL,http://opendatacommunities.org/id/metropolitan-district-council/walsall,31/12/2020,RESOURCES & TRANSFORMATION,ARTHUR BRETT CATER,12/10/2020,H59620201013SBCJMXNYN-1,239.06,CATERING - SCHOOLS-FOOD & DRINK SUPPLIES,MISCELLANEOUS FOOD STORES & CONVENIENCE STORES,GPC
WALSALL COUNCIL,http://opendatacommunities.org/id/metropolitan-district-council/walsall,31/12/2020,RESOURCES & TRANSFORMATION,ARTHUR BRETT CATER,12/10/2020,H59620201013SIPFFOSWG-1,16.87,CATERING - SCHOOLS-FOOD & DRINK SUPPLIES,MISCELLANEOUS FOOD STORES & CONVENIENCE STORES,GPC
WALSALL COUNCIL,http://opendatacommunities.org/id/metropolitan-district-council/walsall,31/12/2020,CHILDRENS SERVICES,AMZNMKTPLACE,12/10/2020,H59620201013SKQZJKKKB-1,5.52,ENGLISH-LIBRARY BOOKS,MISCELLANEOUS AND SPECIALTY RETAIL STORES,GPC
WALSALL COUNCIL,http://opendatacommunities.org/id/metropolitan-district-council/walsall,31/12/2020,RESOURCES & TRANSFORMATION,ARTHUR BRETT CATER,12/10/2020,H59620201013SSYGRFBHL-1,55.84,CATERING - SCHOOLS-FOOD & DRINK SUPPLIES,MISCELLANEOUS FOOD STORES & CONVENIENCE STORES,GPC
WALSALL COUNCIL,http://opendatacommunities.org/id/metropolitan-district-council/walsall,31/12/2020,CHILDRENS SERVICES,CURRYS ONLINE,12/10/2020,H59620201013SUCMTJKNX-1,589.97,TRANSITION AND LEAVING CARE PL-CARE LEAVERS MTCE PAYMENTS,ELECTRONIC SALES,GPC
WALSALL COUNCIL,http://opendatacommunities.org/id/metropolitan-district-council/walsall,31/12/2020,CHILDRENS SERVICES,AMZNMKTPLACE AMAZON.CO.UK,12/10/2020,H59620201013TBIVCEOCY-1,14.69,E19-LIBRARY BOOKS,MISCELLANEOUS AND SPECIALTY RETAIL STORES,GPC
WALSALL COUNCIL,http://opendatacommunities.org/id/metropolitan-district-council/walsall,31/12/2020,CHILDRENS SERVICES,AMZNMKTPLACE,12/10/2020,H59620201013TCHLPECUI-1,77.29,CONTACT SESSIONAL STAFF-STATIONERY & GENERAL OFFICE SU,MISCELLANEOUS AND SPECIALTY RETAIL STORES,GPC
WALSALL COUNCIL,http://opendatacommunities.org/id/metropolitan-district-council/walsall,31/12/2020,RESOURCES & TRANSFORMATION,CHICKEN JOES LTD,12/10/2020,H59620201013TFDDPHPTB-1,57.89,CATERING - SCHOOLS-FOOD & DRINK SUPPLIES,CATERERS,GPC
WALSALL COUNCIL,http://opendatacommunities.org/id/metropolitan-district-council/walsall,31/12/2020,CHILDRENS SERVICES,AMZNMKTPLACE,12/10/2020,H59620201013THODILMJN-1,36.82,SALISBURY PRIMARY SCHOOL-OPERATIONAL MAINTENANCE,MISCELLANEOUS AND SPECIALTY RETAIL STORES,GPC
WALSALL COUNCIL,http://opendatacommunities.org/id/metropolitan-district-council/walsall,31/12/2020,ECONOMY & ENVIRONMENT,HOMEBASE LTD 114,12/10/2020,H59620201013TQMWOVJBX-1,19.95,LIBRARY OPERATIONS - MOBILE SE-STATIONERY & GENERAL OFFICE SU,HOME SUPPLY WAREHOUSE STORES,GPC
WALSALL COUNCIL,http://opendatacommunities.org/id/metropolitan-district-council/walsall,31/12/2020,CHILDRENS SERVICES,AMAZON.CO.UK*JH9SU6V95,12/10/2020,H59620201013TQWCHDRMB-1,13.41,VIRTUAL SCHOOL - CENTRAL PUPIL-OTHER EXPENSES,OTHER DIRECT MARKETING-OTHER DIRECT MARKETERS,GPC
WALSALL COUNCIL,http://opendatacommunities.org/id/metropolitan-district-council/walsall,31/12/2020,CHILDRENS SERVICES,AMZNMKTPLACE,12/10/2020,H59620201013TRJUBKBKK-1,76.99,GENERAL SUPPLIES SH-MATERIALS,MISCELLANEOUS AND SPECIALTY RETAIL STORES,GPC
WALSALL COUNCIL,http://opendatacommunities.org/id/metropolitan-district-council/walsall,31/12/2020,CHILDRENS SERVICES,ASDA SUPERSTORE,12/10/2020,H59620201013TVNDJQSOU-1,1.98,REDRUTH ROAD-FOOD & DRINK SUPPLIES,GROCERY STORES AND SUPERMARKETS,GPC
WALSALL COUNCIL,http://opendatacommunities.org/id/metropolitan-district-council/walsall,31/12/2020,CHILDRENS SERVICES,ASDA SUPERSTORE,12/10/2020,H59620201013TVNDJQSOU-2,6.01,REDRUTH ROAD-FOOD & DRINK SUPPLIES,GROCERY STORES AND SUPERMARKETS,GPC
WALSALL COUNCIL,http://opendatacommunities.org/id/metropolitan-district-council/walsall,31/12/2020,CHILDRENS SERVICES,AMZNMKTPLACE,12/10/2020,H59620201013UADHMUJPE-1,13.71,ADMINISTRATIVE SUPPLIES-PURCHASE OF FURNITURE & EQUIPM,MISCELLANEOUS AND SPECIALTY RETAIL STORES,GPC
WALSALL COUNCIL,http://opendatacommunities.org/id/metropolitan-district-council/walsall,31/12/2020,CHILDRENS SERVICES,AMZNMKTPLACE,12/10/2020,H59620201013UADHMUJPE-2,5.99,CONSUMABLES-MATERIALS,MISCELLANEOUS AND SPECIALTY RETAIL STORES,GPC
WALSALL COUNCIL,http://opendatacommunities.org/id/metropolitan-district-council/walsall,31/12/2020,RESOURCES & TRANSFORMATION,CHICKEN JOES LTD,12/10/2020,H59620201013URLMPTWGT-1,12.16,CATERING - SCHOOLS-FOOD & DRINK SUPPLIES,CATERERS,GPC
WALSALL COUNCIL,http://opendatacommunities.org/id/metropolitan-district-council/walsall,31/12/2020,CHILDRENS SERVICES,HP INC UK LIMITED,12/10/2020,H59620201013URPUBPDNU-1,7.99,ADMINISTRATIVE SUPPLIES-MATERIALS,"COMPUTERS, COMPUTER PERIPHERAL EQUIPMENT, SOFTWARE",GPC
WALSALL COUNCIL,http://opendatacommunities.org/id/metropolitan-district-council/walsall,31/12/2020,RESOURCES & TRANSFORMATION,ELLISONS COLLEGE KITS,12/10/2020,H59620201013UUBSHNGRV-1,67.80,YEI ESF FUNDING-PROFESSIONAL FEES & SERVICES,COSMETIC STORES,GPC
WALSALL COUNCIL,http://opendatacommunities.org/id/metropolitan-district-council/walsall,31/12/2020,RESOURCES & TRANSFORMATION,ELLISONS COLLEGE KITS,12/10/2020,H59620201013UUBSHNGRV-2,67.80,YEI (IMPACT) PROGRAMME-PROFESSIONAL FEES & SERVICES,COSMETIC STORES,GPC
WALSALL COUNCIL,http://opendatacommunities.org/id/metropolitan-district-council/walsall,31/12/2020,ECONOMY & ENVIRONMENT,DTR HYGIENE LTD,12/10/2020,H59620201013VNVSRPJFQ-1,390.82,BLOXWICH LIBRARY-PURCHASE OF FURNITURE & EQUIPM,"SPECIALTY CLEANING, POLISHING, AND SANITATION",GPC
WALSALL COUNCIL,http://opendatacommunities.org/id/metropolitan-district-council/walsall,31/12/2020,RESOURCES & TRANSFORMATION,NOBISCO LIMITED,12/10/2020,H59620201013VUDCHPLEP-1,91.68,CATERING - SCHOOLS-FOOD & DRINK SUPPLIES,OTHER INDUSTRIAL SUPPLIES,GPC
WALSALL COUNCIL,http://opendatacommunities.org/id/metropolitan-district-council/walsall,31/12/2020,RESOURCES & TRANSFORMATION,CHICKEN JOES LTD,12/10/2020,H59620201013VVMVXGQEV-1,93.62,CATERING - SCHOOLS-FOOD & DRINK SUPPLIES,CATERERS,GPC
WALSALL COUNCIL,http://opendatacommunities.org/id/metropolitan-district-council/walsall,31/12/2020,RESOURCES & TRANSFORMATION,CHICKEN JOES LTD,12/10/2020,H59620201013VWHVOOGUV-1,57.89,CATERING - SCHOOLS-FOOD & DRINK SUPPLIES,CATERERS,GPC
WALSALL COUNCIL,http://opendatacommunities.org/id/metropolitan-district-council/walsall,31/12/2020,RESOURCES & TRANSFORMATION,CHICKEN JOES LTD,12/10/2020,H59620201013WBWVJXEJE-1,80.87,CATERING - SCHOOLS-FOOD & DRINK SUPPLIES,CATERERS,GPC
WALSALL COUNCIL,http://opendatacommunities.org/id/metropolitan-district-council/walsall,31/12/2020,RESOURCES & TRANSFORMATION,NOBISCO LIMITED,12/10/2020,H59620201013WFWYLUIVS-1,61.22,CATERING - SCHOOLS-FOOD & DRINK SUPPLIES,OTHER INDUSTRIAL SUPPLIES,GPC
WALSALL COUNCIL,http://opendatacommunities.org/id/metropolitan-district-council/walsall,31/12/2020,CHILDRENS SERVICES,CO-OPERATIVE FOOD,12/10/2020,H59620201013WMDULPKFA-1,45.00,WALSALL CRISIS SUPPORT SCHEME-CRISIS SUPPORT PAYMENTS,GROCERY STORES AND SUPERMARKETS,GPC
WALSALL COUNCIL,http://opendatacommunities.org/id/metropolitan-district-council/walsall,31/12/2020,RESOURCES & TRANSFORMATION,NOBISCO LIMITED,12/10/2020,H59620201013WXVRQDHDL-1,113.18,CATERING - SCHOOLS-FOOD & DRINK SUPPLIES,OTHER INDUSTRIAL SUPPLIES,GPC
WALSALL COUNCIL,http://opendatacommunities.org/id/metropolitan-district-council/walsall,31/12/2020,CHILDRENS SERVICES,PARK INN BY RADISSON,12/10/2020,H59620201013XGVLBMPZE-1,-65.00,SAFEGUARDING & FAMILY SUPPORT-SECTION 1/17CHILD CARE ACT 198,"HOTELS, MOTELS, RESORTS",GPC
WALSALL COUNCIL,http://opendatacommunities.org/id/metropolitan-district-council/walsall,31/12/2020,RESOURCES & TRANSFORMATION,CHICKEN JOES LTD,12/10/2020,H59620201013XMGJVSDGM-1,57.89,CATERING - SCHOOLS-FOOD & DRINK SUPPLIES,CATERERS,GPC
WALSALL COUNCIL,http://opendatacommunities.org/id/metropolitan-district-council/walsall,31/12/2020,RESOURCES & TRANSFORMATION,NOBISCO LIMITED,12/10/2020,H59620201013XOECVHYUN-1,17.22,CATERING - SCHOOLS-FOOD & DRINK SUPPLIES,OTHER INDUSTRIAL SUPPLIES,GPC
WALSALL COUNCIL,http://opendatacommunities.org/id/metropolitan-district-council/walsall,31/12/2020,RESOURCES & TRANSFORMATION,ARTHUR BRETT CATER,12/10/2020,H59620201013XVMDKIRJP-1,10.50,CATERING - SCHOOLS-FOOD & DRINK SUPPLIES,MISCELLANEOUS FOOD STORES & CONVENIENCE STORES,GPC
WALSALL COUNCIL,http://opendatacommunities.org/id/metropolitan-district-council/walsall,31/12/2020,CHILDRENS SERVICES,TIMPSON LTD,12/10/2020,H59620201013YCGDIXVEN-1,24.50,ELMWOOD SCHOOL-OPERATIONAL MAINTENANCE,MISCELLANEOUS AND SPECIALTY RETAIL STORES,GPC
WALSALL COUNCIL,http://opendatacommunities.org/id/metropolitan-district-council/walsall,31/12/2020,CHILDRENS SERVICES,AMZNMKTPLACE AMAZON.CO.UK,12/10/2020,H59620201013YFGQGVPZN-1,7.99,E19-MATERIALS,MISCELLANEOUS AND SPECIALTY RETAIL STORES,GPC
WALSALL COUNCIL,http://opendatacommunities.org/id/metropolitan-district-council/walsall,31/12/2020,CHILDRENS SERVICES,247 CARS WILLENHALL LTD,12/10/2020,H59620201013YMMRCSQPH-1,25.40,SAFEGUARDING & FAMILY SUPPORT-TAXI FARES,TAXI SERVICES,GPC
WALSALL COUNCIL,http://opendatacommunities.org/id/metropolitan-district-council/walsall,31/12/2020,CHILDRENS SERVICES,TESCO STORE 3351,12/10/2020,H59620201013YSWVPWCHM-1,12.50,BREAKFAST CLUB-MATERIALS,GROCERY STORES AND SUPERMARKETS,GPC
WALSALL COUNCIL,http://opendatacommunities.org/id/metropolitan-district-council/walsall,31/12/2020,ECONOMY & ENVIRONMENT,B & Q 1276,12/10/2020,H59620201013YTOLROOPE-1,28.44,WALSALL OUTDOOR ADVENTURE CENT-PURCHASE OF FURNITURE & EQUIPM,HOME SUPPLY WAREHOUSE STORES,GPC
WALSALL COUNCIL,http://opendatacommunities.org/id/metropolitan-district-council/walsall,31/12/2020,RESOURCES & TRANSFORMATION,ARTHUR BRETT CATER,12/10/2020,H59620201013YVUYRZWSL-1,105.01,CATERING - SCHOOLS-FOOD & DRINK SUPPLIES,MISCELLANEOUS FOOD STORES & CONVENIENCE STORES,GPC
WALSALL COUNCIL,http://opendatacommunities.org/id/metropolitan-district-council/walsall,31/12/2020,ECONOMY & ENVIRONMENT,WILKO RETAIL LIMITED,12/10/2020,H59620201013ZBAFIBLEW-1,3.00,BLOXWICH LIBRARY-MATERIALS,MISCELLANEOUS GENERAL MERCHANDISE,GPC
WALSALL COUNCIL,http://opendatacommunities.org/id/metropolitan-district-council/walsall,31/12/2020,RESOURCES & TRANSFORMATION,CHICKEN JOES LTD,12/10/2020,H59620201013ZDGPTKMLZ-1,36.48,CATERING - SCHOOLS-FOOD & DRINK SUPPLIES,CATERERS,GPC
WALSALL COUNCIL,http://opendatacommunities.org/id/metropolitan-district-council/walsall,31/12/2020,CHILDRENS SERVICES,RNIB CHARITY,12/10/2020,H59620201013ZGFHYQFMO-1,46.50,E19-MATERIALS,DENTAL/LABORATORY/MEDICAL EQUIPMENT & SUPPLIES,GPC
WALSALL COUNCIL,http://opendatacommunities.org/id/metropolitan-district-council/walsall,31/12/2020,CHILDRENS SERVICES,B&M 541 - ALDIDGE,12/10/2020,H59620201013ZUUIRSXYF-1,26.97,REDRUTH ROAD-CLEANING MATERIALS,MISCELLANEOUS GENERAL MERCHANDISE,GPC
WALSALL COUNCIL,http://opendatacommunities.org/id/metropolitan-district-council/walsall,31/12/2020,RESOURCES & TRANSFORMATION,BLAKEMORE FOODSERVICE,13/10/2020,H59620201014AQUFVYPCH-1,275.16,CATERING - SCHOOLS-FOOD & DRINK SUPPLIES,CATERERS,GPC
WALSALL COUNCIL,http://opendatacommunities.org/id/metropolitan-district-council/walsall,31/12/2020,RESOURCES & TRANSFORMATION,BLAKEMORE FOODSERVICE,13/10/2020,H59620201014AQUFVYPCH-2,9.04,CATERING - SCHOOLS-FOOD & DRINK SUPPLIES,CATERERS,GPC
WALSALL COUNCIL,http://opendatacommunities.org/id/metropolitan-district-council/walsall,31/12/2020,RESOURCES & TRANSFORMATION,BLAKEMORE FOODSERVICE,13/10/2020,H59620201014AUJMFITAB-1,71.44,CATERING - SCHOOLS-FOOD & DRINK SUPPLIES,CATERERS,GPC
WALSALL COUNCIL,http://opendatacommunities.org/id/metropolitan-district-council/walsall,31/12/2020,RESOURCES & TRANSFORMATION,BLAKEMORE FOODSERVICE,13/10/2020,H59620201014BJOGRMCCL-1,4.20,CATERING - SCHOOLS-FOOD & DRINK SUPPLIES,CATERERS,GPC
WALSALL COUNCIL,http://opendatacommunities.org/id/metropolitan-district-council/walsall,31/12/2020,RESOURCES & TRANSFORMATION,BLAKEMORE FOODSERVICE,13/10/2020,H59620201014BJOGRMCCL-2,9.20,CATERING - SCHOOLS-FOOD & DRINK SUPPLIES,CATERERS,GPC
WALSALL COUNCIL,http://opendatacommunities.org/id/metropolitan-district-council/walsall,31/12/2020,CHILDRENS SERVICES,HOTEL ON BOOKING.COM,13/10/2020,H59620201014BTZDRGSEW-1,99.45,BED & BREAKFAST PAYMENTS-BED & BREAKFAST PAYMENTS,"HOTELS, MOTELS, RESORTS",GPC
WALSALL COUNCIL,http://opendatacommunities.org/id/metropolitan-district-council/walsall,31/12/2020,CHILDRENS SERVICES,AMZNMKTPLACE,13/10/2020,H59620201014CJIQDKKYB-1,8.17,ADMINISTRATIVE SUPPLIES-MEDICAL REQUISITES-MATERIALS,MISCELLANEOUS AND SPECIALTY RETAIL STORES,GPC
WALSALL COUNCIL,http://opendatacommunities.org/id/metropolitan-district-council/walsall,31/12/2020,CHILDRENS SERVICES,TESCO STORES 6161,13/10/2020,H59620201014CQRQNJUOZ-1,15.90,FOOD TECHNOLOGY/HOSPITALITY-MATERIALS,GROCERY STORES AND SUPERMARKETS,GPC
WALSALL COUNCIL,http://opendatacommunities.org/id/metropolitan-district-council/walsall,31/12/2020,CHILDRENS SERVICES,HOTEL ON BOOKING.COM,13/10/2020,H59620201014CXORCYDHS-1,132.60,BED & BREAKFAST PAYMENTS-BED & BREAKFAST PAYMENTS,"HOTELS, MOTELS, RESORTS",GPC
WALSALL COUNCIL,http://opendatacommunities.org/id/metropolitan-district-council/walsall,31/12/2020,RESOURCES & TRANSFORMATION,BLAKEMORE FOODSERVICE,13/10/2020,H59620201014CZWWMJFPX-1,532.51,CATERING - SCHOOLS-FOOD & DRINK SUPPLIES,CATERERS,GPC
WALSALL COUNCIL,http://opendatacommunities.org/id/metropolitan-district-council/walsall,31/12/2020,RESOURCES & TRANSFORMATION,BLAKEMORE FOODSERVICE,13/10/2020,H59620201014CZWWMJFPX-2,36.19,CATERING - SCHOOLS-FOOD & DRINK SUPPLIES,CATERERS,GPC
WALSALL COUNCIL,http://opendatacommunities.org/id/metropolitan-district-council/walsall,31/12/2020,RESOURCES & TRANSFORMATION,BLAKEMORE FOODSERVICE,13/10/2020,H59620201014DETVDFMVT-1,367.35,CATERING - SCHOOLS-FOOD & DRINK SUPPLIES,CATERERS,GPC
WALSALL COUNCIL,http://opendatacommunities.org/id/metropolitan-district-council/walsall,31/12/2020,ECONOMY & ENVIRONMENT,DVLA VEHICLE TAX,13/10/2020,H59620201014DUBMFXOUW-1,267.50,FLEET-LICENCES FOR VEHICLES,TAX PAYMENTS,GPC
WALSALL COUNCIL,http://opendatacommunities.org/id/metropolitan-district-council/walsall,31/12/2020,CHILDRENS SERVICES,AMZNMKTPLACE,13/10/2020,H59620201014FCFKHMWJM-1,35.96,WELFARE/SOCIAL CARE-MATERIALS,MISCELLANEOUS AND SPECIALTY RETAIL STORES,GPC
WALSALL COUNCIL,http://opendatacommunities.org/id/metropolitan-district-council/walsall,31/12/2020,ECONOMY & ENVIRONMENT,SCREWFIX DIR LTD,13/10/2020,H59620201014FFERTTTXM-1,3.30,STREET CLEANSING-MATERIALS,LUMBER & BUILDING MATERIALS STORES,GPC
WALSALL COUNCIL,http://opendatacommunities.org/id/metropolitan-district-council/walsall,31/12/2020,CHILDRENS SERVICES,ASDA GROCERIES ONLINE,13/10/2020,H59620201014FFWEEDTTG-1,30.80,FOOD TECHNOLOGY-MATERIALS,GROCERY STORES AND SUPERMARKETS,GPC
WALSALL COUNCIL,http://opendatacommunities.org/id/metropolitan-district-council/walsall,31/12/2020,CHILDRENS SERVICES,TESCO STORES 6161,13/10/2020,H59620201014FJCXIJPUM-1,5.48,LOCALITY FAMILY SUPPORT-CENTRA-FOOD & DRINK SUPPLIES,GROCERY STORES AND SUPERMARKETS,GPC
WALSALL COUNCIL,http://opendatacommunities.org/id/metropolitan-district-council/walsall,31/12/2020,RESOURCES & TRANSFORMATION,BLAKEMORE FOODSERVICE,13/10/2020,H59620201014FURUEFKIV-1,355.96,CATERING - SCHOOLS-FOOD & DRINK SUPPLIES,CATERERS,GPC
WALSALL COUNCIL,http://opendatacommunities.org/id/metropolitan-district-council/walsall,31/12/2020,RESOURCES & TRANSFORMATION,BLAKEMORE FOODSERVICE,13/10/2020,H59620201014FURUEFKIV-2,42.20,CATERING - SCHOOLS-FOOD & DRINK SUPPLIES,CATERERS,GPC
WALSALL COUNCIL,http://opendatacommunities.org/id/metropolitan-district-council/walsall,31/12/2020,ECONOMY & ENVIRONMENT,MIDLANDNEWS.COM,13/10/2020,H59620201014FYIZWGIGV-1,82.80,DEVELOPMENT MANAGEMENT-SUBSCRIPTIONS,NEWS DEALERS AND NEWSSTANDS,GPC
WALSALL COUNCIL,http://opendatacommunities.org/id/metropolitan-district-council/walsall,31/12/2020,CHILDRENS SERVICES,WALSALL COUNCIL,13/10/2020,H59620201014GEUSYVTIC-1,17.00,SAFEGUARDING & FAMILY SUPPORT-FEES & LICENCES,GOVERNMENT SERVICES,GPC
WALSALL COUNCIL,http://opendatacommunities.org/id/metropolitan-district-council/walsall,31/12/2020,CHILDRENS SERVICES,AMAZON.CO.UK*816EA07H5,13/10/2020,H59620201014GHEDCMGRD-1,12.80,E19-MATERIALS,OTHER DIRECT MARKETING-OTHER DIRECT MARKETERS,GPC
WALSALL COUNCIL,http://opendatacommunities.org/id/metropolitan-district-council/walsall,31/12/2020,ECONOMY & ENVIRONMENT,BGN BOARDS CO LTD,13/10/2020,H59620201014GKSHOLNVX-1,386.40,INFRASTRUCTURE MAINTENANCE-MATERIALS,MISCELLANEOUS AND SPECIALTY RETAIL STORES,GPC
WALSALL COUNCIL,http://opendatacommunities.org/id/metropolitan-district-council/walsall,31/12/2020,RESOURCES & TRANSFORMATION,BLAKEMORE FOODSERVICE,13/10/2020,H59620201014GLSBGNYBI-1,373.85,CATERING - SCHOOLS-FOOD & DRINK SUPPLIES,CATERERS,GPC
WALSALL COUNCIL,http://opendatacommunities.org/id/metropolitan-district-council/walsall,31/12/2020,RESOURCES & TRANSFORMATION,BLAKEMORE FOODSERVICE,13/10/2020,H59620201014GLSBGNYBI-2,75.21,CATERING - SCHOOLS-FOOD & DRINK SUPPLIES,CATERERS,GPC
WALSALL COUNCIL,http://opendatacommunities.org/id/metropolitan-district-council/walsall,31/12/2020,ECONOMY & ENVIRONMENT,DVLA VEHICLE TAX,13/10/2020,H59620201014GOYXWHMYI-1,267.50,FLEET-LICENCES FOR VEHICLES,TAX PAYMENTS,GPC
WALSALL COUNCIL,http://opendatacommunities.org/id/metropolitan-district-council/walsall,31/12/2020,CHILDRENS SERVICES,CITY OF WOLVERHAMPTON,13/10/2020,H59620201014HBBRMXOQT-1,16.00,LOOKED AFTER CHILDRENS SOCIAL -FEES & LICENCES,GOVERNMENT SERVICES,GPC
WALSALL COUNCIL,http://opendatacommunities.org/id/metropolitan-district-council/walsall,31/12/2020,RESOURCES & TRANSFORMATION,BLAKEMORE FOODSERVICE,13/10/2020,H59620201014HDHUOBFJW-1,7.80,CATERING - SCHOOLS-CATERING & REFRESHMENTS,CATERERS,GPC
WALSALL COUNCIL,http://opendatacommunities.org/id/metropolitan-district-council/walsall,31/12/2020,ECONOMY & ENVIRONMENT,DVLA VEHICLE TAX,13/10/2020,H59620201014HFHEKVWSX-1,267.50,FLEET-LICENCES FOR VEHICLES,TAX PAYMENTS,GPC
WALSALL COUNCIL,http://opendatacommunities.org/id/metropolitan-district-council/walsall,31/12/2020,RESOURCES & TRANSFORMATION,BLAKEMORE FOODSERVICE,13/10/2020,H59620201014HGGRCFDKK-1,162.20,CATERING - SCHOOLS-FOOD & DRINK SUPPLIES,CATERERS,GPC
WALSALL COUNCIL,http://opendatacommunities.org/id/metropolitan-district-council/walsall,31/12/2020,RESOURCES & TRANSFORMATION,BLAKEMORE FOODSERVICE,13/10/2020,H59620201014HMSXOCFEX-1,20.96,CATERING - SCHOOLS-FOOD & DRINK SUPPLIES,CATERERS,GPC
WALSALL COUNCIL,http://opendatacommunities.org/id/metropolitan-district-council/walsall,31/12/2020,RESOURCES & TRANSFORMATION,BLAKEMORE FOODSERVICE,13/10/2020,H59620201014HPVOWXFCD-1,29.82,CATERING - SCHOOLS-FOOD & DRINK SUPPLIES,CATERERS,GPC
WALSALL COUNCIL,http://opendatacommunities.org/id/metropolitan-district-council/walsall,31/12/2020,RESOURCES & TRANSFORMATION,BLAKEMORE FOODSERVICE,13/10/2020,H59620201014IBVVUYRWK-1,85.49,CATERING - SCHOOLS-FOOD & DRINK SUPPLIES,CATERERS,GPC
WALSALL COUNCIL,http://opendatacommunities.org/id/metropolitan-district-council/walsall,31/12/2020,CHILDRENS SERVICES,WWW.SANDWELL.GOV.UK,13/10/2020,H59620201014IGVRTNISX-1,11.00,LOOKED AFTER CHILDRENS SOCIAL -FEES & LICENCES,GOVERNMENT SERVICES,GPC
WALSALL COUNCIL,http://opendatacommunities.org/id/metropolitan-district-council/walsall,31/12/2020,CHILDRENS SERVICES,ASDA GROCERIES ONLINE,13/10/2020,H59620201014ILMSVHONT-1,0.91,FOOD TECHNOLOGY-MATERIALS,GROCERY STORES AND SUPERMARKETS,GPC
WALSALL COUNCIL,http://opendatacommunities.org/id/metropolitan-district-council/walsall,31/12/2020,ECONOMY & ENVIRONMENT,DVLA VEHICLE TAX,13/10/2020,H59620201014IOGMHOOSB-1,202.50,FLEET-LICENCES FOR VEHICLES,TAX PAYMENTS,GPC
WALSALL COUNCIL,http://opendatacommunities.org/id/metropolitan-district-council/walsall,31/12/2020,CHILDRENS SERVICES,ALDI 42 772,13/10/2020,H59620201014IQCWWKJJE-1,9.27,REDRUTH ROAD-FOOD & DRINK SUPPLIES,GROCERY STORES AND SUPERMARKETS,GPC
WALSALL COUNCIL,http://opendatacommunities.org/id/metropolitan-district-council/walsall,31/12/2020,CHILDRENS SERVICES,ALDI 42 772,13/10/2020,H59620201014IQCWWKJJE-2,69.36,REDRUTH ROAD-FOOD & DRINK SUPPLIES,GROCERY STORES AND SUPERMARKETS,GPC
WALSALL COUNCIL,http://opendatacommunities.org/id/metropolitan-district-council/walsall,31/12/2020,ECONOMY & ENVIRONMENT,SCREWFIX DIRECT,13/10/2020,H59620201014IVWIJYBGI-1,239.98,LEATHER MUSEUM-PURCHASE OF FURNITURE & EQUIPM,LUMBER & BUILDING MATERIALS STORES,GPC
WALSALL COUNCIL,http://opendatacommunities.org/id/metropolitan-district-council/walsall,31/12/2020,RESOURCES & TRANSFORMATION,BLAKEMORE FOODSERVICE,13/10/2020,H59620201014JVCUXWVSC-1,5.94,CATERING - SCHOOLS-FOOD & DRINK SUPPLIES,CATERERS,GPC
WALSALL COUNCIL,http://opendatacommunities.org/id/metropolitan-district-council/walsall,31/12/2020,RESOURCES & TRANSFORMATION,BLAKEMORE FOODSERVICE,13/10/2020,H59620201014KKCJYYEHS-1,151.77,CATERING - SCHOOLS-FOOD & DRINK SUPPLIES,CATERERS,GPC
WALSALL COUNCIL,http://opendatacommunities.org/id/metropolitan-district-council/walsall,31/12/2020,RESOURCES & TRANSFORMATION,BLAKEMORE FOODSERVICE,13/10/2020,H59620201014KKCJYYEHS-2,23.32,CATERING - SCHOOLS-FOOD & DRINK SUPPLIES,CATERERS,GPC
WALSALL COUNCIL,http://opendatacommunities.org/id/metropolitan-district-council/walsall,31/12/2020,RESOURCES & TRANSFORMATION,NOBISCO LIMITED,13/10/2020,H59620201014KNDVPEXIN-1,-31.20,CATERING - SCHOOLS-FOOD & DRINK SUPPLIES,OTHER INDUSTRIAL SUPPLIES,GPC
WALSALL COUNCIL,http://opendatacommunities.org/id/metropolitan-district-council/walsall,31/12/2020,ECONOMY & ENVIRONMENT,DVLA VEHICLE TAX,13/10/2020,H59620201014LGYHVOEQM-1,97.50,FLEET-LICENCES FOR VEHICLES,TAX PAYMENTS,GPC
WALSALL COUNCIL,http://opendatacommunities.org/id/metropolitan-district-council/walsall,31/12/2020,RESOURCES & TRANSFORMATION,BLAKEMORE FOODSERVICE,13/10/2020,H59620201014LLHULJSTN-1,40.69,CATERING - SCHOOLS-FOOD & DRINK SUPPLIES,CATERERS,GPC
WALSALL COUNCIL,http://opendatacommunities.org/id/metropolitan-district-council/walsall,31/12/2020,CHILDRENS SERVICES,AMZNMKTPLACE,13/10/2020,H59620201014LLRXARELT-1,39.98,CONTACT SESSIONAL STAFF-STATIONERY & GENERAL OFFICE SU,MISCELLANEOUS AND SPECIALTY RETAIL STORES,GPC
WALSALL COUNCIL,http://opendatacommunities.org/id/metropolitan-district-council/walsall,31/12/2020,RESOURCES & TRANSFORMATION,BLAKEMORE FOODSERVICE,13/10/2020,H59620201014MZGNKJYVF-1,275.92,CATERING - SCHOOLS-FOOD & DRINK SUPPLIES,CATERERS,GPC
WALSALL COUNCIL,http://opendatacommunities.org/id/metropolitan-district-council/walsall,31/12/2020,RESOURCES & TRANSFORMATION,BLAKEMORE FOODSERVICE,13/10/2020,H59620201014MZGNKJYVF-2,18.25,CATERING - SCHOOLS-FOOD & DRINK SUPPLIES,CATERERS,GPC
WALSALL COUNCIL,http://opendatacommunities.org/id/metropolitan-district-council/walsall,31/12/2020,CHILDRENS SERVICES,WEST MIDLAND CARD,13/10/2020,H59620201014NEFGEMHXG-1,3.00,TRANSITION AND LEAVING CARE PL-OFFICERS & STAFF PUBLIC TRANSP,BUS LINES,GPC
WALSALL COUNCIL,http://opendatacommunities.org/id/metropolitan-district-council/walsall,31/12/2020,RESOURCES & TRANSFORMATION,BLAKEMORE FOODSERVICE,13/10/2020,H59620201014NMVBUQBPZ-1,192.26,CATERING - SCHOOLS-FOOD & DRINK SUPPLIES,CATERERS,GPC
WALSALL COUNCIL,http://opendatacommunities.org/id/metropolitan-district-council/walsall,31/12/2020,RESOURCES & TRANSFORMATION,BLAKEMORE FOODSERVICE,13/10/2020,H59620201014NUDQMAMKX-1,334.81,CATERING - SCHOOLS-FOOD & DRINK SUPPLIES,CATERERS,GPC
WALSALL COUNCIL,http://opendatacommunities.org/id/metropolitan-district-council/walsall,31/12/2020,CHILDRENS SERVICES,AMZNMKTPLACE,13/10/2020,H59620201014OHKYJQGUS-1,39.96,ST FRANCIS OF ASSISI CATHOLIC -OPERATIONAL MAINTENANCE,MISCELLANEOUS AND SPECIALTY RETAIL STORES,GPC
WALSALL COUNCIL,http://opendatacommunities.org/id/metropolitan-district-council/walsall,31/12/2020,ECONOMY & ENVIRONMENT,WWW.OFFICEFURNITUREONLINE,13/10/2020,H59620201014OPFWYZBXR-1,166.80,OAK PARK-PURCHASE OF FURNITURE & EQUIPM,OFFICE AND COMMERCIAL FURNITURE,GPC
WALSALL COUNCIL,http://opendatacommunities.org/id/metropolitan-district-council/walsall,31/12/2020,CHILDRENS SERVICES,W M MORRISONS.COM,13/10/2020,H59620201014ORFUNMZLQ-1,31.80,PELSALL VILLAGE SCHOOL-FOOD & DRINK SUPPLIES,GROCERY STORES AND SUPERMARKETS,GPC
WALSALL COUNCIL,http://opendatacommunities.org/id/metropolitan-district-council/walsall,31/12/2020,CHILDRENS SERVICES,W M MORRISONS.COM,13/10/2020,H59620201014ORFUNMZLQ-2,83.23,PELSALL VILLAGE SCHOOL-FOOD & DRINK SUPPLIES,GROCERY STORES AND SUPERMARKETS,GPC
WALSALL COUNCIL,http://opendatacommunities.org/id/metropolitan-district-council/walsall,31/12/2020,CHILDRENS SERVICES,WM MORRISONS STORE,13/10/2020,H59620201014OSKUYRAGP-1,1.75,ADOLESCENT SERVICE-FOOD & DRINK SUPPLIES,GROCERY STORES AND SUPERMARKETS,GPC
WALSALL COUNCIL,http://opendatacommunities.org/id/metropolitan-district-council/walsall,31/12/2020,CHILDRENS SERVICES,WM MORRISONS STORE,13/10/2020,H59620201014OSKUYRAGP-2,4.05,ADOLESCENT SERVICE-FOOD & DRINK SUPPLIES,GROCERY STORES AND SUPERMARKETS,GPC
WALSALL COUNCIL,http://opendatacommunities.org/id/metropolitan-district-council/walsall,31/12/2020,CHILDRENS SERVICES,AMZNMKTPLACE,13/10/2020,H59620201014OYBLYHCNW-1,74.99,E19-MATERIALS,MISCELLANEOUS AND SPECIALTY RETAIL STORES,GPC
WALSALL COUNCIL,http://opendatacommunities.org/id/metropolitan-district-council/walsall,31/12/2020,CHILDRENS SERVICES,AMZNMKTPLACE,13/10/2020,H59620201014OYBLYHCNW-2,14.15,SPECIAL FACILITIES-MATERIALS,MISCELLANEOUS AND SPECIALTY RETAIL STORES,GPC
WALSALL COUNCIL,http://opendatacommunities.org/id/metropolitan-district-council/walsall,31/12/2020,ECONOMY & ENVIRONMENT,B & Q 1276,13/10/2020,H59620201014PGWRRKBGS-1,10.50,COMMUNITY LIASON-PURCHASE OF FURNITURE & EQUIPM,HOME SUPPLY WAREHOUSE STORES,GPC
WALSALL COUNCIL,http://opendatacommunities.org/id/metropolitan-district-council/walsall,31/12/2020,CHILDRENS SERVICES,AMAZON.CO.UK*KF0TT8AF5,13/10/2020,H59620201014PIWSTILBG-1,11.09,E19-MATERIALS,OTHER DIRECT MARKETING-OTHER DIRECT MARKETERS,GPC
WALSALL COUNCIL,http://opendatacommunities.org/id/metropolitan-district-council/walsall,31/12/2020,RESOURCES & TRANSFORMATION,WWW.OPUSENERGY.COM,13/10/2020,H59620201014PQDLIWUVD-1,26.64,YEI IMPACT OVERHEADS-OTHER ENERGY COSTS,"UTILITIES - ELECTRIC, GAS, SANITARY & WATER",GPC
WALSALL COUNCIL,http://opendatacommunities.org/id/metropolitan-district-council/walsall,31/12/2020,CHILDRENS SERVICES,COSTA COFFEE WALSALL 1,13/10/2020,H59620201014PSKBFDJLU-1,7.35,ADOLESCENT SERVICE-OFFICERS SUBSISTENCE EXPENSES,QUICK PAYMENT SERVICE-FAST-FOOD RESTAURANTS,GPC
WALSALL COUNCIL,http://opendatacommunities.org/id/metropolitan-district-council/walsall,31/12/2020,CHILDRENS SERVICES,NEWITTS.COM,13/10/2020,H59620201014PXBTHJWBK-1,47.98,SALISBURY PRIMARY SCHOOL-CLOTHING & LAUNDRY,"SPORTS APPAREL, RIDING APPAREL STORES",GPC
WALSALL COUNCIL,http://opendatacommunities.org/id/metropolitan-district-council/walsall,31/12/2020,CHILDRENS SERVICES,AMZNMKTPLACE,13/10/2020,H59620201014QEJQBLUDX-1,65.00,SPECIAL FACILITIES-MATERIALS,MISCELLANEOUS AND SPECIALTY RETAIL STORES,GPC
WALSALL COUNCIL,http://opendatacommunities.org/id/metropolitan-district-council/walsall,31/12/2020,RESOURCES & TRANSFORMATION,WWW.SCC.COM,13/10/2020,H59620201014QGMMMQLTU-1,13.46,RECHARGEABLE EQUIPMENT-COMPUTER EQUIPMENT,"COMPUTERS, COMPUTER PERIPHERAL EQUIPMENT, SOFTWARE",GPC
WALSALL COUNCIL,http://opendatacommunities.org/id/metropolitan-district-council/walsall,31/12/2020,CHILDRENS SERVICES,ASDA GROCERIES ONLINE,13/10/2020,H59620201014QHSXPTUUE-1,-3.54,BREAKFAST CLUB-MATERIALS,GROCERY STORES AND SUPERMARKETS,GPC
WALSALL COUNCIL,http://opendatacommunities.org/id/metropolitan-district-council/walsall,31/12/2020,CHILDRENS SERVICES,TESCO STORES 6161,13/10/2020,H59620201014QHZNQYEVX-1,17.50,ELMWOOD SCHOOL-CATERING & REFRESHMENTS,GROCERY STORES AND SUPERMARKETS,GPC
WALSALL COUNCIL,http://opendatacommunities.org/id/metropolitan-district-council/walsall,31/12/2020,ECONOMY & ENVIRONMENT,DVLA VEHICLE TAX,13/10/2020,H59620201014QTDMKWVKV-1,167.50,FLEET-LICENCES FOR VEHICLES,TAX PAYMENTS,GPC
